Body Name,Body,Service Area Catergorisation,Service Division Catergorisation,Responsible Unit,Expenses Type,Detailed Expenses Type,Expenses Code,Date,Transaction Number,Amount,Capital / Revenue,Supplier Name,Supplier ID
North East Lincolnshire Council,http://statistics.data.gov.uk/id/local-authority/00FC,Cap Environment,Integrated Transport,Integrated Transport,Cap Exp Main Contract,Cap Exp Main Contract,XB01,19/01/2011,3006784,"10,000.00",Capital,C R REYNOLDS (CONSTRUCTION),7385
North East Lincolnshire Council,http://statistics.data.gov.uk/id/local-authority/00FC,Cap Environment,Integrated Transport,Integrated Transport,Cap Exp Main Contract,Cap Exp Main Contract,XB01,21/01/2011,3007951,"2,084.30",Capital,J MCCANN & CO LTD,72950
North East Lincolnshire Council,http://statistics.data.gov.uk/id/local-authority/00FC,Cap Environment,Integrated Transport,Integrated Transport,Cap Exp Main Contract,Cap Exp Main Contract,XB01,21/01/2011,3007860,"11,247.25",Capital,C R REYNOLDS (CONSTRUCTION),7385
North East Lincolnshire Council,http://statistics.data.gov.uk/id/local-authority/00FC,Cap Environment,Integrated Transport,Integrated Transport,Cap Exp Main Contract,Cap Exp Main Contract,XB01,14/01/2011,3005030,772.84,Capital,YORKSHIRE ELECTRICITY DISTRIBUTION PLC,2936
North East Lincolnshire Council,http://statistics.data.gov.uk/id/local-authority/00FC,Cap Environment,Integrated Transport,Integrated Transport,Cap Exp Main Contract,Cap Exp Main Contract,XB01,20/01/2011,3007060,"5,627.35",Capital,J MCCANN & CO LTD,72950
North East Lincolnshire Council,http://statistics.data.gov.uk/id/local-authority/00FC,Cap Environment,Integrated Transport,Integrated Transport,Cap Exp Main Contract,Cap Exp Main Contract,XB01,20/01/2011,3007077,"23,650.63",Capital,J MCCANN & CO LTD,72950
North East Lincolnshire Council,http://statistics.data.gov.uk/id/local-authority/00FC,Cap Environment,Integrated Transport,Integrated Transport,Cap Exp Main Contract,Cap Exp Main Contract,XB01,20/01/2011,3007077,"4,810.14",Capital,J MCCANN & CO LTD,72950
North East Lincolnshire Council,http://statistics.data.gov.uk/id/local-authority/00FC,Cap Environment,Integrated Transport,Integrated Transport,Cap Exp Main Contract,Cap Exp Main Contract,XB01,20/01/2011,3007077,687.34,Capital,J MCCANN & CO LTD,72950
North East Lincolnshire Council,http://statistics.data.gov.uk/id/local-authority/00FC,Cap Environment,Integrated Transport,Integrated Transport,Cap Exp Main Contract,Cap Exp Main Contract,XB01,20/01/2011,3007060,"13,943.32",Capital,J MCCANN & CO LTD,72950
North East Lincolnshire Council,http://statistics.data.gov.uk/id/local-authority/00FC,Cap Environment,Integrated Transport,Integrated Transport,Cap Exp Main Contract,Cap Exp Main Contract,XB01,21/01/2011,3007950,580.00,Capital,MASON CLARK ASSOCIATES,44734
North East Lincolnshire Council,http://statistics.data.gov.uk/id/local-authority/00FC,Cap Environment,Integrated Transport,Integrated Transport,Cap Exp Main Contract,Cap Exp Main Contract,XB01,21/01/2011,3007950,580.00,Capital,MASON CLARK ASSOCIATES,44734
North East Lincolnshire Council,http://statistics.data.gov.uk/id/local-authority/00FC,Cap Environment,Integrated Transport,Integrated Transport,Cap Exp Main Contract,Cap Exp Main Contract,XB01,21/01/2011,3007950,580.00,Capital,MASON CLARK ASSOCIATES,44734
North East Lincolnshire Council,http://statistics.data.gov.uk/id/local-authority/00FC,Cap Environment,Integrated Transport,Integrated Transport,Cap Exp Main Contract,Cap Exp Main Contract,XB01,21/01/2011,3007951,"-3,529.29",Capital,J MCCANN & CO LTD,72950
North East Lincolnshire Council,http://statistics.data.gov.uk/id/local-authority/00FC,Cap Environment,Integrated Transport,Integrated Transport,Cap Exp Main Contract,Cap Exp Main Contract,XB01,20/01/2011,3007077,"27,810.60",Capital,J MCCANN & CO LTD,72950
North East Lincolnshire Council,http://statistics.data.gov.uk/id/local-authority/00FC,Cap Environment,Integrated Transport,Integrated Transport,Cap Exp Main Contract,Cap Exp Main Contract,XB01,21/01/2011,3007951,-38.13,Capital,J MCCANN & CO LTD,72950
North East Lincolnshire Council,http://statistics.data.gov.uk/id/local-authority/00FC,Cap Environment,Integrated Transport,Integrated Transport,Cap Exp Main Contract,Cap Exp Main Contract,XB01,19/01/2011,3006784,"27,000.00",Capital,C R REYNOLDS (CONSTRUCTION),7385
North East Lincolnshire Council,http://statistics.data.gov.uk/id/local-authority/00FC,Cap Environment,Integrated Transport,Integrated Transport,Cap Exp Main Contract,Cap Exp Main Contract,XB01,10/01/2011,3001777,"8,158.02",Capital,BRITCON (SCUNTHORPE ) LTD,10098
North East Lincolnshire Council,http://statistics.data.gov.uk/id/local-authority/00FC,Cap Environment,Integrated Transport,Integrated Transport,Cap Exp Main Contract,Cap Exp Main Contract,XB01,28/01/2011,3011571,"17,188.38",Capital,C E SMITH & SONS,168513
North East Lincolnshire Council,http://statistics.data.gov.uk/id/local-authority/00FC,Cap Environment,Peoples Park,Peoples Park,Cap Exp Main Contract,Cap Exp Main Contract,XB01,07/01/2011,3000885,"1,061.08",Capital,WETHERALD CONSTRUCTION LTD,178762
North East Lincolnshire Council,http://statistics.data.gov.uk/id/local-authority/00FC,Cap Environment,Off Road Parking,Off Road Parking,Cap Exp Main Contract,Cap Exp Main Contract,XB01,21/01/2011,3007858,619.35,Capital,SPECIALIST SURFACING LIMITED,6947
North East Lincolnshire Council,http://statistics.data.gov.uk/id/local-authority/00FC,Cap Environment,Off Road Parking,Off Road Parking,Cap Exp Main Contract,Cap Exp Main Contract,XB01,21/01/2011,3007858,933.28,Capital,SPECIALIST SURFACING LIMITED,6947
North East Lincolnshire Council,http://statistics.data.gov.uk/id/local-authority/00FC,Cap Environment,Off Road Parking,Off Road Parking,Cap Exp Main Contract,Cap Exp Main Contract,XB01,21/01/2011,3007854,753.29,Capital,SPECIALIST SURFACING LIMITED,6947
North East Lincolnshire Council,http://statistics.data.gov.uk/id/local-authority/00FC,Cap Environment,Bradley Playing Fields,Bradley Playing Fields,Cap Exp Main Contract,Cap Exp Main Contract,XB01,21/01/2011,3008100,"1,600.84",Capital,SYLVESTER-KEAL LTD,13580
North East Lincolnshire Council,http://statistics.data.gov.uk/id/local-authority/00FC,Cap Environment,Grant Thorold Library,Grant Thorold Library,Cap Exp Main Contract,Cap Exp Main Contract,XB01,07/01/2011,3000992,"17,670.74",Capital,CLARK CONSTRUCTION,164407
North East Lincolnshire Council,http://statistics.data.gov.uk/id/local-authority/00FC,Cap Environment,Highway Infrastructure Imp,Highway Infrastructure Imp,Cap Exp Main Contract,Cap Exp Main Contract,XB01,20/01/2011,3007077,"1,144.67",Capital,J MCCANN & CO LTD,72950
North East Lincolnshire Council,http://statistics.data.gov.uk/id/local-authority/00FC,Cap Environment,Highway Infrastructure Imp,Highway Infrastructure Imp,Cap Exp Main Contract,Cap Exp Main Contract,XB01,19/01/2011,3006784,"35,468.00",Capital,C R REYNOLDS (CONSTRUCTION),7385
North East Lincolnshire Council,http://statistics.data.gov.uk/id/local-authority/00FC,Cap Environment,Highway Infrastructure Imp,Highway Infrastructure Imp,Cap Exp Main Contract,Cap Exp Main Contract,XB01,20/01/2011,3007077,"2,982.31",Capital,J MCCANN & CO LTD,72950
North East Lincolnshire Council,http://statistics.data.gov.uk/id/local-authority/00FC,Cap Environment,Highway Infrastructure Imp,Highway Infrastructure Imp,Cap Exp Main Contract,Cap Exp Main Contract,XB01,20/01/2011,3007060,"7,718.64",Capital,J MCCANN & CO LTD,72950
North East Lincolnshire Council,http://statistics.data.gov.uk/id/local-authority/00FC,Cap Environment,Highway Infrastructure Imp,Highway Infrastructure Imp,Cap Exp Main Contract,Cap Exp Main Contract,XB01,21/01/2011,3007848,"76,864.75",Capital,SPECIALIST SURFACING LIMITED,6947
North East Lincolnshire Council,http://statistics.data.gov.uk/id/local-authority/00FC,Cap Environment,Highway Infrastructure Imp,Highway Infrastructure Imp,Cap Exp Main Contract,Cap Exp Main Contract,XB01,25/01/2011,3009056,"91,790.74",Capital,CLARK CONSTRUCTION,164407
North East Lincolnshire Council,http://statistics.data.gov.uk/id/local-authority/00FC,Cap Environment,Highway Infrastructure Imp,Highway Infrastructure Imp,Cap Exp Main Contract,Cap Exp Main Contract,XB01,19/01/2011,3006785,"5,063.51",Capital,C R REYNOLDS (CONSTRUCTION),7385
North East Lincolnshire Council,http://statistics.data.gov.uk/id/local-authority/00FC,Cap Environment,Highway Infrastructure Imp,Highway Infrastructure Imp,Cap Exp Main Contract,Cap Exp Main Contract,XB01,19/01/2011,3006785,"12,396.87",Capital,C R REYNOLDS (CONSTRUCTION),7385
North East Lincolnshire Council,http://statistics.data.gov.uk/id/local-authority/00FC,Cap Environment,Highway Infrastructure Imp,Highway Infrastructure Imp,Cap Exp Main Contract,Cap Exp Main Contract,XB01,10/01/2011,3001776,"27,286.60",Capital,C R REYNOLDS (CONSTRUCTION),7385
North East Lincolnshire Council,http://statistics.data.gov.uk/id/local-authority/00FC,Cap Community Care,Hps-Disabled Fac. Grants,Hps-Disabled Fac. Grants,Cap Exp Main Contract,Cap Exp Main Contract,XG01,06/01/2011,3000296,541.16,Capital,HANDICARE ACCESSIIBILITY LTD,180752
North East Lincolnshire Council,http://statistics.data.gov.uk/id/local-authority/00FC,Cap Community Care,Hps-Disabled Fac. Grants,Hps-Disabled Fac. Grants,Cap Exp Main Contract,Cap Exp Main Contract,XG01,26/01/2011,3010135,596.43,Capital,DOLPHIN MOBILITY EAST MIDLANDS LTD,138731
North East Lincolnshire Council,http://statistics.data.gov.uk/id/local-authority/00FC,Cap Community Care,Hps-Disabled Fac. Grants,Hps-Disabled Fac. Grants,Cap Exp Main Contract,Cap Exp Main Contract,XG01,07/01/2011,3001015,643.95,Capital,MEARS LTD,177642
North East Lincolnshire Council,http://statistics.data.gov.uk/id/local-authority/00FC,Cap Community Care,Hps-Disabled Fac. Grants,Hps-Disabled Fac. Grants,Cap Exp Main Contract,Cap Exp Main Contract,XG01,17/01/2011,3005566,"1,602.00",Capital,HANDICARE ACCESSIIBILITY LTD,180752
North East Lincolnshire Council,http://statistics.data.gov.uk/id/local-authority/00FC,Cap Community Care,Hps-Disabled Fac. Grants,Hps-Disabled Fac. Grants,Cap Exp Main Contract,Cap Exp Main Contract,XG01,11/01/2011,3002914,"1,725.83",Capital,MEARS LTD,177642
North East Lincolnshire Council,http://statistics.data.gov.uk/id/local-authority/00FC,Cap Community Care,Hps-Disabled Fac. Grants,Hps-Disabled Fac. Grants,Cap Exp Main Contract,Cap Exp Main Contract,XG01,06/01/2011,3000296,"2,025.00",Capital,HANDICARE ACCESSIIBILITY LTD,180752
North East Lincolnshire Council,http://statistics.data.gov.uk/id/local-authority/00FC,Cap Community Care,Hps-Disabled Fac. Grants,Hps-Disabled Fac. Grants,Cap Exp Main Contract,Cap Exp Main Contract,XG01,07/01/2011,3001010,"2,025.00",Capital,HANDICARE ACCESSIIBILITY LTD,180752
North East Lincolnshire Council,http://statistics.data.gov.uk/id/local-authority/00FC,Cap Community Care,Hps-Disabled Fac. Grants,Hps-Disabled Fac. Grants,Cap Exp Main Contract,Cap Exp Main Contract,XG01,05/01/2011,2999856,"2,052.49",Capital,REDACTED PERSONAL DATA,REDACTED PERSONAL DATA
North East Lincolnshire Council,http://statistics.data.gov.uk/id/local-authority/00FC,Cap Community Care,Hps-Disabled Fac. Grants,Hps-Disabled Fac. Grants,Cap Exp Main Contract,Cap Exp Main Contract,XG01,17/01/2011,3005569,"2,166.00",Capital,HANDICARE ACCESSIIBILITY LTD,180752
North East Lincolnshire Council,http://statistics.data.gov.uk/id/local-authority/00FC,Cap Community Care,Hps-Disabled Fac. Grants,Hps-Disabled Fac. Grants,Cap Exp Main Contract,Cap Exp Main Contract,XG01,26/01/2011,3010135,"2,175.00",Capital,DOLPHIN MOBILITY EAST MIDLANDS LTD,138731
North East Lincolnshire Council,http://statistics.data.gov.uk/id/local-authority/00FC,Cap Community Care,Hps-Disabled Fac. Grants,Hps-Disabled Fac. Grants,Cap Exp Main Contract,Cap Exp Main Contract,XG01,17/01/2011,3005567,"2,404.55",Capital,MEARS LTD,177642
North East Lincolnshire Council,http://statistics.data.gov.uk/id/local-authority/00FC,Cap Community Care,Hps-Disabled Fac. Grants,Hps-Disabled Fac. Grants,Cap Exp Main Contract,Cap Exp Main Contract,XG01,05/01/2011,2999483,"3,328.37",Capital,MEARS LTD,177642
North East Lincolnshire Council,http://statistics.data.gov.uk/id/local-authority/00FC,Cap Community Care,Hps-Disabled Fac. Grants,Hps-Disabled Fac. Grants,Cap Exp Main Contract,Cap Exp Main Contract,XG01,17/01/2011,3005568,"3,526.00",Capital,VALAM BUILDERS LTD,2521
North East Lincolnshire Council,http://statistics.data.gov.uk/id/local-authority/00FC,Cap Community Care,Hps-Disabled Fac. Grants,Hps-Disabled Fac. Grants,Cap Exp Main Contract,Cap Exp Main Contract,XG01,05/01/2011,2999857,"3,653.77",Capital,MEARS LTD,177642
North East Lincolnshire Council,http://statistics.data.gov.uk/id/local-authority/00FC,Cap Community Care,Hps-Disabled Fac. Grants,Hps-Disabled Fac. Grants,Cap Exp Main Contract,Cap Exp Main Contract,XG01,26/01/2011,3010134,"4,022.98",Capital,MEARS LTD,177642
North East Lincolnshire Council,http://statistics.data.gov.uk/id/local-authority/00FC,Cap Community Care,Hps-Disabled Fac. Grants,Hps-Disabled Fac. Grants,Cap Exp Main Contract,Cap Exp Main Contract,XG01,17/01/2011,3005570,"4,170.00",Capital,REDACTED PERSONAL DATA,REDACTED PERSONAL DATA
North East Lincolnshire Council,http://statistics.data.gov.uk/id/local-authority/00FC,Cap Community Care,Hps-Disabled Fac. Grants,Hps-Disabled Fac. Grants,Cap Exp Main Contract,Cap Exp Main Contract,XG01,17/01/2011,3005304,"4,196.03",Capital,MEARS LTD,177642
North East Lincolnshire Council,http://statistics.data.gov.uk/id/local-authority/00FC,Cap Community Care,Hps-Disabled Fac. Grants,Hps-Disabled Fac. Grants,Cap Exp Main Contract,Cap Exp Main Contract,XG01,25/01/2011,3009092,"4,196.03",Capital,MEARS LTD,177642
North East Lincolnshire Council,http://statistics.data.gov.uk/id/local-authority/00FC,Cap Community Care,Hps-Disabled Fac. Grants,Hps-Disabled Fac. Grants,Cap Exp Main Contract,Cap Exp Main Contract,XG01,11/01/2011,3002089,"4,365.68",Capital,MEARS LTD,177642
North East Lincolnshire Council,http://statistics.data.gov.uk/id/local-authority/00FC,Cap Community Care,Hps-Disabled Fac. Grants,Hps-Disabled Fac. Grants,Cap Exp Main Contract,Cap Exp Main Contract,XG01,21/01/2011,3007868,"4,660.15",Capital,MEARS LTD,177642
North East Lincolnshire Council,http://statistics.data.gov.uk/id/local-authority/00FC,Cap Community Care,Hps-Disabled Fac. Grants,Hps-Disabled Fac. Grants,Cap Exp Main Contract,Cap Exp Main Contract,XG01,31/01/2011,3012209,"4,743.88",Capital,MEARS LTD,177642
North East Lincolnshire Council,http://statistics.data.gov.uk/id/local-authority/00FC,Cap Community Care,Hps-Disabled Fac. Grants,Hps-Disabled Fac. Grants,Cap Exp Main Contract,Cap Exp Main Contract,XG01,07/01/2011,3001018,"4,755.00",Capital,LINCS PLUMBING & HEATING CO,179737
North East Lincolnshire Council,http://statistics.data.gov.uk/id/local-authority/00FC,Cap Community Care,Hps-Disabled Fac. Grants,Hps-Disabled Fac. Grants,Cap Exp Main Contract,Cap Exp Main Contract,XG01,05/01/2011,2999855,"4,792.61",Capital,MEARS LTD,177642
North East Lincolnshire Council,http://statistics.data.gov.uk/id/local-authority/00FC,Cap Community Care,Hps-Disabled Fac. Grants,Hps-Disabled Fac. Grants,Cap Exp Main Contract,Cap Exp Main Contract,XG01,06/01/2011,3000295,"4,926.74",Capital,MEARS LTD,177642
North East Lincolnshire Council,http://statistics.data.gov.uk/id/local-authority/00FC,Cap Community Care,Hps-Disabled Fac. Grants,Hps-Disabled Fac. Grants,Cap Exp Main Contract,Cap Exp Main Contract,XG01,07/01/2011,3001015,"6,850.54",Capital,MEARS LTD,177642
North East Lincolnshire Council,http://statistics.data.gov.uk/id/local-authority/00FC,Cap Community Care,Hps-Disabled Fac. Grants,Hps-Disabled Fac. Grants,Cap Exp Main Contract,Cap Exp Main Contract,XG01,05/01/2011,2999856,"11,835.00",Capital,REDACTED PERSONAL DATA,REDACTED PERSONAL DATA
North East Lincolnshire Council,http://statistics.data.gov.uk/id/local-authority/00FC,Cap Community Care,Hps-Disabled Fac. Grants,Hps-Disabled Fac. Grants,Cap Exp Main Contract,Cap Exp Main Contract,XG01,07/01/2011,3001012,"4,760.00",Capital,BLAKES BUILDING SERVICES,165644
North East Lincolnshire Council,http://statistics.data.gov.uk/id/local-authority/00FC,Cap Community Care,East Marsh Renewal,East Marsh Renewal,Cap Exp Main Contract,Cap Exp Main Contract,XB01,26/01/2011,3010224,658.35,Capital,CLS DEMOLITION LIMITED,140737
North East Lincolnshire Council,http://statistics.data.gov.uk/id/local-authority/00FC,Cap Community Care,East Marsh Renewal,East Marsh Renewal,Cap Exp Main Contract,Cap Exp Main Contract,XB01,14/01/2011,3005011,547.68,Capital,EDEN BROWN LTD,142105
North East Lincolnshire Council,http://statistics.data.gov.uk/id/local-authority/00FC,Cap Community Care,East Marsh Renewal,East Marsh Renewal,Cap Exp Main Contract,Cap Exp Main Contract,XB01,07/01/2011,3001053,"1,078.77",Capital,EDEN BROWN LTD,142105
North East Lincolnshire Council,http://statistics.data.gov.uk/id/local-authority/00FC,Cap Community Care,Housing Assistance,Housing Assistance,Cap Exp Main Contract,Cap Exp Main Contract,XB01,20/01/2011,3007365,"70,526.97",Capital,DUDLEY BUILDING SOCIETY,149298
North East Lincolnshire Council,http://statistics.data.gov.uk/id/local-authority/00FC,Cap Community Care,Housing Assistance,Housing Assistance,Cap Exp Main Contract,Cap Exp Main Contract,XB01,20/01/2011,3007365,"72,630.03",Capital,DUDLEY BUILDING SOCIETY,149298
North East Lincolnshire Council,http://statistics.data.gov.uk/id/local-authority/00FC,Cap Community Care,Housing Assistance,Housing Assistance,Cap Exp Main Contract,Cap Exp Main Contract,XB01,11/01/2011,3002409,600.00,Capital,DURA-CARE LTD,165056
North East Lincolnshire Council,http://statistics.data.gov.uk/id/local-authority/00FC,Cap Community Care,Choice Based Lettings,Choice Based Lettings,Cap Exp Main Contract,Cap Exp Main Contract,XB01,21/01/2011,3008165,"89,525.17",Capital,ABRITAS LTD,178414
North East Lincolnshire Council,http://statistics.data.gov.uk/id/local-authority/00FC,Cap Corporate,Invest To Save,Invest To Save,Consultants,Consult Work Consult+Special,PG01,25/01/2011,3009156,502.72,Capital,MIDLAND SOFTWARE LTD,180559
North East Lincolnshire Council,http://statistics.data.gov.uk/id/local-authority/00FC,Cap Corporate,Invest To Save,Invest To Save,Consultants,Consult Work Consult+Special,PG01,24/01/2011,3008593,"5,824.96",Capital,MIDLAND SOFTWARE LTD,180559
North East Lincolnshire Council,http://statistics.data.gov.uk/id/local-authority/00FC,Cap Corporate,Invest To Save,Invest To Save,Consultants,Consult Work Consult+Special,PG01,05/01/2011,2999248,"8,949.72",Capital,MIDLAND SOFTWARE LTD,180559
North East Lincolnshire Council,http://statistics.data.gov.uk/id/local-authority/00FC,Cap Care Trust Plus,Ctp Schemes,Ctp Schemes,Cap Exp Main Contract,Cap Exp Main Contract,XB01,19/01/2011,3006636,623.35,Capital,BANNISTER DEVELOPMENTS (GRIMSBY) LTD,107957
North East Lincolnshire Council,http://statistics.data.gov.uk/id/local-authority/00FC,Cap Learning & Child Care,Nursery Provision Grants,Nursery Provision Grants,Cap Exp Main Contract,Cap Exp Main Contract,XB01,28/01/2011,3011573,"145,077.67",Capital,IDEAL BUILDING SYSTEMS LTD,130954
North East Lincolnshire Council,http://statistics.data.gov.uk/id/local-authority/00FC,Cap Learning & Child Care,Devolved Formula Cap Grant,Devolved Formula Cap Grant,Cap Exp Main Contract,Cap Exp Main Contract,XB01,17/01/2011,3005346,"8,359.85",Capital,SG WORLD LTD,162432
North East Lincolnshire Council,http://statistics.data.gov.uk/id/local-authority/00FC,Cap Learning & Child Care,Devolved Formula Cap Grant,Devolved Formula Cap Grant,Cap Exp Main Contract,Cap Exp Main Contract,XB01,07/01/2011,3001002,"4,946.81",Capital,F A WOULD GROUP,161378
North East Lincolnshire Council,http://statistics.data.gov.uk/id/local-authority/00FC,Cap Learning & Child Care,Devolved Formula Cap Grant,Devolved Formula Cap Grant,Cap Exp Main Contract,Cap Exp Main Contract,XB01,21/01/2011,3008155,"2,850.00",Capital,IT SERVICES (GRIMSBY) LTD,110123
North East Lincolnshire Council,http://statistics.data.gov.uk/id/local-authority/00FC,Cap Learning & Child Care,Devolved Formula Cap Grant,Devolved Formula Cap Grant,Cap Exp Main Contract,Cap Exp Main Contract,XB01,14/01/2011,3004966,"1,463.33",Capital,LITTLECOATES PRIMARY SCHOOL,42121
North East Lincolnshire Council,http://statistics.data.gov.uk/id/local-authority/00FC,Cap Learning & Child Care,Devolved Formula Cap Grant,Devolved Formula Cap Grant,Cap Exp Main Contract,Cap Exp Main Contract,XB01,12/01/2011,3004026,"4,509.00",Capital,FABRIQUE SPECIALISTS GLAZING SYSTEMS LTD,138655
North East Lincolnshire Council,http://statistics.data.gov.uk/id/local-authority/00FC,Cap Learning & Child Care,Devolved Formula Cap Grant,Devolved Formula Cap Grant,Cap Exp Main Contract,Cap Exp Main Contract,XB01,26/01/2011,3010615,650.00,Capital,LINDSEY TREE SERVICES LTD,90094
North East Lincolnshire Council,http://statistics.data.gov.uk/id/local-authority/00FC,Cap Learning & Child Care,Devolved Formula Cap Grant,Devolved Formula Cap Grant,Cap Exp Main Contract,Cap Exp Main Contract,XB01,20/01/2011,3006981,"1,000.00",Capital,E S RUDKIN LTD,32386
North East Lincolnshire Council,http://statistics.data.gov.uk/id/local-authority/00FC,Cap Learning & Child Care,Devolved Formula Cap Grant,Devolved Formula Cap Grant,Cap Exp Main Contract,Cap Exp Main Contract,XB01,19/01/2011,3006787,"2,206.46",Capital,EXCELL ELECTRICAL CONTRACTORS,16811
North East Lincolnshire Council,http://statistics.data.gov.uk/id/local-authority/00FC,Cap Learning & Child Care,Devolved Formula Cap Grant,Devolved Formula Cap Grant,Cap Exp Main Contract,Cap Exp Main Contract,XB01,11/01/2011,3002830,"2,486.00",Capital,ARK JOINERY AND BUILDING MAINTENANCE LTD,117879
North East Lincolnshire Council,http://statistics.data.gov.uk/id/local-authority/00FC,Cap Learning & Child Care,Devolved Formula Cap Grant,Devolved Formula Cap Grant,Cap Exp Main Contract,Cap Exp Main Contract,XB01,11/01/2011,3002850,"2,906.95",Capital,EXCELL ELECTRICAL CONTRACTORS,16811
North East Lincolnshire Council,http://statistics.data.gov.uk/id/local-authority/00FC,Cap Learning & Child Care,Devolved Formula Cap Grant,Devolved Formula Cap Grant,Cap Exp Main Contract,Cap Exp Main Contract,XB01,13/01/2011,3004311,"1,260.00",Capital,LUDAFLORS,1565
North East Lincolnshire Council,http://statistics.data.gov.uk/id/local-authority/00FC,Cap Learning & Child Care,Devolved Formula Cap Grant,Devolved Formula Cap Grant,Cap Exp Main Contract,Cap Exp Main Contract,XB01,28/01/2011,3011575,"83,546.80",Capital,GEOMATT BUILDING LTD,180519
North East Lincolnshire Council,http://statistics.data.gov.uk/id/local-authority/00FC,Cap Learning & Child Care,Devolved Formula Cap Grant,Devolved Formula Cap Grant,Cap Exp Main Contract,Cap Exp Main Contract,XB01,31/01/2011,3012028,514.02,Capital,EDUCATION LINCS LTD,109818
North East Lincolnshire Council,http://statistics.data.gov.uk/id/local-authority/00FC,Cap Learning & Child Care,Devolved Formula Cap Grant,Devolved Formula Cap Grant,Cap Exp Main Contract,Cap Exp Main Contract,XB01,19/01/2011,3006788,"2,249.55",Capital,EXCELL ELECTRICAL CONTRACTORS,16811
North East Lincolnshire Council,http://statistics.data.gov.uk/id/local-authority/00FC,Cap Learning & Child Care,Devolved Formula Cap Grant,Devolved Formula Cap Grant,Cap Exp Main Contract,Cap Exp Main Contract,XB01,21/01/2011,3008002,"1,400.00",Capital,JET TECH LIMITED,135671
North East Lincolnshire Council,http://statistics.data.gov.uk/id/local-authority/00FC,Cap Learning & Child Care,Devolved Formula Cap Grant,Devolved Formula Cap Grant,Cap Exp Main Contract,Cap Exp Main Contract,XB01,19/01/2011,3006720,"1,380.00",Capital,HAITH'S HEATING LTD,140813
North East Lincolnshire Council,http://statistics.data.gov.uk/id/local-authority/00FC,Cap Learning & Child Care,School'S Kitchens,School'S Kitchens,Cap Exp Main Contract,Cap Exp Main Contract,XB01,12/01/2011,3004028,"8,720.10",Capital,CLARK CONSTRUCTION,164407
North East Lincolnshire Council,http://statistics.data.gov.uk/id/local-authority/00FC,Cap Learning & Child Care,School'S Kitchens,School'S Kitchens,Cap Exp Main Contract,Cap Exp Main Contract,XB01,10/01/2011,3001735,"1,303.00",Capital,SYLVESTER-KEAL LTD,13580
North East Lincolnshire Council,http://statistics.data.gov.uk/id/local-authority/00FC,Cap Learning & Child Care,School'S Kitchens,School'S Kitchens,Cap Exp Main Contract,Cap Exp Main Contract,XB01,12/01/2011,3004028,574.23,Capital,CLARK CONSTRUCTION,164407
North East Lincolnshire Council,http://statistics.data.gov.uk/id/local-authority/00FC,Cap Learning & Child Care,School'S Kitchens,School'S Kitchens,Cap Exp Main Contract,Cap Exp Main Contract,XB01,12/01/2011,3004028,"2,531.53",Capital,CLARK CONSTRUCTION,164407
North East Lincolnshire Council,http://statistics.data.gov.uk/id/local-authority/00FC,Cap Learning & Child Care,School'S Kitchens,School'S Kitchens,Cap Exp Main Contract,Cap Exp Main Contract,XB01,12/01/2011,3004028,"1,523.10",Capital,CLARK CONSTRUCTION,164407
North East Lincolnshire Council,http://statistics.data.gov.uk/id/local-authority/00FC,Cap Learning & Child Care,Nds Cond + Modern All Schools,Nds Cond + Modern All Schools,Cap Exp Main Contract,Cap Exp Main Contract,XB01,19/01/2011,3006786,"2,062.25",Capital,P G INGOLDBY & SONS LTD,13231
North East Lincolnshire Council,http://statistics.data.gov.uk/id/local-authority/00FC,Cap Learning & Child Care,Nds Cond + Modern All Schools,Nds Cond + Modern All Schools,Cap Exp Main Contract,Cap Exp Main Contract,XB01,07/01/2011,3001004,"24,250.00",Capital,JAMES BRATTON & CO LTD,41626
North East Lincolnshire Council,http://statistics.data.gov.uk/id/local-authority/00FC,Cap Learning & Child Care,Surplus Place Removal,Surplus Place Removal,Cap Exp Main Contract,Cap Exp Main Contract,XB01,19/01/2011,3006641,"21,423.25",Capital,G S KELSEY LIMITED,122621
North East Lincolnshire Council,http://statistics.data.gov.uk/id/local-authority/00FC,Cap Learning & Child Care,Surplus Place Removal,Surplus Place Removal,Cap Exp Main Contract,Cap Exp Main Contract,XB01,19/01/2011,3006643,"4,510.57",Capital,HENRY BOOT CONSTRUCTION (UK) LTD,176697
North East Lincolnshire Council,http://statistics.data.gov.uk/id/local-authority/00FC,Cap Learning & Child Care,Surplus Place Removal,Surplus Place Removal,Cap Exp Main Contract,Cap Exp Main Contract,XB01,07/01/2011,3001000,"85,082.13",Capital,JAYBUILD PROJECTS LTD,180144
North East Lincolnshire Council,http://statistics.data.gov.uk/id/local-authority/00FC,Cap Learning & Child Care,Surplus Place Removal,Surplus Place Removal,Cap Exp Main Contract,Cap Exp Main Contract,XB01,21/01/2011,3007893,725.00,Capital,LINDUM GROUP LIMITED,126849
North East Lincolnshire Council,http://statistics.data.gov.uk/id/local-authority/00FC,Cap Learning & Child Care,Surplus Place Removal,Surplus Place Removal,Cap Exp Main Contract,Cap Exp Main Contract,XB01,13/01/2011,3004288,-130.00,Capital,ABM ROOFING CONTRACTORS,30
North East Lincolnshire Council,http://statistics.data.gov.uk/id/local-authority/00FC,Cap Learning & Child Care,Surplus Place Removal,Surplus Place Removal,Cap Exp Main Contract,Cap Exp Main Contract,XB01,11/01/2011,3002125,"2,370.00",Capital,ORCHARD FIRE & SECURITY LTD,36915
North East Lincolnshire Council,http://statistics.data.gov.uk/id/local-authority/00FC,Cap Learning & Child Care,Hereford School Rebuilding,Hereford School Rebuilding,Cap Exp Main Contract,Cap Exp Main Contract,XB01,12/01/2011,3003413,"1,415.00",Capital,EAST LINDSEY DISTRICT COUNCIL,159176
North East Lincolnshire Council,http://statistics.data.gov.uk/id/local-authority/00FC,Cap Learning & Child Care,Havelock Academy,Havelock Academy,Cap Exp Main Contract,Cap Exp Main Contract,XB01,12/01/2011,3003415,"1,333.00",Capital,EAST LINDSEY DISTRICT COUNCIL,159176
North East Lincolnshire Council,http://statistics.data.gov.uk/id/local-authority/00FC,Cap Learning & Child Care,Havelock Academy,Havelock Academy,Cap Exp Main Contract,Cap Exp Main Contract,XB01,24/01/2011,3008507,"2,250.00",Capital,AECOM LTD,181484
North East Lincolnshire Council,http://statistics.data.gov.uk/id/local-authority/00FC,Cap Learning & Child Care,Havelock Academy,Havelock Academy,Cap Exp Main Contract,Cap Exp Main Contract,XB01,04/01/2011,2998630,"1,507,196.09",Capital,KIER BUILD,175607
North East Lincolnshire Council,http://statistics.data.gov.uk/id/local-authority/00FC,Cap Learning & Child Care,Havelock Academy,Havelock Academy,Cap Exp Main Contract,Cap Exp Main Contract,XB01,05/01/2011,2999124,"468,531.00",Capital,HAVELOCK ACADEMY,170096
North East Lincolnshire Council,http://statistics.data.gov.uk/id/local-authority/00FC,Cap Learning & Child Care,Bsf - General,Bsf - General,Cap Exp Main Contract,Cap Exp Main Contract,XB01,05/01/2011,2999211,"-1,965.08",Capital,NPOWER LIMITED,147188
North East Lincolnshire Council,http://statistics.data.gov.uk/id/local-authority/00FC,Cap Learning & Child Care,Bsf - General,Bsf - General,Cap Exp Main Contract,Cap Exp Main Contract,XB01,05/01/2011,2998901,-11.83,Capital,BRITISH GAS TRADING LTD,154726
North East Lincolnshire Council,http://statistics.data.gov.uk/id/local-authority/00FC,Cap Learning & Child Care,Bsf - General,Bsf - General,Cap Exp Main Contract,Cap Exp Main Contract,XB01,05/01/2011,2999209,"1,467.61",Capital,NPOWER LIMITED,147188
North East Lincolnshire Council,http://statistics.data.gov.uk/id/local-authority/00FC,Cap Learning & Child Care,Bsf - General,Bsf - General,Cap Exp Main Contract,Cap Exp Main Contract,XB01,05/01/2011,2999210,"1,965.08",Capital,NPOWER LIMITED,147188
North East Lincolnshire Council,http://statistics.data.gov.uk/id/local-authority/00FC,Cap Learning & Child Care,Youth Capital Fund,Youth Capital Fund,Cap Exp Main Contract,Cap Exp Main Contract,XB01,24/01/2011,3008416,"3,000.00",Capital,SHALOM YOUTH CENTRE,152175
North East Lincolnshire Council,http://statistics.data.gov.uk/id/local-authority/00FC,Cap Learning & Child Care,Primary Capital Programme,Primary Capital Programme,Cap Exp Main Contract,Cap Exp Main Contract,XB01,12/01/2011,3004025,"344,553.85",Capital,GEO HOULTON & SONS LTD,181436
North East Lincolnshire Council,http://statistics.data.gov.uk/id/local-authority/00FC,Cap Learning & Child Care,Creative Play Facilities,Creative Play Facilities,Cap Exp Main Contract,Cap Exp Main Contract,XB01,28/01/2011,3011570,"3,726.71",Capital,LAPPSET UK LTD,178182
North East Lincolnshire Council,http://statistics.data.gov.uk/id/local-authority/00FC,Cap Learning & Child Care,Creative Play Facilities,Creative Play Facilities,Cap Exp Main Contract,Cap Exp Main Contract,XB01,28/01/2011,3011570,"6,153.23",Capital,LAPPSET UK LTD,178182
North East Lincolnshire Council,http://statistics.data.gov.uk/id/local-authority/00FC,Cap Learning & Child Care,Creative Play Facilities,Creative Play Facilities,Cap Exp Main Contract,Cap Exp Main Contract,XB01,28/01/2011,3011570,"1,701.67",Capital,LAPPSET UK LTD,178182
North East Lincolnshire Council,http://statistics.data.gov.uk/id/local-authority/00FC,Cap Learning & Child Care,Creative Play Facilities,Creative Play Facilities,Cap Exp Main Contract,Cap Exp Main Contract,XB01,28/01/2011,3011569,750.00,Capital,SUTCLIFFE PLAY,178383
North East Lincolnshire Council,http://statistics.data.gov.uk/id/local-authority/00FC,Cap Learning & Child Care,Creative Play Facilities,Creative Play Facilities,Cap Exp Main Contract,Cap Exp Main Contract,XB01,28/01/2011,3011569,"1,035.38",Capital,SUTCLIFFE PLAY,178383
North East Lincolnshire Council,http://statistics.data.gov.uk/id/local-authority/00FC,Cap Learning & Child Care,Creative Play Facilities,Creative Play Facilities,Cap Exp Main Contract,Cap Exp Main Contract,XB01,28/01/2011,3011569,813.35,Capital,SUTCLIFFE PLAY,178383
North East Lincolnshire Council,http://statistics.data.gov.uk/id/local-authority/00FC,Cap Learning & Child Care,Creative Play Facilities,Creative Play Facilities,Cap Exp Main Contract,Cap Exp Main Contract,XB01,28/01/2011,3011569,"1,471.19",Capital,SUTCLIFFE PLAY,178383
North East Lincolnshire Council,http://statistics.data.gov.uk/id/local-authority/00FC,Cap Learning & Child Care,Creative Play Facilities,Creative Play Facilities,Cap Exp Main Contract,Cap Exp Main Contract,XB01,28/01/2011,3011569,836.88,Capital,SUTCLIFFE PLAY,178383
North East Lincolnshire Council,http://statistics.data.gov.uk/id/local-authority/00FC,Cap Learning & Child Care,Creative Play Facilities,Creative Play Facilities,Cap Exp Main Contract,Cap Exp Main Contract,XB01,28/01/2011,3011568,"2,250.00",Capital,HAGS PLAY LTD,138922
North East Lincolnshire Council,http://statistics.data.gov.uk/id/local-authority/00FC,Cap Learning & Child Care,Creative Play Facilities,Creative Play Facilities,Cap Exp Main Contract,Cap Exp Main Contract,XB01,28/01/2011,3011568,"1,741.62",Capital,HAGS PLAY LTD,138922
North East Lincolnshire Council,http://statistics.data.gov.uk/id/local-authority/00FC,Cap Learning & Child Care,Creative Play Facilities,Creative Play Facilities,Cap Exp Main Contract,Cap Exp Main Contract,XB01,28/01/2011,3011568,"1,250.00",Capital,HAGS PLAY LTD,138922
North East Lincolnshire Council,http://statistics.data.gov.uk/id/local-authority/00FC,Cap Regeneration,Property Planned Repairs,Property Planned Repairs,Cap Exp Main Contract,Cap Exp Main Contract,XB01,12/01/2011,3004027,"29,450.00",Capital,NEWGLAZE,34838
North East Lincolnshire Council,http://statistics.data.gov.uk/id/local-authority/00FC,Cap Regeneration,Property Planned Repairs,Property Planned Repairs,Cap Exp Main Contract,Cap Exp Main Contract,XB01,28/01/2011,3011576,"114,595.75",Capital,NEWGLAZE,34838
North East Lincolnshire Council,http://statistics.data.gov.uk/id/local-authority/00FC,Cap Regeneration,Victoria St -Pedestrianisation,Victoria St -Pedestrianisation,Cap Exp Main Contract,Cap Exp Main Contract,XB01,12/01/2011,3003419,587.00,Capital,THE FOUNTAIN COMPANY LTD,169899
North East Lincolnshire Council,http://statistics.data.gov.uk/id/local-authority/00FC,Business Services,Exec Dir Business Services,Office Exec Director Corp Serv,Miscellaneous Expenses,Other Expenses General,NZ01,05/01/2011,2999511,-21.99,Revenue,NYS CORPORATE,177749
North East Lincolnshire Council,http://statistics.data.gov.uk/id/local-authority/00FC,Business Services,Exec Dir Business Services,Office Exec Director Corp Serv,Miscellaneous Expenses,Other Expenses General,NZ01,05/01/2011,2999512,-21.99,Revenue,NYS CORPORATE,177749
North East Lincolnshire Council,http://statistics.data.gov.uk/id/local-authority/00FC,Business Services,Finance & Strategic Change,Deputy Director Of Finance,Indirect Employee Expenses,Train Basic Skill - Course Fee,BX01,07/01/2011,3000948,900.00,Revenue,LEEDS METROPOLITAN UNIVERSITY,160860
North East Lincolnshire Council,http://statistics.data.gov.uk/id/local-authority/00FC,Business Services,Finance & Strategic Change,Accountancy,Direct Employee Expenses,Pay Employment Agency Staff,AA53,07/01/2011,3000955,636.54,Revenue,BADENOCH & CLARK,147483
North East Lincolnshire Council,http://statistics.data.gov.uk/id/local-authority/00FC,Business Services,Finance & Strategic Change,Accountancy,Direct Employee Expenses,Pay Employment Agency Staff,AA53,07/01/2011,3000976,730.45,Revenue,BADENOCH & CLARK,147483
North East Lincolnshire Council,http://statistics.data.gov.uk/id/local-authority/00FC,Business Services,Finance & Strategic Change,Accountancy,Direct Employee Expenses,Pay Employment Agency Staff,AA53,07/01/2011,3000907,772.19,Revenue,BADENOCH & CLARK,147483
North East Lincolnshire Council,http://statistics.data.gov.uk/id/local-authority/00FC,Business Services,Finance & Strategic Change,Accountancy,Direct Employee Expenses,Pay Employment Agency Staff,AA53,07/01/2011,3000977,952.00,Revenue,BADENOCH & CLARK,147483
North East Lincolnshire Council,http://statistics.data.gov.uk/id/local-authority/00FC,Business Services,Finance & Strategic Change,Accountancy,Direct Employee Expenses,Pay Employment Agency Staff,AA53,07/01/2011,3000956,"1,184.00",Revenue,BADENOCH & CLARK,147483
North East Lincolnshire Council,http://statistics.data.gov.uk/id/local-authority/00FC,Business Services,Finance & Strategic Change,Payroll,Printing Station & Gen Off Exp,Print & Stat General,LA01,20/01/2011,3006970,508.19,Revenue,LYRECO UK LIMITED,117289
North East Lincolnshire Council,http://statistics.data.gov.uk/id/local-authority/00FC,Business Services,Finance & Strategic Change,Payroll,Direct Employee Expenses,Pay Employment Agency Staff,AA53,07/01/2011,3000920,791.88,Revenue,ESP LTD,132218
North East Lincolnshire Council,http://statistics.data.gov.uk/id/local-authority/00FC,Business Services,Finance & Strategic Change,Payroll,Direct Employee Expenses,Pay Employment Agency Staff,AA53,21/01/2011,3007886,849.80,Revenue,ESP LTD,132218
North East Lincolnshire Council,http://statistics.data.gov.uk/id/local-authority/00FC,Business Services,Finance & Strategic Change,Payroll,Direct Employee Expenses,Pay Employment Agency Staff,AA53,07/01/2011,3000922,"1,054.87",Revenue,ESP LTD,132218
North East Lincolnshire Council,http://statistics.data.gov.uk/id/local-authority/00FC,Business Services,Finance & Strategic Change,Payroll,Direct Employee Expenses,Pay Employment Agency Staff,AA53,21/01/2011,3007884,"1,084.47",Revenue,ESP LTD,132218
North East Lincolnshire Council,http://statistics.data.gov.uk/id/local-authority/00FC,Business Services,Finance & Strategic Change,Payroll,Direct Employee Expenses,Pay Employment Agency Staff,AA53,07/01/2011,3000923,"1,086.85",Revenue,ESP LTD,132218
North East Lincolnshire Council,http://statistics.data.gov.uk/id/local-authority/00FC,Business Services,Finance & Strategic Change,Payroll,Direct Employee Expenses,Pay Employment Agency Staff,AA53,07/01/2011,3000921,"1,089.42",Revenue,ESP LTD,132218
North East Lincolnshire Council,http://statistics.data.gov.uk/id/local-authority/00FC,Business Services,Finance & Strategic Change,Payroll,Direct Employee Expenses,Pay Employment Agency Staff,AA53,27/01/2011,3011036,"1,094.37",Revenue,ESP LTD,132218
North East Lincolnshire Council,http://statistics.data.gov.uk/id/local-authority/00FC,Business Services,Finance & Strategic Change,Payroll,Communication & Computing,Comp S/Ware Maintenance,HJ31,07/01/2011,3000919,"1,393.00",Revenue,KEWILL SYSTEMS PLC,121079
North East Lincolnshire Council,http://statistics.data.gov.uk/id/local-authority/00FC,Business Services,Finance & Strategic Change,Income & Payments Service,Printing Station & Gen Off Exp,Print & Stat General,LA01,19/01/2011,3006624,-199.99,Revenue,LYRECO UK LIMITED,117289
North East Lincolnshire Council,http://statistics.data.gov.uk/id/local-authority/00FC,Business Services,Finance & Strategic Change,Income & Payments Service,Communication & Computing,Comp S/Ware Maintenance,HJ31,10/01/2011,3001619,621.17,Revenue,NORTHGATE INFORMATION SOLUTIONS UK LTD,166549
North East Lincolnshire Council,http://statistics.data.gov.uk/id/local-authority/00FC,Business Services,Finance & Strategic Change,Income & Payments Service,Expenses,Trav/Subs Off Course/Semin Fee,MA03,27/01/2011,3011040,630.00,Revenue,IRRV,116632
North East Lincolnshire Council,http://statistics.data.gov.uk/id/local-authority/00FC,Business Services,Finance & Strategic Change,Income & Payments Service,Printing Station & Gen Off Exp,Print & Stat General,LA01,20/01/2011,3006970,640.87,Revenue,LYRECO UK LIMITED,117289
North East Lincolnshire Council,http://statistics.data.gov.uk/id/local-authority/00FC,Business Services,Finance & Strategic Change,Income & Payments Service,Communication & Computing,Comp S/Ware Maintenance,HJ31,11/01/2011,3002145,996.75,Revenue,NORTHGATE INFORMATION SOLUTIONS UK LTD,166549
North East Lincolnshire Council,http://statistics.data.gov.uk/id/local-authority/00FC,Business Services,Finance & Strategic Change,Income & Payments Service,Communication & Computing,Comp S/Ware Maintenance,HJ31,10/01/2011,3001618,"2,350.00",Revenue,COACTIVA ASPIREN LTD,181407
North East Lincolnshire Council,http://statistics.data.gov.uk/id/local-authority/00FC,Business Services,Finance & Strategic Change,Income & Payments Service,Printing Station & Gen Off Exp,Postages,LE01,28/01/2011,3011551,804.92,Revenue,FINANCIAL DATA MANAGEMENT LTD,165153
North East Lincolnshire Council,http://statistics.data.gov.uk/id/local-authority/00FC,Business Services,Finance & Strategic Change,Income & Payments Service,Miscellaneous Expenses,Bankruptcy Court Costs,LS11,11/01/2011,3002130,872.10,Revenue,WILKIN CHAPMAN SOLICITORS,86523
North East Lincolnshire Council,http://statistics.data.gov.uk/id/local-authority/00FC,Business Services,Finance & Strategic Change,Income & Payments Service,Miscellaneous Expenses,Bankruptcy Court Costs,LS11,26/01/2011,3010589,"1,209.07",Revenue,WILKIN CHAPMAN SOLICITORS,86523
North East Lincolnshire Council,http://statistics.data.gov.uk/id/local-authority/00FC,Business Services,Finance & Strategic Change,Income & Payments Service,Miscellaneous Expenses,Bankruptcy Court Costs,LS11,24/01/2011,3008419,"1,368.00",Revenue,WILKIN CHAPMAN SOLICITORS,86523
North East Lincolnshire Council,http://statistics.data.gov.uk/id/local-authority/00FC,Business Services,Finance & Strategic Change,Income & Payments Service,Printing Station & Gen Off Exp,Postages,LE01,17/01/2011,3005323,991.88,Revenue,FINANCIAL DATA MANAGEMENT LTD,165153
North East Lincolnshire Council,http://statistics.data.gov.uk/id/local-authority/00FC,Business Services,Finance & Strategic Change,Deputy Director Of Finance,Expenses,Trav/Subs Off Conf-Trav & Subs,MA02,20/01/2011,3007469,-28.16,Revenue,NYS CORPORATE,177749
North East Lincolnshire Council,http://statistics.data.gov.uk/id/local-authority/00FC,Business Services,Strategic Business Support,Procurement,Consultants,Consult Work Consult+Special,PG01,17/01/2011,3005376,"5,450.00",Revenue,SPIKES CAVELL & CO,177648
North East Lincolnshire Council,http://statistics.data.gov.uk/id/local-authority/00FC,Business Services,Strategic Business Support,Web Governance,Communication & Computing,Comp S/Ware Licence Fees,HJ91,05/01/2011,2999468,531.96,Revenue,TRUSTMARQUE SOLUTIONS LTD,135447
North East Lincolnshire Council,http://statistics.data.gov.uk/id/local-authority/00FC,Business Services,Strategic Business Support,Web Governance,Communication & Computing,Comp S/Ware Maintenance,HJ31,05/01/2011,2999463,677.76,Revenue,FIRMSTEP,173996
North East Lincolnshire Council,http://statistics.data.gov.uk/id/local-authority/00FC,Business Services,Strategic Business Support,Web Governance,Communication & Computing,Comp S/Ware Maintenance,HJ31,05/01/2011,2999461,"4,189.05",Revenue,FIRMSTEP,173996
North East Lincolnshire Council,http://statistics.data.gov.uk/id/local-authority/00FC,Business Services,Strategic Business Support,Business Support (Sbs),Printing Station & Gen Off Exp,Postage Franking M/Chine Chrge,LE02,21/01/2011,3008083,"1,174.72",Revenue,ROYAL MAIL GROUP PLC,112918
North East Lincolnshire Council,http://statistics.data.gov.uk/id/local-authority/00FC,Business Services,Strategic Business Support,Business Support (Sbs),Printing Station & Gen Off Exp,Postage Franking M/Chine Chrge,LE02,10/01/2011,3001743,"1,798.52",Revenue,ROYAL MAIL GROUP PLC,112918
North East Lincolnshire Council,http://statistics.data.gov.uk/id/local-authority/00FC,Business Services,Strategic Business Support,Information Technology,Direct Employee Expenses,Pay Employment Agency Staff,AA53,19/01/2011,3006630,566.11,Revenue,BADENOCH & CLARK,147483
North East Lincolnshire Council,http://statistics.data.gov.uk/id/local-authority/00FC,Business Services,Strategic Business Support,Information Technology,Direct Employee Expenses,Pay Employment Agency Staff,AA53,06/01/2011,3000671,652.46,Revenue,BADENOCH & CLARK,147483
North East Lincolnshire Council,http://statistics.data.gov.uk/id/local-authority/00FC,Business Services,Strategic Business Support,Information Technology,Communication & Computing,Comp S/Ware Licence Fees,HJ91,13/01/2011,3004310,"19,500.00",Revenue,GLOBAL SECURE SYSTEMS LTD,172189
North East Lincolnshire Council,http://statistics.data.gov.uk/id/local-authority/00FC,Business Services,Strategic Business Support,Information Technology,Communication & Computing,Printers,HK19,31/01/2011,3011999,-466.00,Revenue,THE DESK TOP PUBLISHING GROUP,85939
North East Lincolnshire Council,http://statistics.data.gov.uk/id/local-authority/00FC,Business Services,Strategic Business Support,Information Technology,Communication & Computing,Printers,HK19,21/01/2011,3008093,516.54,Revenue,LYRECO UK LIMITED,117289
North East Lincolnshire Council,http://statistics.data.gov.uk/id/local-authority/00FC,Business Services,Strategic Business Support,Information Technology,Equipment/Furniture/Materials,Equip Purchases,HC01,31/01/2011,3004830,694.67,Revenue,HEWLETT-PACKARD LIMITED,171095
North East Lincolnshire Council,http://statistics.data.gov.uk/id/local-authority/00FC,Business Services,Strategic Business Support,Information Technology,Communication & Computing,Comp S/Ware Licence Fees,HJ91,07/01/2011,3001045,"40,253.50",Revenue,TRUSTMARQUE SOLUTIONS LTD,135447
North East Lincolnshire Council,http://statistics.data.gov.uk/id/local-authority/00FC,Business Services,Strategic Business Support,Information Technology,Communication & Computing,Comp S/Ware Licence Fees,HJ91,07/01/2011,3001046,"41,208.40",Revenue,TRUSTMARQUE SOLUTIONS LTD,135447
North East Lincolnshire Council,http://statistics.data.gov.uk/id/local-authority/00FC,Business Services,Strategic Business Support,Information Technology,Communication & Computing,Comp S/Ware Licence Fees,HJ91,31/01/2011,3011915,"124,807.95",Revenue,TRUSTMARQUE SOLUTIONS LTD,135447
North East Lincolnshire Council,http://statistics.data.gov.uk/id/local-authority/00FC,Business Services,Strategic Business Support,Information Technology,Communication & Computing,Telephone Rental Charges,LG05,19/01/2011,3006666,-22.46,Revenue,NTL,153928
North East Lincolnshire Council,http://statistics.data.gov.uk/id/local-authority/00FC,Business Services,Strategic Business Support,Information Technology,Communication & Computing,Telephone Rental Charges,LG05,05/01/2011,2999242,639.25,Revenue,NTL,153928
North East Lincolnshire Council,http://statistics.data.gov.uk/id/local-authority/00FC,Business Services,Strategic Business Support,Information Technology,Communication & Computing,Telephone Call Charges,LG06,05/01/2011,2999242,"5,518.41",Revenue,NTL,153928
North East Lincolnshire Council,http://statistics.data.gov.uk/id/local-authority/00FC,Business Services,Strategic Business Support,Information Technology,Communication & Computing,Telephone Mobile Phones,LG13,14/01/2011,3004977,"13,316.93",Revenue,VODAFONE LIMITED,139012
North East Lincolnshire Council,http://statistics.data.gov.uk/id/local-authority/00FC,Business Services,Strategic Business Support,Information Technology,Communication & Computing,Comp Equip Pc Equipt,HK02,27/01/2011,3011087,529.54,Revenue,DELL COMPUTER CORPORATION LTD,79790
North East Lincolnshire Council,http://statistics.data.gov.uk/id/local-authority/00FC,Business Services,Strategic Business Support,Information Technology,Communication & Computing,Comp Equip Pc Equipt,HK02,27/01/2011,3011087,532.63,Revenue,DELL COMPUTER CORPORATION LTD,79790
North East Lincolnshire Council,http://statistics.data.gov.uk/id/local-authority/00FC,Business Services,Strategic Business Support,Information Technology,Communication & Computing,Comp Equip Pc Equipt,HK02,31/01/2011,3004833,563.04,Revenue,DELL COMPUTER CORPORATION LTD,79790
North East Lincolnshire Council,http://statistics.data.gov.uk/id/local-authority/00FC,Business Services,Strategic Business Support,Information Technology,Communication & Computing,Comp Equip Pc Equipt,HK02,11/01/2011,3003018,586.75,Revenue,DELL COMPUTER CORPORATION LTD,79790
North East Lincolnshire Council,http://statistics.data.gov.uk/id/local-authority/00FC,Business Services,Strategic Business Support,Information Technology,Communication & Computing,Comp Equip Pc Equipt,HK02,27/01/2011,3011271,"1,767.00",Revenue,INSIGHT DIRECT (UK) LTD,102482
North East Lincolnshire Council,http://statistics.data.gov.uk/id/local-authority/00FC,Business Services,Strategic Business Support,Information Technology,Communication & Computing,Comp Equip Pc Equipt,HK02,20/01/2011,3007075,"3,148.20",Revenue,DELL COMPUTER CORPORATION LTD,79790
North East Lincolnshire Council,http://statistics.data.gov.uk/id/local-authority/00FC,Business Services,Strategic Business Support,Information Technology,Communication & Computing,Comp Equip Pc Equipt,HK02,20/01/2011,3007076,"4,801.50",Revenue,DELL COMPUTER CORPORATION LTD,79790
North East Lincolnshire Council,http://statistics.data.gov.uk/id/local-authority/00FC,Business Services,Strategic Business Support,Information Technology,Consultants,Consult Work Consult+Special,PG01,06/01/2011,3000646,"1,875.00",Revenue,SOCITM CONSULTING LTD,173966
North East Lincolnshire Council,http://statistics.data.gov.uk/id/local-authority/00FC,Business Services,Strategic Business Support,Information Technology,Direct Employee Expenses,Pay Employment Agency Staff,AA53,06/01/2011,3000641,"4,272.32",Revenue,BADENOCH & CLARK,147483
North East Lincolnshire Council,http://statistics.data.gov.uk/id/local-authority/00FC,Business Services,Strategic Business Support,Information Technology,Direct Employee Expenses,Pay Employment Agency Staff,AA53,12/01/2011,3003417,"5,947.00",Revenue,REDACTED PERSONAL DATA,REDACTED PERSONAL DATA
North East Lincolnshire Council,http://statistics.data.gov.uk/id/local-authority/00FC,Business Services,Strategic Business Support,Information Technology,Direct Employee Expenses,Pay Employment Agency Staff,AA53,06/01/2011,3000683,"6,886.00",Revenue,REDACTED PERSONAL DATA,REDACTED PERSONAL DATA
North East Lincolnshire Council,http://statistics.data.gov.uk/id/local-authority/00FC,Business Services,Strategic Business Support,Information Technology,Direct Employee Expenses,Pay Employment Agency Staff,AA53,25/01/2011,3009913,575.70,Revenue,BADENOCH & CLARK,147483
North East Lincolnshire Council,http://statistics.data.gov.uk/id/local-authority/00FC,Business Services,Strategic Business Support,Information Technology,Direct Employee Expenses,Pay Employment Agency Staff,AA53,06/01/2011,3000401,719.63,Revenue,BADENOCH & CLARK,147483
North East Lincolnshire Council,http://statistics.data.gov.uk/id/local-authority/00FC,Business Services,Strategic Business Support,Information Technology,Communication & Computing,Comp Equip Data Links Excl Als,HK04,19/01/2011,3006657,-110.27,Revenue,NTL,153928
North East Lincolnshire Council,http://statistics.data.gov.uk/id/local-authority/00FC,Business Services,Strategic Business Support,Information Technology,Indirect Employee Expenses,Train Basic Skills - Trav/Subs,BX03,11/01/2011,3002111,-33.97,Revenue,NYS CORPORATE,177749
North East Lincolnshire Council,http://statistics.data.gov.uk/id/local-authority/00FC,Business Services,Strategic Business Support,Information Technology,Indirect Employee Expenses,Train Basic Skills - Trav/Subs,BX03,11/01/2011,3002110,-33.97,Revenue,NYS CORPORATE,177749
North East Lincolnshire Council,http://statistics.data.gov.uk/id/local-authority/00FC,Business Services,Strategic Business Support,Information Technology,Communication & Computing,Comp Equip Data Links Excl Als,HK04,05/01/2011,2999242,780.00,Revenue,NTL,153928
North East Lincolnshire Council,http://statistics.data.gov.uk/id/local-authority/00FC,Business Services,Strategic Business Support,Information Technology,Communication & Computing,Comp Equip Data Links Excl Als,HK04,05/01/2011,2999242,"1,131.00",Revenue,NTL,153928
North East Lincolnshire Council,http://statistics.data.gov.uk/id/local-authority/00FC,Business Services,Strategic Business Support,Information Technology,Communication & Computing,Comp Equip Purchases,HK01,20/01/2011,3007253,"1,315.25",Revenue,IMERJA LTD,174892
North East Lincolnshire Council,http://statistics.data.gov.uk/id/local-authority/00FC,Business Services,Strategic Business Support,Information Technology,Communication & Computing,Comp Equip Wan H/W & Maint,HK03,05/01/2011,2999820,"1,315.25",Revenue,IMERJA LTD,174892
North East Lincolnshire Council,http://statistics.data.gov.uk/id/local-authority/00FC,Business Services,Strategic Business Support,Information Technology,Communication & Computing,Comp Equip Data Links Excl Als,HK04,05/01/2011,2999242,"1,560.00",Revenue,NTL,153928
North East Lincolnshire Council,http://statistics.data.gov.uk/id/local-authority/00FC,Business Services,Strategic Business Support,Information Technology,Communication & Computing,Computer Consum Magnetic Media,HL41,21/01/2011,3008182,"1,975.00",Revenue,INCOMS SYSTEMS PLC,133223
North East Lincolnshire Council,http://statistics.data.gov.uk/id/local-authority/00FC,Business Services,Strategic Business Support,Information Technology,Communication & Computing,Comp S/Ware Purchases,HJ01,06/01/2011,3000684,795.00,Revenue,NCC SERVICES LIMITED,147023
North East Lincolnshire Council,http://statistics.data.gov.uk/id/local-authority/00FC,Business Services,Strategic Business Support,Information Technology,Indirect Employee Expenses,Train Basic Skill - Course Fee,BX01,26/01/2011,3010214,998.00,Revenue,QA LIMITED,174973
North East Lincolnshire Council,http://statistics.data.gov.uk/id/local-authority/00FC,Business Services,Strategic Business Support,Information Technology,Indirect Employee Expenses,Train Basic Skill - Course Fee,BX01,06/01/2011,3000682,"1,498.40",Revenue,HUBSTONE LTD,180946
North East Lincolnshire Council,http://statistics.data.gov.uk/id/local-authority/00FC,Business Services,Strategic Business Support,Information Technology,Communication & Computing,Comp S/Ware Purchases,HJ01,26/01/2011,3010201,"1,969.00",Revenue,ASTUN TECHNOLOGY LTD,181506
North East Lincolnshire Council,http://statistics.data.gov.uk/id/local-authority/00FC,Business Services,Strategic Business Support,Information Technology,Equipment/Furniture/Materials,Equip Repairs & Maintenance,HC31,07/01/2011,3001011,561.00,Revenue,FREELANCE OFFSET SERVICES LTD,41144
North East Lincolnshire Council,http://statistics.data.gov.uk/id/local-authority/00FC,Business Services,Strategic Business Support,Information Technology,Other Agencies,Oth Ext Serv General,PY01,14/01/2011,3005014,"3,485.00",Revenue,PRINTTALK LIMITED,168583
North East Lincolnshire Council,http://statistics.data.gov.uk/id/local-authority/00FC,Business Services,Strategic Business Support,Information Technology,Equipment/Furniture/Materials,Off Equip Photocop Rent/Copies,HN71,07/01/2011,3000949,"6,698.73",Revenue,XEROX (UK) LIMITED,87256
North East Lincolnshire Council,http://statistics.data.gov.uk/id/local-authority/00FC,Business Services,Law & Democratic Services,Democratic Services,Miscellaneous Expenses,Other Expenses General,NZ01,11/01/2011,3002039,"28,692.33",Revenue,MEARS LTD,177642
North East Lincolnshire Council,http://statistics.data.gov.uk/id/local-authority/00FC,Business Services,Law & Democratic Services,Democratic Services,Services,Misc  Contracts External,JT01,21/01/2011,3007881,"1,504.00",Revenue,HARVERLEA CONSULTING LTD,181494
North East Lincolnshire Council,http://statistics.data.gov.uk/id/local-authority/00FC,Business Services,Law & Democratic Services,Democratic Services,Printing Station & Gen Off Exp,Postages,LE01,05/01/2011,2999542,"1,850.00",Revenue,NEOPOST LTD,70085
North East Lincolnshire Council,http://statistics.data.gov.uk/id/local-authority/00FC,Business Services,Law & Democratic Services,Legal Services,Printing Station & Gen Off Exp,Books Etc Purchases,KC06,26/01/2011,3010226,"-1,053.00",Revenue,LEXISNEXIS UK,150444
North East Lincolnshire Council,http://statistics.data.gov.uk/id/local-authority/00FC,Business Services,Law & Democratic Services,Legal Services,Printing Station & Gen Off Exp,Books Etc Purchases,KC06,21/01/2011,3008074,-389.45,Revenue,LEXISNEXIS UK,150444
North East Lincolnshire Council,http://statistics.data.gov.uk/id/local-authority/00FC,Business Services,Law & Democratic Services,Legal Services,Indirect Employee Expenses,Train Basic Skills - Trav/Subs,BX03,05/01/2011,2998767,-182.40,Revenue,NYS CORPORATE,177749
North East Lincolnshire Council,http://statistics.data.gov.uk/id/local-authority/00FC,Business Services,Law & Democratic Services,Legal Services,Indirect Employee Expenses,Train Basic Skills - Trav/Subs,BX03,25/01/2011,3009864,-16.12,Revenue,NYS CORPORATE,177749
North East Lincolnshire Council,http://statistics.data.gov.uk/id/local-authority/00FC,Business Services,Law & Democratic Services,Legal Services,Printing Station & Gen Off Exp,Books Etc Purchases,KC06,20/01/2011,3007316,767.00,Revenue,LEXISNEXIS UK,150444
North East Lincolnshire Council,http://statistics.data.gov.uk/id/local-authority/00FC,Business Services,Law & Democratic Services,Legal Services,Printing Station & Gen Off Exp,Books Etc Purchases,KC06,05/01/2011,2999539,"1,052.45",Revenue,LEXISNEXIS UK,150444
North East Lincolnshire Council,http://statistics.data.gov.uk/id/local-authority/00FC,Business Services,Law & Democratic Services,Legal Services,Printing Station & Gen Off Exp,Books Etc Purchases,KC06,26/01/2011,3010225,"1,053.00",Revenue,LEXISNEXIS UK,150444
North East Lincolnshire Council,http://statistics.data.gov.uk/id/local-authority/00FC,Business Services,Law & Democratic Services,Legal Services,Printing Station & Gen Off Exp,Books Etc Library Books Pchses,KC01,10/01/2011,3001752,"5,890.00",Revenue,LEXISNEXIS UK,150444
North East Lincolnshire Council,http://statistics.data.gov.uk/id/local-authority/00FC,Business Services,Law & Democratic Services,Legal Services,Grants & Subscriptions,Subscriptions General,MH01,05/01/2011,2998741,"7,788.00",Revenue,SWEET & MAXWELL LTD,2376
North East Lincolnshire Council,http://statistics.data.gov.uk/id/local-authority/00FC,Business Services,Law & Democratic Services,Legal Services,Miscellaneous Expenses,Legal Fees General,LS01,13/01/2011,3004345,503.59,Revenue,REDACTED PERSONAL DATA,REDACTED PERSONAL DATA
North East Lincolnshire Council,http://statistics.data.gov.uk/id/local-authority/00FC,Business Services,Law & Democratic Services,Legal Services,Direct Employee Expenses,Pay Employment Agency Staff,AA53,13/01/2011,3004348,528.00,Revenue,REDACTED PERSONAL DATA,REDACTED PERSONAL DATA
North East Lincolnshire Council,http://statistics.data.gov.uk/id/local-authority/00FC,Business Services,Law & Democratic Services,Legal Services,Direct Employee Expenses,Pay Employment Agency Staff,AA53,10/01/2011,3001757,800.00,Revenue,REDACTED PERSONAL DATA,REDACTED PERSONAL DATA
North East Lincolnshire Council,http://statistics.data.gov.uk/id/local-authority/00FC,Business Services,Law & Democratic Services,Legal Services,Direct Employee Expenses,Pay Employment Agency Staff,AA53,13/01/2011,3004349,816.00,Revenue,REDACTED PERSONAL DATA,REDACTED PERSONAL DATA
North East Lincolnshire Council,http://statistics.data.gov.uk/id/local-authority/00FC,Business Services,Law & Democratic Services,Legal Services,Miscellaneous Expenses,Legal Fees General,LS01,13/01/2011,3004346,939.85,Revenue,REDACTED PERSONAL DATA,REDACTED PERSONAL DATA
North East Lincolnshire Council,http://statistics.data.gov.uk/id/local-authority/00FC,Business Services,Law & Democratic Services,Legal Services,Direct Employee Expenses,Pay Employment Agency Staff,AA53,24/01/2011,3008446,"1,185.28",Revenue,BADENOCH & CLARK,147483
North East Lincolnshire Council,http://statistics.data.gov.uk/id/local-authority/00FC,Business Services,Law & Democratic Services,Legal Services,Direct Employee Expenses,Pay Employment Agency Staff,AA53,11/01/2011,3002891,"1,185.28",Revenue,BADENOCH & CLARK,147483
North East Lincolnshire Council,http://statistics.data.gov.uk/id/local-authority/00FC,Business Services,Law & Democratic Services,Legal Services,Direct Employee Expenses,Pay Employment Agency Staff,AA53,11/01/2011,3002054,"1,185.28",Revenue,BADENOCH & CLARK,147483
North East Lincolnshire Council,http://statistics.data.gov.uk/id/local-authority/00FC,Business Services,Law & Democratic Services,Legal Services,Direct Employee Expenses,Pay Employment Agency Staff,AA53,11/01/2011,3002040,"2,805.00",Revenue,HENRIQUES TRAINING LTD,161802
North East Lincolnshire Council,http://statistics.data.gov.uk/id/local-authority/00FC,Business Services,Law & Democratic Services,Legal Services,Direct Employee Expenses,Pay Employment Agency Staff,AA53,05/01/2011,2998765,"6,123.52",Revenue,AD LITEM LEGAL SERVICES,173702
North East Lincolnshire Council,http://statistics.data.gov.uk/id/local-authority/00FC,Business Services,Law & Democratic Services,Legal Services,Miscellaneous Expenses,Legal Fees General,LS01,13/01/2011,3004408,"11,789.25",Revenue,REDACTED PERSONAL DATA,REDACTED PERSONAL DATA
North East Lincolnshire Council,http://statistics.data.gov.uk/id/local-authority/00FC,Business Services,Law & Democratic Services,Legal Services,Miscellaneous Expenses,Legal Fees Court Costs,LS02,27/01/2011,3010856,"1,900.00",Revenue,REDACTED PERSONAL DATA,REDACTED PERSONAL DATA
North East Lincolnshire Council,http://statistics.data.gov.uk/id/local-authority/00FC,Business Services,Law & Democratic Services,Coroners,Other Agencies,Oth Ext Serv Post Mortems,PY12,25/01/2011,3009915,535.40,Revenue,REDACTED PERSONAL DATA,REDACTED PERSONAL DATA
North East Lincolnshire Council,http://statistics.data.gov.uk/id/local-authority/00FC,Business Services,Law & Democratic Services,Coroners,Other Agencies,Oth Ext Serv Post Mortems,PY12,25/01/2011,3009912,554.00,Revenue,REDACTED PERSONAL DATA,REDACTED PERSONAL DATA
North East Lincolnshire Council,http://statistics.data.gov.uk/id/local-authority/00FC,Business Services,Law & Democratic Services,Coroners,Other Agencies,Oth Ext Serv Post Mortems,PY12,25/01/2011,3009873,562.20,Revenue,REDACTED PERSONAL DATA,REDACTED PERSONAL DATA
North East Lincolnshire Council,http://statistics.data.gov.uk/id/local-authority/00FC,Business Services,Law & Democratic Services,Coroners,Other Agencies,Oth Ext Serv Post Mortems,PY12,31/01/2011,3011952,677.60,Revenue,REDACTED PERSONAL DATA,REDACTED PERSONAL DATA
North East Lincolnshire Council,http://statistics.data.gov.uk/id/local-authority/00FC,Business Services,Law & Democratic Services,Coroners,Other Agencies,Oth Ext Serv Post Mortems,PY12,19/01/2011,3006615,757.70,Revenue,REDACTED PERSONAL DATA,REDACTED PERSONAL DATA
North East Lincolnshire Council,http://statistics.data.gov.uk/id/local-authority/00FC,Business Services,Law & Democratic Services,Coroners,Other Agencies,Oth Ext Serv Post Mortems,PY12,19/01/2011,3006614,908.00,Revenue,REDACTED PERSONAL DATA,REDACTED PERSONAL DATA
North East Lincolnshire Council,http://statistics.data.gov.uk/id/local-authority/00FC,Business Services,Law & Democratic Services,Coroners,Other Agencies,Oth Ext Serv Post Mortems,PY12,25/01/2011,3009911,"1,011.20",Revenue,REDACTED PERSONAL DATA,REDACTED PERSONAL DATA
North East Lincolnshire Council,http://statistics.data.gov.uk/id/local-authority/00FC,Business Services,Law & Democratic Services,Coroners,Other Agencies,Oth Ext Serv Post Mortems,PY12,11/01/2011,3002046,"1,355.20",Revenue,REDACTED PERSONAL DATA,REDACTED PERSONAL DATA
North East Lincolnshire Council,http://statistics.data.gov.uk/id/local-authority/00FC,Business Services,Law & Democratic Services,Coroners,Other Agencies,Oth Ext Serv Post Mortems,PY12,25/01/2011,3009881,"1,739.80",Revenue,REDACTED PERSONAL DATA,REDACTED PERSONAL DATA
North East Lincolnshire Council,http://statistics.data.gov.uk/id/local-authority/00FC,Business Services,Law & Democratic Services,Coroners,Miscellaneous Expenses,Other Expenses General,NZ01,11/01/2011,3002095,"2,390.00",Revenue,REDACTED PERSONAL DATA,REDACTED PERSONAL DATA
North East Lincolnshire Council,http://statistics.data.gov.uk/id/local-authority/00FC,Business Services,Law & Democratic Services,Coroners,Other Agencies,Oth Ext Serv Post Mortems,PY12,05/01/2011,2998804,"2,655.00",Revenue,SHEFFIELD TEACHING HOSPITALS NHS TRUST,130147
North East Lincolnshire Council,http://statistics.data.gov.uk/id/local-authority/00FC,Business Services,Law & Democratic Services,Registrars,Miscellaneous Expenses,Other Expenses General,NZ01,10/01/2011,3001328,-33.37,Revenue,INSIGHT DIRECT (UK) LTD,102482
North East Lincolnshire Council,http://statistics.data.gov.uk/id/local-authority/00FC,Chief Executive,Chief Executive,Recharges To Corp Management,Other Agencies,Audit Commission Fees,PA01,21/01/2011,3008184,"-3,300.00",Revenue,AUDIT COMMISSION,177
North East Lincolnshire Council,http://statistics.data.gov.uk/id/local-authority/00FC,Chief Executive,Chief Executive,Recharges To Corp Management,Other Agencies,Audit Commission Fees,PA01,21/01/2011,3008185,626.00,Revenue,AUDIT COMMISSION,177
North East Lincolnshire Council,http://statistics.data.gov.uk/id/local-authority/00FC,Chief Executive,Chief Executive,Recharges To Corp Management,Other Agencies,Audit Commission Fees,PA01,21/01/2011,3008184,855.00,Revenue,AUDIT COMMISSION,177
North East Lincolnshire Council,http://statistics.data.gov.uk/id/local-authority/00FC,Chief Executive,Chief Executive,Recharges To Corp Management,Other Agencies,Audit Commission Fees,PA01,21/01/2011,3008185,935.00,Revenue,AUDIT COMMISSION,177
North East Lincolnshire Council,http://statistics.data.gov.uk/id/local-authority/00FC,Chief Executive,Chief Executive,Recharges To Corp Management,Other Agencies,Audit Commission Fees,PA01,21/01/2011,3008184,"2,380.00",Revenue,AUDIT COMMISSION,177
North East Lincolnshire Council,http://statistics.data.gov.uk/id/local-authority/00FC,Chief Executive,Chief Executive,Recharges To Corp Management,Other Agencies,Audit Commission Fees,PA01,21/01/2011,3008185,"8,838.75",Revenue,AUDIT COMMISSION,177
North East Lincolnshire Council,http://statistics.data.gov.uk/id/local-authority/00FC,Chief Executive,Chief Executive,Recharges To Corp Management,Other Agencies,Audit Commission Fees,PA01,21/01/2011,3008184,"24,383.00",Revenue,AUDIT COMMISSION,177
North East Lincolnshire Council,http://statistics.data.gov.uk/id/local-authority/00FC,Chief Executive,Chief Executive,Recharges To Corp Management,Other Agencies,Audit Commission Fees,PA01,21/01/2011,3008185,"24,383.00",Revenue,AUDIT COMMISSION,177
North East Lincolnshire Council,http://statistics.data.gov.uk/id/local-authority/00FC,Chief Executive,Chief Executive,Chief Exec & Support,Grants & Subscriptions,Grnt Vol Org General,MG04,25/01/2011,3009087,500.00,Revenue,ROTARY CLUB OF CLEETHORPES,161001
North East Lincolnshire Council,http://statistics.data.gov.uk/id/local-authority/00FC,Chief Executive,Chief Executive,Chief Exec & Support,Grants & Subscriptions,Grnt Vol Org General,MG04,17/01/2011,3005318,500.00,Revenue,HUMBERSTON METHODIST CHURCH,165599
North East Lincolnshire Council,http://statistics.data.gov.uk/id/local-authority/00FC,Chief Executive,Chief Executive,Chief Exec & Support,Miscellaneous Expenses,Other Expenses General,NZ01,05/01/2011,2998882,500.00,Revenue,VOLUNTARY ACTION NORTH EAST LINCS,180458
North East Lincolnshire Council,http://statistics.data.gov.uk/id/local-authority/00FC,Chief Executive,Chief Executive,Chief Exec & Support,Miscellaneous Expenses,Other Expenses General,NZ01,05/01/2011,2998885,500.00,Revenue,FRIENDS OF GRIMSBY & CLEETHORPES,181266
North East Lincolnshire Council,http://statistics.data.gov.uk/id/local-authority/00FC,Chief Executive,Chief Executive,Chief Exec & Support,Miscellaneous Expenses,Other Expenses General,NZ01,05/01/2011,2998880,"1,000.00",Revenue,"ST MICHAEL'S, LITTLE COATES",145357
North East Lincolnshire Council,http://statistics.data.gov.uk/id/local-authority/00FC,Chief Executive,Chief Executive,Chief Exec & Support,Grants & Subscriptions,Grnt Vol Org General,MG04,17/01/2011,3005316,"2,000.00",Revenue,TOURISM NORTH EAST LINCS,181186
North East Lincolnshire Council,http://statistics.data.gov.uk/id/local-authority/00FC,Chief Executive,Chief Executive,Chief Exec & Support,Miscellaneous Expenses,Other Expenses General,NZ01,05/01/2011,2998887,"2,000.00",Revenue,DISABILITY ACTIVE,170593
North East Lincolnshire Council,http://statistics.data.gov.uk/id/local-authority/00FC,Chief Executive,Chief Executive,Chief Exec & Support,Miscellaneous Expenses,Other Expenses General,NZ01,05/01/2011,2998870,"2,000.00",Revenue,YARBOROUGH RESIDENT'S ACTION GROUP,90975
North East Lincolnshire Council,http://statistics.data.gov.uk/id/local-authority/00FC,Chief Executive,Chief Executive,Chief Exec & Support,Miscellaneous Expenses,Other Expenses General,NZ01,05/01/2011,2998873,"2,500.00",Revenue,LITTLECOATES COMMUNITY CENTRE,166160
North East Lincolnshire Council,http://statistics.data.gov.uk/id/local-authority/00FC,Chief Executive,Chief Executive,Chief Exec & Support,Miscellaneous Expenses,Other Expenses General,NZ01,05/01/2011,2998875,"3,000.00",Revenue,YARBOROUGH FORWARD,170213
North East Lincolnshire Council,http://statistics.data.gov.uk/id/local-authority/00FC,Chief Executive,Chief Executive,Chief Exec & Support,Grants & Subscriptions,Grnt Vol Org General,MG04,17/01/2011,3005313,"5,000.00",Revenue,CLEETHORPES EVENTS LTD,171302
North East Lincolnshire Council,http://statistics.data.gov.uk/id/local-authority/00FC,Chief Executive,Chief Executive,Chief Exec & Support,Grants & Subscriptions,Grnt Vol Org General,MG04,20/01/2011,3006977,"7,116.90",Revenue,N CARTER ELECTRICAL,166841
North East Lincolnshire Council,http://statistics.data.gov.uk/id/local-authority/00FC,Children & Family Services,Commissioning Pships & Perform,School Access Govrn Stdnt Serv,Communication & Computing,Comp S/Ware Licence Fees,HJ91,31/01/2011,3012184,"1,225.00",Revenue,ARC SYSTEMS,115115
North East Lincolnshire Council,http://statistics.data.gov.uk/id/local-authority/00FC,Children & Family Services,Commissioning Pships & Perform,Cfs Assets & Pc Programme,Printing Station & Gen Off Exp,Print & Stat General,LA01,25/01/2011,3009143,"1,253.97",Revenue,LYRECO UK LIMITED,117289
North East Lincolnshire Council,http://statistics.data.gov.uk/id/local-authority/00FC,Children & Family Services,Commissioning Pships & Perform,Commissioning & Performance,Printing Station & Gen Off Exp,Postage Franking M/Chine Chrge,LE02,24/01/2011,3008471,912.00,Revenue,NEOPOST LTD,70085
North East Lincolnshire Council,http://statistics.data.gov.uk/id/local-authority/00FC,Children & Family Services,Commissioning Pships & Perform,Commissioning Of Bsf,Rents,Rent Portacabins,FJ06,05/01/2011,2998868,"22,354.53",Revenue,PORTAKABIN LTD,133283
North East Lincolnshire Council,http://statistics.data.gov.uk/id/local-authority/00FC,Children & Family Services,Commissioning Pships & Perform,Commissioning & Performance,Communication & Computing,Comp S/Ware Purchases,HJ01,04/01/2011,2998646,755.00,Revenue,NCC SERVICES LIMITED,147023
North East Lincolnshire Council,http://statistics.data.gov.uk/id/local-authority/00FC,Children & Family Services,Commissioning Pships & Perform,Commissioning & Performance,Catering,Provisions Milk,KG02,28/01/2011,3011542,"7,795.34",Revenue,DAIRY CREST LTD,164121
North East Lincolnshire Council,http://statistics.data.gov.uk/id/local-authority/00FC,Children & Family Services,Commissioning Pships & Perform,Commissioning & Performance,Catering,Purchase School Meals,KH01,12/01/2011,3003352,REDACTED COMMERCIALLY SENSITIVE INFORMATION,Revenue,CYGNET FOODS,153360
North East Lincolnshire Council,http://statistics.data.gov.uk/id/local-authority/00FC,Children & Family Services,Commissioning Pships & Perform,Commissioning & Performance,Catering,Purchase School Meals,KH01,12/01/2011,3003353,REDACTED COMMERCIALLY SENSITIVE INFORMATION,Revenue,CYGNET FOODS,153360
North East Lincolnshire Council,http://statistics.data.gov.uk/id/local-authority/00FC,Children & Family Services,Commissioning Pships & Perform,Additional & Enhanced Needs,Private Contractors,Children And Families Tpp,QC01,24/01/2011,3008578,"1,520.00",Revenue,DKM ASSESSMENT & VERIFICATION LTD,161171
North East Lincolnshire Council,http://statistics.data.gov.uk/id/local-authority/00FC,Children & Family Services,Commissioning Pships & Perform,Additional & Enhanced Needs,Other Local Authorities,Oth Local Auth General,QG01,24/01/2011,3008816,"2,475.00",Revenue,DKM ASSESSMENT & VERIFICATION LTD,161171
North East Lincolnshire Council,http://statistics.data.gov.uk/id/local-authority/00FC,Children & Family Services,Commissioning Pships & Perform,Additional & Enhanced Needs,Private Contractors,Children And Families Tpp,QC01,24/01/2011,3008587,"2,660.00",Revenue,DKM ASSESSMENT & VERIFICATION LTD,161171
North East Lincolnshire Council,http://statistics.data.gov.uk/id/local-authority/00FC,Children & Family Services,Commissioning Pships & Perform,Additional & Enhanced Needs,Contributions To Provisions,Contributions To Funds,NV01,24/01/2011,3008592,"3,135.00",Revenue,DKM ASSESSMENT & VERIFICATION LTD,161171
North East Lincolnshire Council,http://statistics.data.gov.uk/id/local-authority/00FC,Children & Family Services,Commissioning Pships & Perform,Additional & Enhanced Needs,Private Contractors,Outside Contractors,QH01,05/01/2011,2999451,"3,660.00",Revenue,RAINBOW,172872
North East Lincolnshire Council,http://statistics.data.gov.uk/id/local-authority/00FC,Children & Family Services,Commissioning Pships & Perform,Additional & Enhanced Needs,Other Local Authorities,Oth Local Auth General,QG01,24/01/2011,3008577,"3,900.00",Revenue,LINKAGE COMMUNITY TRUST,39525
North East Lincolnshire Council,http://statistics.data.gov.uk/id/local-authority/00FC,Children & Family Services,Commissioning Pships & Perform,Additional & Enhanced Needs,Private Contractors,Outside Contractors,QH01,24/01/2011,3008590,"7,980.00",Revenue,DKM ASSESSMENT & VERIFICATION LTD,161171
North East Lincolnshire Council,http://statistics.data.gov.uk/id/local-authority/00FC,Children & Family Services,Commissioning Pships & Perform,Additional & Enhanced Needs,Private Contractors,Children And Families Tpp,QC01,24/01/2011,3008819,"11,957.01",Revenue,QUALITY TIME CARE LTD,178943
North East Lincolnshire Council,http://statistics.data.gov.uk/id/local-authority/00FC,Children & Family Services,Commissioning Pships & Perform,Additional & Enhanced Needs,Other Local Authorities,Oth Local Auth General,QG01,05/01/2011,2999454,"15,707.33",Revenue,DONCASTER DEAF TRUST,134729
North East Lincolnshire Council,http://statistics.data.gov.uk/id/local-authority/00FC,Children & Family Services,Commissioning Pships & Perform,Additional & Enhanced Needs,Other Local Authorities,Oth Local Auth General,QG01,05/01/2011,2999454,"18,117.67",Revenue,DONCASTER DEAF TRUST,134729
North East Lincolnshire Council,http://statistics.data.gov.uk/id/local-authority/00FC,Children & Family Services,Commissioning Pships & Perform,Additional & Enhanced Needs,Other Local Authorities,Oth Local Auth General,QG01,24/01/2011,3008821,"25,537.43",Revenue,BARNARDO SERVICES LTD,43844
North East Lincolnshire Council,http://statistics.data.gov.uk/id/local-authority/00FC,Children & Family Services,Commissioning Pships & Perform,Additional & Enhanced Needs,Other Local Authorities,Oth Local Auth General,QG01,05/01/2011,2999458,"72,115.52",Revenue,KINGSTON UPON HULL CITY COUNCIL,1420
North East Lincolnshire Council,http://statistics.data.gov.uk/id/local-authority/00FC,Children & Family Services,Commissioning Pships & Perform,Additional & Enhanced Needs,Direct Employee Expenses,Pay Employment Agency Staff,AA53,11/01/2011,3002625,550.00,Revenue,RANDSTAD EDUCATION LTD,178168
North East Lincolnshire Council,http://statistics.data.gov.uk/id/local-authority/00FC,Children & Family Services,Commissioning Pships & Perform,Additional & Enhanced Needs,Direct Employee Expenses,Pay Employment Agency Staff,AA53,11/01/2011,3002831,550.00,Revenue,RANDSTAD EDUCATION LTD,178168
North East Lincolnshire Council,http://statistics.data.gov.uk/id/local-authority/00FC,Children & Family Services,Commissioning Pships & Perform,Additional & Enhanced Needs,Direct Employee Expenses,Pay Employment Agency Staff,AA53,11/01/2011,3002839,550.00,Revenue,RANDSTAD EDUCATION LTD,178168
North East Lincolnshire Council,http://statistics.data.gov.uk/id/local-authority/00FC,Children & Family Services,Commissioning Pships & Perform,Additional & Enhanced Needs,Contributions To Provisions,Contributions To Funds,NV01,24/01/2011,3008580,950.00,Revenue,DKM ASSESSMENT & VERIFICATION LTD,161171
North East Lincolnshire Council,http://statistics.data.gov.uk/id/local-authority/00FC,Children & Family Services,Commissioning Pships & Perform,Additional & Enhanced Needs,Contributions To Provisions,Contributions To Funds,NV01,24/01/2011,3008591,"1,330.00",Revenue,DKM ASSESSMENT & VERIFICATION LTD,161171
North East Lincolnshire Council,http://statistics.data.gov.uk/id/local-authority/00FC,Children & Family Services,Commissioning Pships & Perform,Additional & Enhanced Needs,Contributions To Provisions,Contributions To Funds,NV01,24/01/2011,3008585,"1,330.00",Revenue,DKM ASSESSMENT & VERIFICATION LTD,161171
North East Lincolnshire Council,http://statistics.data.gov.uk/id/local-authority/00FC,Children & Family Services,Commissioning Pships & Perform,Additional & Enhanced Needs,Contributions To Provisions,Contributions To Funds,NV01,24/01/2011,3008815,"1,330.00",Revenue,DKM ASSESSMENT & VERIFICATION LTD,161171
North East Lincolnshire Council,http://statistics.data.gov.uk/id/local-authority/00FC,Children & Family Services,Commissioning Pships & Perform,Additional & Enhanced Needs,Contributions To Provisions,Contributions To Funds,NV01,24/01/2011,3008583,"1,805.00",Revenue,DKM ASSESSMENT & VERIFICATION LTD,161171
North East Lincolnshire Council,http://statistics.data.gov.uk/id/local-authority/00FC,Children & Family Services,Commissioning Pships & Perform,Additional & Enhanced Needs,Contributions To Provisions,Contributions To Funds,NV01,24/01/2011,3008817,"2,280.00",Revenue,DKM ASSESSMENT & VERIFICATION LTD,161171
North East Lincolnshire Council,http://statistics.data.gov.uk/id/local-authority/00FC,Children & Family Services,Commissioning Pships & Perform,Additional & Enhanced Needs,Contributions To Provisions,Contributions To Funds,NV01,11/01/2011,3002411,"8,670.00",Revenue,SPACE PROJECT,151592
North East Lincolnshire Council,http://statistics.data.gov.uk/id/local-authority/00FC,Children & Family Services,Commissioning Pships & Perform,Cfs Assets & Pc Programme,Repairs & Maintenance,R & M Build Gen (Schools),CA04,05/01/2011,2999528,785.00,Revenue,ETON-LINCS LIMITED,155368
North East Lincolnshire Council,http://statistics.data.gov.uk/id/local-authority/00FC,Children & Family Services,Commissioning Pships & Perform,Childrens Trust,Miscellaneous Expenses,Misc Ins General,NY01,26/01/2011,3010157,500.00,Revenue,NORTHGATE VEHICLE HIRE,179268
North East Lincolnshire Council,http://statistics.data.gov.uk/id/local-authority/00FC,Children & Family Services,Commissioning Pships & Perform,School Access Govrn Stdnt Serv,Contract Hire/Operating Leases,Cont Veh Sen School,GN08,10/01/2011,3001335,REDACTED COMMERCIALLY SENSITIVE INFORMATION,Revenue,LINKS TAXIS,1524
North East Lincolnshire Council,http://statistics.data.gov.uk/id/local-authority/00FC,Children & Family Services,Commissioning Pships & Perform,School Access Govrn Stdnt Serv,Contract Hire/Operating Leases,Cont Veh Sen School,GN08,24/01/2011,3008545,REDACTED COMMERCIALLY SENSITIVE INFORMATION,Revenue,AA RADIO CARS LTD,131207
North East Lincolnshire Council,http://statistics.data.gov.uk/id/local-authority/00FC,Children & Family Services,Commissioning Pships & Perform,School Access Govrn Stdnt Serv,Contract Hire/Operating Leases,Cont Veh Sen School,GN08,24/01/2011,3008564,REDACTED COMMERCIALLY SENSITIVE INFORMATION,Revenue,WHEELCHAIR FRIENDLY TAXI SERVICE,168857
North East Lincolnshire Council,http://statistics.data.gov.uk/id/local-authority/00FC,Children & Family Services,Commissioning Pships & Perform,School Access Govrn Stdnt Serv,Contract Hire/Operating Leases,Cont Veh Sen School,GN08,17/01/2011,3005353,REDACTED COMMERCIALLY SENSITIVE INFORMATION,Revenue,AMVALE LIMITED,106463
North East Lincolnshire Council,http://statistics.data.gov.uk/id/local-authority/00FC,Children & Family Services,Commissioning Pships & Perform,School Access Govrn Stdnt Serv,Contract Hire/Operating Leases,Cont Vehicle Disaffected,GN16,17/01/2011,3005735,REDACTED COMMERCIALLY SENSITIVE INFORMATION,Revenue,LINKS TAXIS,1524
North East Lincolnshire Council,http://statistics.data.gov.uk/id/local-authority/00FC,Children & Family Services,Commissioning Pships & Perform,School Access Govrn Stdnt Serv,Contract Hire/Operating Leases,Cont Vehicle Cont Vehicle,GN09,17/01/2011,3005352,REDACTED COMMERCIALLY SENSITIVE INFORMATION,Revenue,AMVALE LIMITED,106463
North East Lincolnshire Council,http://statistics.data.gov.uk/id/local-authority/00FC,Children & Family Services,Commissioning Pships & Perform,School Access Govrn Stdnt Serv,Contract Hire/Operating Leases,Cont Vehicle Cont Vehicle,GN09,19/01/2011,3006692,REDACTED COMMERCIALLY SENSITIVE INFORMATION,Revenue,THE BUS RUN,155905
North East Lincolnshire Council,http://statistics.data.gov.uk/id/local-authority/00FC,Children & Family Services,Commissioning Pships & Perform,School Access Govrn Stdnt Serv,Contract Hire/Operating Leases,Cont Vehicle Cont Vehicle,GN09,19/01/2011,3006691,REDACTED COMMERCIALLY SENSITIVE INFORMATION,Revenue,HUXMANOR LTD,150193
North East Lincolnshire Council,http://statistics.data.gov.uk/id/local-authority/00FC,Children & Family Services,Commissioning Pships & Perform,School Access Govrn Stdnt Serv,Contract Hire/Operating Leases,Cont Vehicle Cont Vehicle,GN09,10/01/2011,3001316,REDACTED COMMERCIALLY SENSITIVE INFORMATION,Revenue,SHERWOOD TRAVEL,75983
North East Lincolnshire Council,http://statistics.data.gov.uk/id/local-authority/00FC,Children & Family Services,Commissioning Pships & Perform,School Access Govrn Stdnt Serv,Contract Hire/Operating Leases,Cont Vehicle Cont Vehicle,GN09,10/01/2011,3001311,REDACTED COMMERCIALLY SENSITIVE INFORMATION,Revenue,MILLMAN COACHES,41357
North East Lincolnshire Council,http://statistics.data.gov.uk/id/local-authority/00FC,Children & Family Services,Commissioning Pships & Perform,School Access Govrn Stdnt Serv,Contract Hire/Operating Leases,Cont Vehicle Cont Vehicle,GN09,10/01/2011,3001312,REDACTED COMMERCIALLY SENSITIVE INFORMATION,Revenue,MILLMAN COACHES,41357
North East Lincolnshire Council,http://statistics.data.gov.uk/id/local-authority/00FC,Children & Family Services,Commissioning Pships & Perform,School Access Govrn Stdnt Serv,Contract Hire/Operating Leases,Cont Vehicle Cont Vehicle,GN09,24/01/2011,3008554,REDACTED COMMERCIALLY SENSITIVE INFORMATION,Revenue,STAGECOACH SERVICES,146590
North East Lincolnshire Council,http://statistics.data.gov.uk/id/local-authority/00FC,Children & Family Services,Commissioning Pships & Perform,School Access Govrn Stdnt Serv,Contract Hire/Operating Leases,Cont Vehicle Cont Vehicle,GN09,24/01/2011,3008551,REDACTED COMMERCIALLY SENSITIVE INFORMATION,Revenue,STAGECOACH SERVICES,146590
North East Lincolnshire Council,http://statistics.data.gov.uk/id/local-authority/00FC,Children & Family Services,Commissioning Pships & Perform,School Access Govrn Stdnt Serv,Contract Hire/Operating Leases,Cont Veh Sen School,GN08,10/01/2011,3001378,REDACTED COMMERCIALLY SENSITIVE INFORMATION,Revenue,LINKS TAXIS,1524
North East Lincolnshire Council,http://statistics.data.gov.uk/id/local-authority/00FC,Children & Family Services,Commissioning Pships & Perform,School Access Govrn Stdnt Serv,Contract Hire/Operating Leases,Cont Veh Sen School,GN08,10/01/2011,3001382,REDACTED COMMERCIALLY SENSITIVE INFORMATION,Revenue,LINKS TAXIS,1524
North East Lincolnshire Council,http://statistics.data.gov.uk/id/local-authority/00FC,Children & Family Services,Commissioning Pships & Perform,School Access Govrn Stdnt Serv,Private Contractors,Concessionary Fares,PK01,10/01/2011,3001384,REDACTED COMMERCIALLY SENSITIVE INFORMATION,Revenue,LINKS TAXIS,1524
North East Lincolnshire Council,http://statistics.data.gov.uk/id/local-authority/00FC,Children & Family Services,Commissioning Pships & Perform,School Access Govrn Stdnt Serv,Contract Hire/Operating Leases,Cont Veh Sen School,GN08,10/01/2011,3001384,REDACTED COMMERCIALLY SENSITIVE INFORMATION,Revenue,LINKS TAXIS,1524
North East Lincolnshire Council,http://statistics.data.gov.uk/id/local-authority/00FC,Children & Family Services,Commissioning Pships & Perform,School Access Govrn Stdnt Serv,Contract Hire/Operating Leases,Cont Veh Sen School,GN08,10/01/2011,3001389,REDACTED COMMERCIALLY SENSITIVE INFORMATION,Revenue,LINKS TAXIS,1524
North East Lincolnshire Council,http://statistics.data.gov.uk/id/local-authority/00FC,Children & Family Services,Commissioning Pships & Perform,School Access Govrn Stdnt Serv,Contract Hire/Operating Leases,Cont Vehicle Sen Alone Travel,GN13,17/01/2011,3005736,REDACTED COMMERCIALLY SENSITIVE INFORMATION,Revenue,LINKS TAXIS,1524
North East Lincolnshire Council,http://statistics.data.gov.uk/id/local-authority/00FC,Children & Family Services,Commissioning Pships & Perform,School Access Govrn Stdnt Serv,Contract Hire/Operating Leases,Cont Veh Sen School,GN08,17/01/2011,3005741,REDACTED COMMERCIALLY SENSITIVE INFORMATION,Revenue,LINKS TAXIS,1524
North East Lincolnshire Council,http://statistics.data.gov.uk/id/local-authority/00FC,Children & Family Services,Commissioning Pships & Perform,School Access Govrn Stdnt Serv,Contract Hire/Operating Leases,Cont Veh Sen School,GN08,10/01/2011,3001387,REDACTED COMMERCIALLY SENSITIVE INFORMATION,Revenue,LINKS TAXIS,1524
North East Lincolnshire Council,http://statistics.data.gov.uk/id/local-authority/00FC,Children & Family Services,Commissioning Pships & Perform,School Access Govrn Stdnt Serv,Direct Transport Costs,Hired Transport Hire Vehicle,GA01,10/01/2011,3001323,REDACTED COMMERCIALLY SENSITIVE INFORMATION,Revenue,AMVALE LIMITED,106463
North East Lincolnshire Council,http://statistics.data.gov.uk/id/local-authority/00FC,Children & Family Services,Commissioning Pships & Perform,School Access Govrn Stdnt Serv,Direct Transport Costs,Hired Transport Hire Vehicle,GA01,10/01/2011,3001321,REDACTED COMMERCIALLY SENSITIVE INFORMATION,Revenue,AMVALE LIMITED,106463
North East Lincolnshire Council,http://statistics.data.gov.uk/id/local-authority/00FC,Children & Family Services,Commissioning Pships & Perform,School Access Govrn Stdnt Serv,Direct Transport Costs,Hired Transport Hire Vehicle,GA01,10/01/2011,3001320,REDACTED COMMERCIALLY SENSITIVE INFORMATION,Revenue,AMVALE LIMITED,106463
North East Lincolnshire Council,http://statistics.data.gov.uk/id/local-authority/00FC,Children & Family Services,Commissioning Pships & Perform,School Access Govrn Stdnt Serv,Direct Transport Costs,Hired Transport Hire Vehicle,GA01,24/01/2011,3008556,REDACTED COMMERCIALLY SENSITIVE INFORMATION,Revenue,AMVALE LIMITED,106463
North East Lincolnshire Council,http://statistics.data.gov.uk/id/local-authority/00FC,Children & Family Services,Commissioning Pships & Perform,School Access Govrn Stdnt Serv,Contract Hire/Operating Leases,Cont Veh Sen School,GN08,10/01/2011,3001362,REDACTED COMMERCIALLY SENSITIVE INFORMATION,Revenue,LINKS TAXIS,1524
North East Lincolnshire Council,http://statistics.data.gov.uk/id/local-authority/00FC,Children & Family Services,Commissioning Pships & Perform,School Access Govrn Stdnt Serv,Contract Hire/Operating Leases,Cont Veh Sen School,GN08,17/01/2011,3005740,REDACTED COMMERCIALLY SENSITIVE INFORMATION,Revenue,LINKS TAXIS,1524
North East Lincolnshire Council,http://statistics.data.gov.uk/id/local-authority/00FC,Children & Family Services,Commissioning Pships & Perform,School Access Govrn Stdnt Serv,Contract Hire/Operating Leases,Cont Veh Sen School,GN08,10/01/2011,3001318,REDACTED COMMERCIALLY SENSITIVE INFORMATION,Revenue,TREV'S MINIBUS,114758
North East Lincolnshire Council,http://statistics.data.gov.uk/id/local-authority/00FC,Children & Family Services,Commissioning Pships & Perform,School Access Govrn Stdnt Serv,Contract Hire/Operating Leases,Cont Veh Sen School,GN08,10/01/2011,3001367,REDACTED COMMERCIALLY SENSITIVE INFORMATION,Revenue,LINKS TAXIS,1524
North East Lincolnshire Council,http://statistics.data.gov.uk/id/local-authority/00FC,Children & Family Services,Commissioning Pships & Perform,School Access Govrn Stdnt Serv,Contract Hire/Operating Leases,Cont Veh Sen School,GN08,17/01/2011,3005357,REDACTED COMMERCIALLY SENSITIVE INFORMATION,Revenue,AMVALE LIMITED,106463
North East Lincolnshire Council,http://statistics.data.gov.uk/id/local-authority/00FC,Children & Family Services,Commissioning Pships & Perform,School Access Govrn Stdnt Serv,Contract Hire/Operating Leases,Cont Veh Sen School,GN08,19/01/2011,3006687,REDACTED COMMERCIALLY SENSITIVE INFORMATION,Revenue,HUXMANOR LTD,150193
North East Lincolnshire Council,http://statistics.data.gov.uk/id/local-authority/00FC,Children & Family Services,Commissioning Pships & Perform,School Access Govrn Stdnt Serv,Contract Hire/Operating Leases,Cont Veh Sen School,GN08,19/01/2011,3006688,REDACTED COMMERCIALLY SENSITIVE INFORMATION,Revenue,HUXMANOR LTD,150193
North East Lincolnshire Council,http://statistics.data.gov.uk/id/local-authority/00FC,Children & Family Services,Commissioning Pships & Perform,School Access Govrn Stdnt Serv,Contract Hire/Operating Leases,Cont Veh Sen School,GN08,10/01/2011,3001386,REDACTED COMMERCIALLY SENSITIVE INFORMATION,Revenue,LINKS TAXIS,1524
North East Lincolnshire Council,http://statistics.data.gov.uk/id/local-authority/00FC,Children & Family Services,Commissioning Pships & Perform,School Access Govrn Stdnt Serv,Contract Hire/Operating Leases,Cont Veh Sen School,GN08,17/01/2011,3005356,REDACTED COMMERCIALLY SENSITIVE INFORMATION,Revenue,AMVALE LIMITED,106463
North East Lincolnshire Council,http://statistics.data.gov.uk/id/local-authority/00FC,Children & Family Services,Commissioning Pships & Perform,School Access Govrn Stdnt Serv,Contract Hire/Operating Leases,Cont Veh Sen School,GN08,10/01/2011,3001365,REDACTED COMMERCIALLY SENSITIVE INFORMATION,Revenue,LINKS TAXIS,1524
North East Lincolnshire Council,http://statistics.data.gov.uk/id/local-authority/00FC,Children & Family Services,Commissioning Pships & Perform,School Access Govrn Stdnt Serv,Contract Hire/Operating Leases,Cont Veh Sen School,GN08,17/01/2011,3005354,REDACTED COMMERCIALLY SENSITIVE INFORMATION,Revenue,AMVALE LIMITED,106463
North East Lincolnshire Council,http://statistics.data.gov.uk/id/local-authority/00FC,Children & Family Services,Commissioning Pships & Perform,School Access Govrn Stdnt Serv,Contract Hire/Operating Leases,Cont Veh Sen School,GN08,17/01/2011,3005355,REDACTED COMMERCIALLY SENSITIVE INFORMATION,Revenue,AMVALE LIMITED,106463
North East Lincolnshire Council,http://statistics.data.gov.uk/id/local-authority/00FC,Children & Family Services,Commissioning Pships & Perform,School Access Govrn Stdnt Serv,Contract Hire/Operating Leases,Cont Veh Sen School,GN08,10/01/2011,3001307,REDACTED COMMERCIALLY SENSITIVE INFORMATION,Revenue,MILLMAN COACHES,41357
North East Lincolnshire Council,http://statistics.data.gov.uk/id/local-authority/00FC,Children & Family Services,Commissioning Pships & Perform,School Access Govrn Stdnt Serv,Contract Hire/Operating Leases,Cont Veh Sen School,GN08,10/01/2011,3001309,REDACTED COMMERCIALLY SENSITIVE INFORMATION,Revenue,MILLMAN COACHES,41357
North East Lincolnshire Council,http://statistics.data.gov.uk/id/local-authority/00FC,Children & Family Services,Commissioning Pships & Perform,School Access Govrn Stdnt Serv,Contract Hire/Operating Leases,Cont Veh Sen School,GN08,10/01/2011,3001314,REDACTED COMMERCIALLY SENSITIVE INFORMATION,Revenue,SHERWOOD TRAVEL,75983
North East Lincolnshire Council,http://statistics.data.gov.uk/id/local-authority/00FC,Children & Family Services,Commissioning Pships & Perform,School Access Govrn Stdnt Serv,Contract Hire/Operating Leases,Cont Veh Sen School,GN08,19/01/2011,3006681,REDACTED COMMERCIALLY SENSITIVE INFORMATION,Revenue,AMVALE LIMITED,106463
North East Lincolnshire Council,http://statistics.data.gov.uk/id/local-authority/00FC,Children & Family Services,Commissioning Pships & Perform,School Access Govrn Stdnt Serv,Contract Hire/Operating Leases,Cont Veh Sen School,GN08,17/01/2011,3005351,REDACTED COMMERCIALLY SENSITIVE INFORMATION,Revenue,AMVALE LIMITED,106463
North East Lincolnshire Council,http://statistics.data.gov.uk/id/local-authority/00FC,Children & Family Services,Commissioning Pships & Perform,Strategic Management,Miscellaneous Expenses,Other Expenses General,NZ01,25/01/2011,3009604,851.06,Revenue,S & S LEISURE LTD,101811
North East Lincolnshire Council,http://statistics.data.gov.uk/id/local-authority/00FC,Children & Family Services,Commissioning Pships & Perform,Strategic Management,Miscellaneous Expenses,Other Expenses General,NZ01,12/01/2011,3003381,"1,279.36",Revenue,BLACKPOOL BOROUGH COUNCIL,131540
North East Lincolnshire Council,http://statistics.data.gov.uk/id/local-authority/00FC,Children & Family Services,Commissioning Pships & Perform,Strategic Management,Miscellaneous Expenses,Other Expenses General,NZ01,17/01/2011,3005751,"9,357.10",Revenue,BARBARA HUGHES LIMITED,176129
North East Lincolnshire Council,http://statistics.data.gov.uk/id/local-authority/00FC,Children & Family Services,Commissioning Pships & Perform,Strategic Management,Direct Employee Expenses,Pay Admin & Clerical (General),AA02,25/01/2011,3009603,"8,418.90",Revenue,ESCRICK EDUCATION ASSOCIATES,181016
North East Lincolnshire Council,http://statistics.data.gov.uk/id/local-authority/00FC,Children & Family Services,Commissioning Pships & Perform,Strategic Management,Direct Employee Expenses,Pay Admin & Clerical (General),AA02,05/01/2011,2998854,"11,822.90",Revenue,ESCRICK EDUCATION ASSOCIATES,181016
North East Lincolnshire Council,http://statistics.data.gov.uk/id/local-authority/00FC,Children & Family Services,Commissioning Pships & Perform,Additional & Enhanced Needs,Consultants,Consult Work Consult+Special,PG01,05/01/2011,2999449,"1,245.64",Revenue,REDACTED PERSONAL DATA,REDACTED PERSONAL DATA
North East Lincolnshire Council,http://statistics.data.gov.uk/id/local-authority/00FC,Children & Family Services,Childrens Health & Famly Serv,Int Local Service Delivery,Other Agencies,Agen Serv Priv Gp Private Prov,PQ01,06/01/2011,3000313,590.40,Revenue,REDACTED PERSONAL DATA,REDACTED PERSONAL DATA
North East Lincolnshire Council,http://statistics.data.gov.uk/id/local-authority/00FC,Children & Family Services,Childrens Health & Famly Serv,Int Local Service Delivery,Other Agencies,Agen Serv Priv Gp Private Prov,PQ01,05/01/2011,2998888,590.40,Revenue,REDACTED PERSONAL DATA,REDACTED PERSONAL DATA
North East Lincolnshire Council,http://statistics.data.gov.uk/id/local-authority/00FC,Children & Family Services,Childrens Health & Famly Serv,Int Local Service Delivery,Other Agencies,Agen Ser Priv Gp Independ Prov,PQ02,05/01/2011,2999497,819.00,Revenue,LITTLE BLOSSOMS DAY NURSERY,165834
North East Lincolnshire Council,http://statistics.data.gov.uk/id/local-authority/00FC,Children & Family Services,Childrens Health & Famly Serv,Int Local Service Delivery,Other Agencies,Agen Serv Priv Gp Private Prov,PQ01,11/01/2011,3002086,885.60,Revenue,PRECIOUS TIMES CHILDCARE SERVICES,147302
North East Lincolnshire Council,http://statistics.data.gov.uk/id/local-authority/00FC,Children & Family Services,Childrens Health & Famly Serv,Int Local Service Delivery,Other Agencies,Agen Ser Priv Gp Independ Prov,PQ02,05/01/2011,2999489,936.00,Revenue,BUTTERFLIES DAY NURSERY,162921
North East Lincolnshire Council,http://statistics.data.gov.uk/id/local-authority/00FC,Children & Family Services,Childrens Health & Famly Serv,Int Local Service Delivery,Other Agencies,Agen Serv Priv Gp Private Prov,PQ01,05/01/2011,2998886,"1,180.80",Revenue,REDACTED PERSONAL DATA,REDACTED PERSONAL DATA
North East Lincolnshire Council,http://statistics.data.gov.uk/id/local-authority/00FC,Children & Family Services,Childrens Health & Famly Serv,Int Local Service Delivery,Other Agencies,Agen Serv Priv Gp Private Prov,PQ01,06/01/2011,3000298,"1,239.84",Revenue,HUMBERSTON VILLAGE NURSERY,170820
North East Lincolnshire Council,http://statistics.data.gov.uk/id/local-authority/00FC,Children & Family Services,Childrens Health & Famly Serv,Int Local Service Delivery,Other Agencies,Agen Serv Priv Gp Private Prov,PQ01,06/01/2011,3000302,"1,771.20",Revenue,FOR UNDER FIVES LTD,35461
North East Lincolnshire Council,http://statistics.data.gov.uk/id/local-authority/00FC,Children & Family Services,Childrens Health & Famly Serv,Int Local Service Delivery,Other Agencies,Agen Ser Priv Gp Independ Prov,PQ02,05/01/2011,2999491,"1,989.00",Revenue,HAVEN METHODIST PRE-SCHOOL,175445
North East Lincolnshire Council,http://statistics.data.gov.uk/id/local-authority/00FC,Children & Family Services,Childrens Health & Famly Serv,Int Local Service Delivery,Other Agencies,Agen Serv Priv Gp Private Prov,PQ01,05/01/2011,2998845,"2,656.80",Revenue,LITTLE BLOSSOMS DAY NURSERY,165834
North East Lincolnshire Council,http://statistics.data.gov.uk/id/local-authority/00FC,Children & Family Services,Childrens Health & Famly Serv,Int Local Service Delivery,Other Agencies,Agen Ser Priv Gp Independ Prov,PQ02,05/01/2011,2999492,"3,393.00",Revenue,HUMBERSTON C E PRE SCHOOL,122343
North East Lincolnshire Council,http://statistics.data.gov.uk/id/local-authority/00FC,Children & Family Services,Childrens Health & Famly Serv,Int Local Service Delivery,Other Agencies,Agen Ser Priv Gp Independ Prov,PQ02,05/01/2011,2999499,"3,393.00",Revenue,ST CHRISTOPHERS PLAYGROUP,173185
North East Lincolnshire Council,http://statistics.data.gov.uk/id/local-authority/00FC,Children & Family Services,Childrens Health & Famly Serv,Int Local Service Delivery,Other Agencies,Agen Ser Priv Gp Independ Prov,PQ02,05/01/2011,2999494,"3,510.00",Revenue,JUDY CLARK PLAYGROUP,85859
North East Lincolnshire Council,http://statistics.data.gov.uk/id/local-authority/00FC,Children & Family Services,Childrens Health & Famly Serv,Int Local Service Delivery,Other Agencies,Agen Ser Priv Gp Independ Prov,PQ02,05/01/2011,2999496,"3,510.00",Revenue,CLEETHORPES CHILDCARE,159467
North East Lincolnshire Council,http://statistics.data.gov.uk/id/local-authority/00FC,Children & Family Services,Childrens Health & Famly Serv,Int Local Service Delivery,Other Agencies,Agen Serv Priv Gp Private Prov,PQ01,06/01/2011,3000300,"3,985.20",Revenue,FOR UNDER FIVES LTD,35461
North East Lincolnshire Council,http://statistics.data.gov.uk/id/local-authority/00FC,Children & Family Services,Childrens Health & Famly Serv,Int Local Service Delivery,Other Agencies,Agen Serv Priv Gp Private Prov,PQ01,05/01/2011,2998866,"4,339.44",Revenue,THE AVENUE PLAYGROUP,89088
North East Lincolnshire Council,http://statistics.data.gov.uk/id/local-authority/00FC,Children & Family Services,Childrens Health & Famly Serv,Int Local Service Delivery,Other Agencies,Agen Serv Priv Gp Private Prov,PQ01,05/01/2011,2998805,"4,428.00",Revenue,FIRST STEPS GRIMSBY LIMITED,147040
North East Lincolnshire Council,http://statistics.data.gov.uk/id/local-authority/00FC,Children & Family Services,Childrens Health & Famly Serv,Int Local Service Delivery,Other Agencies,Agen Ser Priv Gp Independ Prov,PQ02,05/01/2011,2999500,"4,563.00",Revenue,WIZ KIDZ,177450
North East Lincolnshire Council,http://statistics.data.gov.uk/id/local-authority/00FC,Children & Family Services,Childrens Health & Famly Serv,Int Local Service Delivery,Other Agencies,Agen Serv Priv Gp Private Prov,PQ01,05/01/2011,2998808,"4,605.12",Revenue,EAST RAVENDALE PRE SCHOOL,85911
North East Lincolnshire Council,http://statistics.data.gov.uk/id/local-authority/00FC,Children & Family Services,Childrens Health & Famly Serv,Int Local Service Delivery,Other Agencies,Agen Serv Priv Gp Private Prov,PQ01,05/01/2011,2998814,"4,723.20",Revenue,LITTLE LEGS DAYCARE,164417
North East Lincolnshire Council,http://statistics.data.gov.uk/id/local-authority/00FC,Children & Family Services,Childrens Health & Famly Serv,Int Local Service Delivery,Other Agencies,Agen Ser Priv Gp Independ Prov,PQ02,05/01/2011,2999485,"4,797.00",Revenue,GREAT COATES PRIMARY SCHOOL,115378
North East Lincolnshire Council,http://statistics.data.gov.uk/id/local-authority/00FC,Children & Family Services,Childrens Health & Famly Serv,Int Local Service Delivery,Other Agencies,Agen Serv Priv Gp Private Prov,PQ01,06/01/2011,3000297,"5,313.60",Revenue,BUTTERFLIES DAY NURSERY,162921
North East Lincolnshire Council,http://statistics.data.gov.uk/id/local-authority/00FC,Children & Family Services,Childrens Health & Famly Serv,Int Local Service Delivery,Other Agencies,Agen Serv Priv Gp Private Prov,PQ01,06/01/2011,3000301,"5,313.60",Revenue,FOR UNDER FIVES LTD,35461
North East Lincolnshire Council,http://statistics.data.gov.uk/id/local-authority/00FC,Children & Family Services,Childrens Health & Famly Serv,Int Local Service Delivery,Other Agencies,Agen Serv Priv Gp Private Prov,PQ01,05/01/2011,2998860,"5,475.96",Revenue,READY TEDDY GO,89097
North East Lincolnshire Council,http://statistics.data.gov.uk/id/local-authority/00FC,Children & Family Services,Childrens Health & Famly Serv,Int Local Service Delivery,Other Agencies,Agen Serv Priv Gp Private Prov,PQ01,05/01/2011,2998801,"6,199.20",Revenue,FOR UNDER FIVES LTD,35461
North East Lincolnshire Council,http://statistics.data.gov.uk/id/local-authority/00FC,Children & Family Services,Childrens Health & Famly Serv,Int Local Service Delivery,Other Agencies,Agen Serv Priv Gp Private Prov,PQ01,05/01/2011,2998803,"7,084.80",Revenue,FOR UNDER FIVES LTD,35461
North East Lincolnshire Council,http://statistics.data.gov.uk/id/local-authority/00FC,Children & Family Services,Childrens Health & Famly Serv,Int Local Service Delivery,Other Agencies,Agen Serv Priv Gp Private Prov,PQ01,05/01/2011,2998861,"7,173.36",Revenue,WENDOVER PRE-SCHOOL,141650
North East Lincolnshire Council,http://statistics.data.gov.uk/id/local-authority/00FC,Children & Family Services,Childrens Health & Famly Serv,Int Local Service Delivery,Other Agencies,Agen Serv Priv Gp Private Prov,PQ01,05/01/2011,2998853,"8,088.48",Revenue,FOR UNDER FIVES LTD,35461
North East Lincolnshire Council,http://statistics.data.gov.uk/id/local-authority/00FC,Children & Family Services,Childrens Health & Famly Serv,Int Local Service Delivery,Other Agencies,Agen Serv Priv Gp Private Prov,PQ01,05/01/2011,2998797,"8,413.20",Revenue,HAVEN METHODIST CHURCH PLAYGROUP,75478
North East Lincolnshire Council,http://statistics.data.gov.uk/id/local-authority/00FC,Children & Family Services,Childrens Health & Famly Serv,Int Local Service Delivery,Other Agencies,Agen Serv Priv Gp Private Prov,PQ01,10/01/2011,3001286,"9,092.16",Revenue,CHAPPILLS DAY NURSERY,100800
North East Lincolnshire Council,http://statistics.data.gov.uk/id/local-authority/00FC,Children & Family Services,Childrens Health & Famly Serv,Int Local Service Delivery,Other Agencies,Agen Serv Priv Gp Private Prov,PQ01,06/01/2011,3000303,"9,180.72",Revenue,ST CHRISTOPHERS PLAYGROUP,173185
North East Lincolnshire Council,http://statistics.data.gov.uk/id/local-authority/00FC,Children & Family Services,Childrens Health & Famly Serv,Int Local Service Delivery,Other Agencies,Agen Serv Priv Gp Private Prov,PQ01,06/01/2011,3000310,"10,184.40",Revenue,WIZ KIDZ,177450
North East Lincolnshire Council,http://statistics.data.gov.uk/id/local-authority/00FC,Children & Family Services,Childrens Health & Famly Serv,Int Local Service Delivery,Other Agencies,Agen Serv Priv Gp Private Prov,PQ01,05/01/2011,2998857,"10,538.64",Revenue,CLEETHORPES CHILDCARE,159467
North East Lincolnshire Council,http://statistics.data.gov.uk/id/local-authority/00FC,Children & Family Services,Childrens Health & Famly Serv,Int Local Service Delivery,Other Agencies,Agen Serv Priv Gp Private Prov,PQ01,05/01/2011,2998869,"11,010.96",Revenue,ST PETERS CHILDREN CENTRE,138853
North East Lincolnshire Council,http://statistics.data.gov.uk/id/local-authority/00FC,Children & Family Services,Childrens Health & Famly Serv,Int Local Service Delivery,Other Agencies,Agen Serv Priv Gp Private Prov,PQ01,05/01/2011,2998795,"11,926.08",Revenue,HEALING VILLAGE NURSERY,114730
North East Lincolnshire Council,http://statistics.data.gov.uk/id/local-authority/00FC,Children & Family Services,Childrens Health & Famly Serv,Int Local Service Delivery,Other Agencies,Agen Serv Priv Gp Private Prov,PQ01,10/01/2011,3001285,"12,516.48",Revenue,THE CHILDRENS HOUSE,120224
North East Lincolnshire Council,http://statistics.data.gov.uk/id/local-authority/00FC,Children & Family Services,Childrens Health & Famly Serv,Int Local Service Delivery,Other Agencies,Agen Serv Priv Gp Private Prov,PQ01,10/01/2011,3001283,"12,870.72",Revenue,PRECIOUS TIMES CHILDCARE SERVICES,147302
North East Lincolnshire Council,http://statistics.data.gov.uk/id/local-authority/00FC,Children & Family Services,Childrens Health & Famly Serv,Int Local Service Delivery,Other Agencies,Agen Serv Priv Gp Private Prov,PQ01,05/01/2011,2998811,"14,051.52",Revenue,CLOVERFIELDS PRE SCHOOL,89090
North East Lincolnshire Council,http://statistics.data.gov.uk/id/local-authority/00FC,Children & Family Services,Childrens Health & Famly Serv,Int Local Service Delivery,Other Agencies,Agen Serv Priv Gp Private Prov,PQ01,05/01/2011,2998788,"14,081.04",Revenue,CLEETHORPES CHILDCARE,159467
North East Lincolnshire Council,http://statistics.data.gov.uk/id/local-authority/00FC,Children & Family Services,Childrens Health & Famly Serv,Int Local Service Delivery,Other Agencies,Agen Serv Priv Gp Private Prov,PQ01,05/01/2011,2998816,"15,232.32",Revenue,CLEETHORPES CHILDCARE,159467
North East Lincolnshire Council,http://statistics.data.gov.uk/id/local-authority/00FC,Children & Family Services,Childrens Health & Famly Serv,Int Local Service Delivery,Other Agencies,Agen Serv Priv Gp Private Prov,PQ01,05/01/2011,2999315,"15,498.00",Revenue,ST MARGARETS PRE-SCHOOL,163619
North East Lincolnshire Council,http://statistics.data.gov.uk/id/local-authority/00FC,Children & Family Services,Childrens Health & Famly Serv,Int Local Service Delivery,Other Agencies,Agen Serv Priv Gp Private Prov,PQ01,05/01/2011,2998791,"16,132.68",Revenue,NEW WALTHAM TRACKERS PLAYGROUP,89096
North East Lincolnshire Council,http://statistics.data.gov.uk/id/local-authority/00FC,Children & Family Services,Childrens Health & Famly Serv,Int Local Service Delivery,Other Agencies,Agen Serv Priv Gp Private Prov,PQ01,05/01/2011,2998793,"16,649.28",Revenue,HUMBERSTON C E PRE SCHOOL,122343
North East Lincolnshire Council,http://statistics.data.gov.uk/id/local-authority/00FC,Children & Family Services,Childrens Health & Famly Serv,Int Local Service Delivery,Other Agencies,Agen Serv Priv Gp Private Prov,PQ01,05/01/2011,2998812,"17,298.72",Revenue,GRIMSBY INSTITUTE FOR FHE,161404
North East Lincolnshire Council,http://statistics.data.gov.uk/id/local-authority/00FC,Children & Family Services,Childrens Health & Famly Serv,Int Local Service Delivery,Other Agencies,Agen Serv Priv Gp Private Prov,PQ01,05/01/2011,2998850,"18,597.60",Revenue,JUDY CLARK PLAYGROUP,85859
North East Lincolnshire Council,http://statistics.data.gov.uk/id/local-authority/00FC,Children & Family Services,Childrens Health & Famly Serv,Int Local Service Delivery,Other Agencies,Agen Serv Priv Gp Private Prov,PQ01,05/01/2011,2998881,"18,745.20",Revenue,ST JAMES SCHOOL,85862
North East Lincolnshire Council,http://statistics.data.gov.uk/id/local-authority/00FC,Children & Family Services,Childrens Health & Famly Serv,Int Local Service Delivery,Other Agencies,Agen Serv Priv Gp Private Prov,PQ01,05/01/2011,2998863,"23,025.60",Revenue,WELHOLME PRE SCHOOL,134002
North East Lincolnshire Council,http://statistics.data.gov.uk/id/local-authority/00FC,Children & Family Services,Childrens Health & Famly Serv,Int Local Service Delivery,Other Agencies,Agen Serv Priv Gp Private Prov,PQ01,05/01/2011,2998865,"28,693.44",Revenue,WALTHAM LEAS PRE SCHOOL,147304
North East Lincolnshire Council,http://statistics.data.gov.uk/id/local-authority/00FC,Children & Family Services,Childrens Health & Famly Serv,Int Local Service Delivery,Other Agencies,Agen Serv Priv Gp Private Prov,PQ01,05/01/2011,2998847,"31,438.80",Revenue,LISLE MARSDEN PRE-SCHOOL,151767
North East Lincolnshire Council,http://statistics.data.gov.uk/id/local-authority/00FC,Children & Family Services,Childrens Health & Famly Serv,Int Local Service Delivery,Direct Employee Expenses,Pay Employment Agency Staff,AA53,05/01/2011,2998823,532.80,Revenue,ESP LTD,132218
North East Lincolnshire Council,http://statistics.data.gov.uk/id/local-authority/00FC,Children & Family Services,Childrens Health & Famly Serv,Int Local Service Delivery,Contributions To Provisions,Contributions To Funds,NV01,10/01/2011,3001289,720.00,Revenue,IMMINGHAM DAY NURSERY,90307
North East Lincolnshire Council,http://statistics.data.gov.uk/id/local-authority/00FC,Children & Family Services,Childrens Health & Famly Serv,Int Local Service Delivery,Direct Employee Expenses,Pay Employment Agency Staff,AA53,21/01/2011,3008137,"1,236.98",Revenue,ESP LTD,132218
North East Lincolnshire Council,http://statistics.data.gov.uk/id/local-authority/00FC,Children & Family Services,Childrens Health & Famly Serv,Int Local Service Delivery,Direct Employee Expenses,Pay Employment Agency Staff,AA53,13/01/2011,3004429,"1,430.03",Revenue,ESP LTD,132218
North East Lincolnshire Council,http://statistics.data.gov.uk/id/local-authority/00FC,Children & Family Services,Childrens Health & Famly Serv,Int Local Service Delivery,Indirect Employee Expenses,Train Basic Skill - Course Fee,BX01,05/01/2011,2999389,"1,570.00",Revenue,BISHOP GROSSETESTE COLLEGE,130893
North East Lincolnshire Council,http://statistics.data.gov.uk/id/local-authority/00FC,Children & Family Services,Childrens Health & Famly Serv,Int Local Service Delivery,Direct Employee Expenses,Pay Employment Agency Staff,AA53,31/01/2011,3012050,"1,599.13",Revenue,ESP LTD,132218
North East Lincolnshire Council,http://statistics.data.gov.uk/id/local-authority/00FC,Children & Family Services,Childrens Health & Famly Serv,Int Local Service Delivery,Miscellaneous Expenses,Other Expenses General,NZ01,21/01/2011,3008049,"5,500.00",Revenue,NEW WALTHAM TRACKERS PLAYGROUP,89096
North East Lincolnshire Council,http://statistics.data.gov.uk/id/local-authority/00FC,Children & Family Services,Childrens Health & Famly Serv,Int Local Service Delivery,Indirect Employee Expenses,Train Basic Skill - Course Fee,BX01,21/01/2011,3008035,"6,200.00",Revenue,EMBRACING ENTERPRISE LIMITED,155121
North East Lincolnshire Council,http://statistics.data.gov.uk/id/local-authority/00FC,Children & Family Services,Childrens Health & Famly Serv,Int Local Service Delivery,Consultants,Consult Work Consult+Special,PG01,11/01/2011,3002033,"6,250.00",Revenue,HEMPSALL CONSULTANCIES LTD,180755
North East Lincolnshire Council,http://statistics.data.gov.uk/id/local-authority/00FC,Children & Family Services,Childrens Health & Famly Serv,Int Local Service Delivery,Private Contractors,Outside Contractors,QH01,13/01/2011,3004405,"13,132.75",Revenue,BARNARDO SERVICES LTD,108910
North East Lincolnshire Council,http://statistics.data.gov.uk/id/local-authority/00FC,Children & Family Services,Childrens Health & Famly Serv,Childrens Centre Development,Repairs & Maintenance,R & M Build General,CA01,21/01/2011,3008018,568.93,Revenue,LINCS ELECTRICAL SERVICES LTD,171623
North East Lincolnshire Council,http://statistics.data.gov.uk/id/local-authority/00FC,Children & Family Services,Childrens Health & Famly Serv,Childrens Centre Development,Energy Costs,Gas,FA01,17/01/2011,3005277,960.33,Revenue,BRITISH GAS TRADING LTD,154726
North East Lincolnshire Council,http://statistics.data.gov.uk/id/local-authority/00FC,Children & Family Services,Childrens Health & Famly Serv,Childrens Centre Development,Cleaning & Domestic Supplies,Ocs General Cleaning,FQ01,11/01/2011,3002102,693.00,Revenue,EASY CLEANS,133387
North East Lincolnshire Council,http://statistics.data.gov.uk/id/local-authority/00FC,Children & Family Services,Childrens Health & Famly Serv,Childrens Centre Development,Repairs & Maintenance,R & M Build General,CA01,19/01/2011,3006721,"4,195.00",Revenue,ETON-LINCS LIMITED,155368
North East Lincolnshire Council,http://statistics.data.gov.uk/id/local-authority/00FC,Children & Family Services,Childrens Health & Famly Serv,Childrens Centre Development,Cleaning & Domestic Supplies,Ocs General Cleaning,FQ01,20/01/2011,3007341,525.31,Revenue,EASY CLEANS,133387
North East Lincolnshire Council,http://statistics.data.gov.uk/id/local-authority/00FC,Children & Family Services,Childrens Health & Famly Serv,Childrens Centre Development,Energy Costs,Gas,FA01,20/01/2011,3007340,"1,437.33",Revenue,E-ON (GAS),170426
North East Lincolnshire Council,http://statistics.data.gov.uk/id/local-authority/00FC,Children & Family Services,Childrens Health & Famly Serv,Childrens Centre Development,Repairs & Maintenance,R & M Build General,CA01,21/01/2011,3008069,-0.35,Revenue,SYLVESTER-KEAL LTD,13580
North East Lincolnshire Council,http://statistics.data.gov.uk/id/local-authority/00FC,Children & Family Services,Childrens Health & Famly Serv,Childrens Centre Development,Cleaning & Domestic Supplies,Ocs Feminine Hygiene,FQ13,06/01/2011,3000644,-352.60,Revenue,PHS GROUP LTD,1897
North East Lincolnshire Council,http://statistics.data.gov.uk/id/local-authority/00FC,Children & Family Services,Childrens Health & Famly Serv,Childrens Centre Development,Repairs & Maintenance,Alarms Maintenance,CE34,05/01/2011,2998798,567.38,Revenue,EXPERT RADIOLINK SECURITY,159728
North East Lincolnshire Council,http://statistics.data.gov.uk/id/local-authority/00FC,Children & Family Services,Childrens Health & Famly Serv,Childrens Centre Development,Energy Costs,Heating Fuel Fuel Oil,FE01,17/01/2011,3005263,965.31,Revenue,WATSON PETROLEUM LTD,141473
North East Lincolnshire Council,http://statistics.data.gov.uk/id/local-authority/00FC,Children & Family Services,Childrens Health & Famly Serv,Childrens Centre Development,Repairs & Maintenance,R & M Build General,CA01,20/01/2011,3007325,764.00,Revenue,HAITH'S HEATING LTD,140813
North East Lincolnshire Council,http://statistics.data.gov.uk/id/local-authority/00FC,Children & Family Services,Childrens Health & Famly Serv,Childrens Centre Development,Repairs & Maintenance,R & M Build General,CA01,10/01/2011,3001729,960.00,Revenue,HAITH'S HEATING LTD,140813
North East Lincolnshire Council,http://statistics.data.gov.uk/id/local-authority/00FC,Children & Family Services,Childrens Health & Famly Serv,Int Local Service Delivery,Contributions To Provisions,Contributions To Funds,NV01,05/01/2011,2999385,748.30,Revenue,PHILIP TAYLOR CQSW MBASW,115635
North East Lincolnshire Council,http://statistics.data.gov.uk/id/local-authority/00FC,Children & Family Services,Childrens Health & Famly Serv,Int Local Service Delivery,Contributions To Provisions,Contributions To Funds,NV01,05/01/2011,2999382,"1,602.28",Revenue,PHILIP TAYLOR CQSW MBASW,115635
North East Lincolnshire Council,http://statistics.data.gov.uk/id/local-authority/00FC,Children & Family Services,Childrens Health & Famly Serv,Childrens Centre Development,Repairs & Maintenance,R & M Build General,CA01,11/01/2011,3002853,"2,185.00",Revenue,J W PLATER LTD,1925
North East Lincolnshire Council,http://statistics.data.gov.uk/id/local-authority/00FC,Children & Family Services,Childrens Health & Famly Serv,Childrens Centre Development,Direct Employee Expenses,Pay Cleaners,AA52,31/01/2011,3011989,683.28,Revenue,LISLE MARSDEN PRIMARY SCHOOL,123131
North East Lincolnshire Council,http://statistics.data.gov.uk/id/local-authority/00FC,Children & Family Services,Childrens Health & Famly Serv,Childrens Centre Development,Direct Employee Expenses,Pay Caretakers,AA50,31/01/2011,3011989,822.00,Revenue,LISLE MARSDEN PRIMARY SCHOOL,123131
North East Lincolnshire Council,http://statistics.data.gov.uk/id/local-authority/00FC,Children & Family Services,Childrens Health & Famly Serv,Int Local Service Delivery,Grants & Subscriptions,Subscriptions General,MH01,05/01/2011,2999748,560.00,Revenue,THE SIGHTLINES INITIATIVE,124687
North East Lincolnshire Council,http://statistics.data.gov.uk/id/local-authority/00FC,Children & Family Services,Childrens Health & Famly Serv,Int Local Service Delivery,Contributions To Provisions,Contributions To Funds,NV01,13/01/2011,3004403,"1,252.97",Revenue,NSPCC,137561
North East Lincolnshire Council,http://statistics.data.gov.uk/id/local-authority/00FC,Children & Family Services,Childrens Health & Famly Serv,Int Local Service Delivery,Contributions To Provisions,Contributions To Funds,NV01,13/01/2011,3004404,"2,602.00",Revenue,SJSS CHILDREN & FAMILIES PROJECT,152381
North East Lincolnshire Council,http://statistics.data.gov.uk/id/local-authority/00FC,Children & Family Services,Childrens Health & Famly Serv,Int Local Service Delivery,Contributions To Provisions,Contributions To Funds,NV01,14/01/2011,3005114,"12,500.00",Revenue,VOLUNTARY ACTION NORTH EAST LINCOLNSHIRE,137539
North East Lincolnshire Council,http://statistics.data.gov.uk/id/local-authority/00FC,Children & Family Services,Childrens Health & Famly Serv,Childrens Centre Development,Printing Station & Gen Off Exp,Books Stat & Equip(Ed) Pchse,JN01,26/01/2011,3010496,784.20,Revenue,ROMPA INTERNATIONAL,44266
North East Lincolnshire Council,http://statistics.data.gov.uk/id/local-authority/00FC,Children & Family Services,Childrens Health & Famly Serv,Childrens Centre Development,Indirect Employee Expenses,Train Accredit & Certific Fee,BX08,20/01/2011,3007301,528.00,Revenue,ST AIDANS PAROCHIAL CHURCH COUNCIL,180802
North East Lincolnshire Council,http://statistics.data.gov.uk/id/local-authority/00FC,Children & Family Services,Childrens Health & Famly Serv,Childrens Centre Development,Other Agencies,Child Care Payments,PM01,06/01/2011,3000664,738.75,Revenue,BARNARDO SERVICES LTD,43844
North East Lincolnshire Council,http://statistics.data.gov.uk/id/local-authority/00FC,Children & Family Services,Childrens Health & Famly Serv,Childrens Centre Development,Other Agencies,Child Care Payments,PM01,06/01/2011,3000661,862.50,Revenue,CLEETHORPES CHILDCARE,159467
North East Lincolnshire Council,http://statistics.data.gov.uk/id/local-authority/00FC,Children & Family Services,Childrens Health & Famly Serv,Childrens Centre Development,Indirect Employee Expenses,Train Basic Skill - Course Fee,BX01,06/01/2011,3000667,885.00,Revenue,GRIMSBY INSTITUTE OF FURTHER &,155403
North East Lincolnshire Council,http://statistics.data.gov.uk/id/local-authority/00FC,Children & Family Services,Childrens Health & Famly Serv,Childrens Centre Development,Printing Station & Gen Off Exp,Print & Stat General,LA01,25/01/2011,3009124,626.54,Revenue,LYRECO UK LIMITED,117289
North East Lincolnshire Council,http://statistics.data.gov.uk/id/local-authority/00FC,Children & Family Services,Childrens Health & Famly Serv,Childrens Centre Development,Equipment/Furniture/Materials,Off Equip Photocop Rent/Copies,HN71,05/01/2011,2999818,727.37,Revenue,UNITED CARLTON OFFICE SYSTEMS LTD,161525
North East Lincolnshire Council,http://statistics.data.gov.uk/id/local-authority/00FC,Children & Family Services,Childrens Health & Famly Serv,Childrens Centre Development,Equipment/Furniture/Materials,Furniture Purchases,HA01,11/01/2011,3002267,881.31,Revenue,COMLEY CAMERAS,5192
North East Lincolnshire Council,http://statistics.data.gov.uk/id/local-authority/00FC,Children & Family Services,Childrens Health & Famly Serv,Childrens Centre Development,Other Agencies,Analysis General,PH01,17/01/2011,3005345,"6,285.22",Revenue,CLEETHORPES CHILDCARE,159467
North East Lincolnshire Council,http://statistics.data.gov.uk/id/local-authority/00FC,Children & Family Services,Childrens Health & Famly Serv,Childrens Centre Development,Other Agencies,Child Care Payments,PM01,11/01/2011,3002282,"2,535.65",Revenue,PRE SCHOOL LEARNING ALLIANCE,149980
North East Lincolnshire Council,http://statistics.data.gov.uk/id/local-authority/00FC,Children & Family Services,Childrens Health & Famly Serv,Childrens Centre Development,Other Agencies,Child Care Payments,PM01,10/01/2011,3001342,"2,502.30",Revenue,PRE SCHOOL LEARNING ALLIANCE,149980
North East Lincolnshire Council,http://statistics.data.gov.uk/id/local-authority/00FC,Children & Family Services,Childrens Health & Famly Serv,Childrens Centre Development,Other Agencies,Child Care Payments,PM01,20/01/2011,3007344,"3,694.63",Revenue,FIRST STEPS GRIMSBY LIMITED,147040
North East Lincolnshire Council,http://statistics.data.gov.uk/id/local-authority/00FC,Children & Family Services,Childrens Health & Famly Serv,Childrens Centre Development,Other Agencies,Educational Visits,NH02,10/01/2011,3001276,912.85,Revenue,COMLEY CAMERAS,5192
North East Lincolnshire Council,http://statistics.data.gov.uk/id/local-authority/00FC,Children & Family Services,Childrens Health & Famly Serv,Childrens Centre Development,Indirect Employee Expenses,Train Accredit & Certific Fee,BX08,20/01/2011,3007308,-86.96,Revenue,BRITISH RED CROSS SOCIETY,145880
North East Lincolnshire Council,http://statistics.data.gov.uk/id/local-authority/00FC,Children & Family Services,Childrens Health & Famly Serv,Childrens Centre Development,Indirect Employee Expenses,Train Accredit & Certific Fee,BX08,20/01/2011,3007313,510.64,Revenue,BRITISH RED CROSS SOCIETY,145880
North East Lincolnshire Council,http://statistics.data.gov.uk/id/local-authority/00FC,Children & Family Services,Childrens Health & Famly Serv,Childrens Centre Development,Indirect Employee Expenses,Train Basic Skill - Course Fee,BX01,05/01/2011,2999272,515.00,Revenue,YORK ST JOHN COLLEGE,147180
North East Lincolnshire Council,http://statistics.data.gov.uk/id/local-authority/00FC,Children & Family Services,Childrens Health & Famly Serv,Childrens Centre Development,Repairs & Maintenance,Internal Decoration,CD03,24/01/2011,3008493,"1,200.00",Revenue,PAUL GODFREY'S ARTISTIC DESIGNS,172304
North East Lincolnshire Council,http://statistics.data.gov.uk/id/local-authority/00FC,Children & Family Services,Childrens Health & Famly Serv,Childrens Centre Development,Miscellaneous Expenses,Other Activities,MQ01,27/01/2011,3010964,742.50,Revenue,FAMILY LINKS,154678
North East Lincolnshire Council,http://statistics.data.gov.uk/id/local-authority/00FC,Children & Family Services,Childrens Health & Famly Serv,Childrens Centre Development,Private Contractors,Outside Contractors,QH01,31/01/2011,3012182,"7,367.00",Revenue,NORTHERN LINCOLNSHIRE & GOOLE HOSPITALS,132777
North East Lincolnshire Council,http://statistics.data.gov.uk/id/local-authority/00FC,Children & Family Services,Childrens Health & Famly Serv,Childrens Centre Development,Private Contractors,Outside Contractors,QH01,31/01/2011,3012182,"8,592.00",Revenue,NORTHERN LINCOLNSHIRE & GOOLE HOSPITALS,132777
North East Lincolnshire Council,http://statistics.data.gov.uk/id/local-authority/00FC,Children & Family Services,Childrens Health & Famly Serv,Childrens Centre Development,Private Contractors,Outside Contractors,QH01,31/01/2011,3012182,"12,056.00",Revenue,NORTHERN LINCOLNSHIRE & GOOLE HOSPITALS,132777
North East Lincolnshire Council,http://statistics.data.gov.uk/id/local-authority/00FC,Children & Family Services,Childrens Health & Famly Serv,Childrens Centre Development,Private Contractors,Outside Contractors,QH01,31/01/2011,3012029,"56,576.63",Revenue,PRE SCHOOL LEARNING ALLIANCE,149980
North East Lincolnshire Council,http://statistics.data.gov.uk/id/local-authority/00FC,Children & Family Services,Childrens Health & Famly Serv,Int Local Service Delivery,Contributions To Provisions,Contributions To Funds,NV01,12/01/2011,3004029,"2,821.62",Revenue,CARR & CARR (BUILDERS) LTD,74777
North East Lincolnshire Council,http://statistics.data.gov.uk/id/local-authority/00FC,Children & Family Services,Childrens Health & Famly Serv,Int Local Service Delivery,Consultants,Consult Work Consult+Special,PG01,11/01/2011,3002033,"4,478.00",Revenue,HEMPSALL CONSULTANCIES LTD,180755
North East Lincolnshire Council,http://statistics.data.gov.uk/id/local-authority/00FC,Children & Family Services,Childrens Health & Famly Serv,Int Local Service Delivery,Other Agencies,Agen Serv Priv Gp Private Prov,PQ01,05/01/2011,2998776,679.00,Revenue,FOR UNDER FIVES LTD,35461
North East Lincolnshire Council,http://statistics.data.gov.uk/id/local-authority/00FC,Children & Family Services,Childrens Health & Famly Serv,Extended Services,Catering,Provisions General,KG01,05/01/2011,2999495,595.00,Revenue,GRIMSBY TOWN FOOTBALL CLUB,35141
North East Lincolnshire Council,http://statistics.data.gov.uk/id/local-authority/00FC,Children & Family Services,Childrens Health & Famly Serv,Extended Services,Miscellaneous Expenses,Other Expenses General,NZ01,05/01/2011,2999443,-180.00,Revenue,RENTOKIL PEST CONTROL,10836
North East Lincolnshire Council,http://statistics.data.gov.uk/id/local-authority/00FC,Children & Family Services,Childrens Health & Famly Serv,Extended Services,Miscellaneous Expenses,Other Activities,MQ01,05/01/2011,2999356,"3,870.00",Revenue,REDACTED PERSONAL DATA,REDACTED PERSONAL DATA
North East Lincolnshire Council,http://statistics.data.gov.uk/id/local-authority/00FC,Children & Family Services,Childrens Health & Famly Serv,Extended Services,Printing Station & Gen Off Exp,Books Stat & Equip(Ed) Pchse,JN01,05/01/2011,2999453,506.85,Revenue,JJB SPORTS PLC,111486
North East Lincolnshire Council,http://statistics.data.gov.uk/id/local-authority/00FC,Children & Family Services,Childrens Health & Famly Serv,Extended Services,Miscellaneous Expenses,Other Activities,MQ01,27/01/2011,3010921,509.00,Revenue,OASIS ACADEMY WINTRINGHAM,169566
North East Lincolnshire Council,http://statistics.data.gov.uk/id/local-authority/00FC,Children & Family Services,Childrens Health & Famly Serv,Extended Services,Printing Station & Gen Off Exp,Books Stat & Equip(Ed) Pchse,JN01,11/01/2011,3003007,511.72,Revenue,JJB SPORTS PLC,111486
North East Lincolnshire Council,http://statistics.data.gov.uk/id/local-authority/00FC,Children & Family Services,Childrens Health & Famly Serv,Extended Services,Printing Station & Gen Off Exp,Books Stat & Equip(Ed) Pchse,JN01,24/01/2011,3008544,517.74,Revenue,JJB SPORTS PLC,111486
North East Lincolnshire Council,http://statistics.data.gov.uk/id/local-authority/00FC,Children & Family Services,Childrens Health & Famly Serv,Extended Services,Printing Station & Gen Off Exp,Books Stat & Equip(Ed) Pchse,JN01,05/01/2011,2999455,520.57,Revenue,JJB SPORTS PLC,111486
North East Lincolnshire Council,http://statistics.data.gov.uk/id/local-authority/00FC,Children & Family Services,Childrens Health & Famly Serv,Extended Services,Miscellaneous Expenses,Other Activities,MQ01,05/01/2011,2999436,520.65,Revenue,GREENSWEAR LTD,75708
North East Lincolnshire Council,http://statistics.data.gov.uk/id/local-authority/00FC,Children & Family Services,Childrens Health & Famly Serv,Extended Services,Printing Station & Gen Off Exp,Books Stat & Equip(Ed) Pchse,JN01,05/01/2011,2999313,525.14,Revenue,JJB SPORTS PLC,111486
North East Lincolnshire Council,http://statistics.data.gov.uk/id/local-authority/00FC,Children & Family Services,Childrens Health & Famly Serv,Extended Services,Printing Station & Gen Off Exp,Books Stat & Equip(Ed) Pchse,JN01,05/01/2011,2999596,531.18,Revenue,JJB SPORTS PLC,111486
North East Lincolnshire Council,http://statistics.data.gov.uk/id/local-authority/00FC,Children & Family Services,Childrens Health & Famly Serv,Extended Services,Miscellaneous Expenses,Other Activities,MQ01,05/01/2011,2999437,544.00,Revenue,OASIS ACADEMY IMMINGHAM,169680
North East Lincolnshire Council,http://statistics.data.gov.uk/id/local-authority/00FC,Children & Family Services,Childrens Health & Famly Serv,Extended Services,Printing Station & Gen Off Exp,Books Stat & Equip(Ed) Pchse,JN01,27/01/2011,3010944,546.33,Revenue,JJB SPORTS PLC,111486
North East Lincolnshire Council,http://statistics.data.gov.uk/id/local-authority/00FC,Children & Family Services,Childrens Health & Famly Serv,Extended Services,Printing Station & Gen Off Exp,Books Stat & Equip(Ed) Pchse,JN01,05/01/2011,2999313,551.55,Revenue,JJB SPORTS PLC,111486
North East Lincolnshire Council,http://statistics.data.gov.uk/id/local-authority/00FC,Children & Family Services,Childrens Health & Famly Serv,Extended Services,Printing Station & Gen Off Exp,Books Stat & Equip(Ed) Pchse,JN01,05/01/2011,2999588,553.99,Revenue,JJB SPORTS PLC,111486
North East Lincolnshire Council,http://statistics.data.gov.uk/id/local-authority/00FC,Children & Family Services,Childrens Health & Famly Serv,Extended Services,Printing Station & Gen Off Exp,Books Stat & Equip(Ed) Pchse,JN01,05/01/2011,2999578,554.75,Revenue,JJB SPORTS PLC,111486
North East Lincolnshire Council,http://statistics.data.gov.uk/id/local-authority/00FC,Children & Family Services,Childrens Health & Famly Serv,Extended Services,Printing Station & Gen Off Exp,Books Stat & Equip(Ed) Pchse,JN01,05/01/2011,2999311,580.80,Revenue,JJB SPORTS PLC,111486
North East Lincolnshire Council,http://statistics.data.gov.uk/id/local-authority/00FC,Children & Family Services,Childrens Health & Famly Serv,Extended Services,Printing Station & Gen Off Exp,Books Stat & Equip(Ed) Pchse,JN01,24/01/2011,3008543,581.79,Revenue,JJB SPORTS PLC,111486
North East Lincolnshire Council,http://statistics.data.gov.uk/id/local-authority/00FC,Children & Family Services,Childrens Health & Famly Serv,Extended Services,Printing Station & Gen Off Exp,Books Stat & Equip(Ed) Pchse,JN01,24/01/2011,3008540,582.91,Revenue,JJB SPORTS PLC,111486
North East Lincolnshire Council,http://statistics.data.gov.uk/id/local-authority/00FC,Children & Family Services,Childrens Health & Famly Serv,Extended Services,Printing Station & Gen Off Exp,Books Stat & Equip(Ed) Pchse,JN01,27/01/2011,3011021,586.18,Revenue,JJB SPORTS PLC,111486
North East Lincolnshire Council,http://statistics.data.gov.uk/id/local-authority/00FC,Children & Family Services,Childrens Health & Famly Serv,Extended Services,Printing Station & Gen Off Exp,Books Stat & Equip(Ed) Pchse,JN01,27/01/2011,3011024,590.14,Revenue,JJB SPORTS PLC,111486
North East Lincolnshire Council,http://statistics.data.gov.uk/id/local-authority/00FC,Children & Family Services,Childrens Health & Famly Serv,Extended Services,Printing Station & Gen Off Exp,Books Stat & Equip(Ed) Pchse,JN01,27/01/2011,3011014,590.66,Revenue,JJB SPORTS PLC,111486
North East Lincolnshire Council,http://statistics.data.gov.uk/id/local-authority/00FC,Children & Family Services,Childrens Health & Famly Serv,Extended Services,Printing Station & Gen Off Exp,Books Stat & Equip(Ed) Pchse,JN01,05/01/2011,2999559,599.33,Revenue,JJB SPORTS PLC,111486
North East Lincolnshire Council,http://statistics.data.gov.uk/id/local-authority/00FC,Children & Family Services,Childrens Health & Famly Serv,Extended Services,Printing Station & Gen Off Exp,Books Stat & Equip(Ed) Pchse,JN01,05/01/2011,2999325,600.30,Revenue,JJB SPORTS PLC,111486
North East Lincolnshire Council,http://statistics.data.gov.uk/id/local-authority/00FC,Children & Family Services,Childrens Health & Famly Serv,Extended Services,Printing Station & Gen Off Exp,Books Stat & Equip(Ed) Pchse,JN01,11/01/2011,3003000,605.76,Revenue,JJB SPORTS PLC,111486
North East Lincolnshire Council,http://statistics.data.gov.uk/id/local-authority/00FC,Children & Family Services,Childrens Health & Famly Serv,Extended Services,Printing Station & Gen Off Exp,Books Stat & Equip(Ed) Pchse,JN01,05/01/2011,2999312,610.76,Revenue,JJB SPORTS PLC,111486
North East Lincolnshire Council,http://statistics.data.gov.uk/id/local-authority/00FC,Children & Family Services,Childrens Health & Famly Serv,Extended Services,Printing Station & Gen Off Exp,Books Stat & Equip(Ed) Pchse,JN01,27/01/2011,3011018,615.22,Revenue,JJB SPORTS PLC,111486
North East Lincolnshire Council,http://statistics.data.gov.uk/id/local-authority/00FC,Children & Family Services,Childrens Health & Famly Serv,Extended Services,Printing Station & Gen Off Exp,Books Stat & Equip(Ed) Pchse,JN01,27/01/2011,3010913,626.74,Revenue,JJB SPORTS PLC,111486
North East Lincolnshire Council,http://statistics.data.gov.uk/id/local-authority/00FC,Children & Family Services,Childrens Health & Famly Serv,Extended Services,Printing Station & Gen Off Exp,Books Stat & Equip(Ed) Pchse,JN01,11/01/2011,3002994,628.39,Revenue,JJB SPORTS PLC,111486
North East Lincolnshire Council,http://statistics.data.gov.uk/id/local-authority/00FC,Children & Family Services,Childrens Health & Famly Serv,Extended Services,Printing Station & Gen Off Exp,Books Stat & Equip(Ed) Pchse,JN01,05/01/2011,2999577,634.80,Revenue,JJB SPORTS PLC,111486
North East Lincolnshire Council,http://statistics.data.gov.uk/id/local-authority/00FC,Children & Family Services,Childrens Health & Famly Serv,Extended Services,Miscellaneous Expenses,Other Activities,MQ01,25/01/2011,3009062,655.00,Revenue,COTTAGERS PLOT EQUESTRIAN CENTRE,165678
North East Lincolnshire Council,http://statistics.data.gov.uk/id/local-authority/00FC,Children & Family Services,Childrens Health & Famly Serv,Extended Services,Printing Station & Gen Off Exp,Books Stat & Equip(Ed) Pchse,JN01,05/01/2011,2999308,668.45,Revenue,JJB SPORTS PLC,111486
North East Lincolnshire Council,http://statistics.data.gov.uk/id/local-authority/00FC,Children & Family Services,Childrens Health & Famly Serv,Extended Services,Printing Station & Gen Off Exp,Books Stat & Equip(Ed) Pchse,JN01,11/01/2011,3003005,669.63,Revenue,JJB SPORTS PLC,111486
North East Lincolnshire Council,http://statistics.data.gov.uk/id/local-authority/00FC,Children & Family Services,Childrens Health & Famly Serv,Extended Services,Printing Station & Gen Off Exp,Books Stat & Equip(Ed) Pchse,JN01,27/01/2011,3011009,671.36,Revenue,JJB SPORTS PLC,111486
North East Lincolnshire Council,http://statistics.data.gov.uk/id/local-authority/00FC,Children & Family Services,Childrens Health & Famly Serv,Extended Services,Printing Station & Gen Off Exp,Books Stat & Equip(Ed) Pchse,JN01,05/01/2011,2999603,687.16,Revenue,JJB SPORTS PLC,111486
North East Lincolnshire Council,http://statistics.data.gov.uk/id/local-authority/00FC,Children & Family Services,Childrens Health & Famly Serv,Extended Services,Printing Station & Gen Off Exp,Books Stat & Equip(Ed) Pchse,JN01,05/01/2011,2999594,690.23,Revenue,JJB SPORTS PLC,111486
North East Lincolnshire Council,http://statistics.data.gov.uk/id/local-authority/00FC,Children & Family Services,Childrens Health & Famly Serv,Extended Services,Printing Station & Gen Off Exp,Books Stat & Equip(Ed) Pchse,JN01,05/01/2011,2999598,694.68,Revenue,JJB SPORTS PLC,111486
North East Lincolnshire Council,http://statistics.data.gov.uk/id/local-authority/00FC,Children & Family Services,Childrens Health & Famly Serv,Extended Services,Miscellaneous Expenses,Other Activities,MQ01,05/01/2011,2999506,699.30,Revenue,SLM COMMUNITY LEISURE LTD,134645
North East Lincolnshire Council,http://statistics.data.gov.uk/id/local-authority/00FC,Children & Family Services,Childrens Health & Famly Serv,Extended Services,Printing Station & Gen Off Exp,Books Stat & Equip(Ed) Pchse,JN01,27/01/2011,3011005,716.72,Revenue,JJB SPORTS PLC,111486
North East Lincolnshire Council,http://statistics.data.gov.uk/id/local-authority/00FC,Children & Family Services,Childrens Health & Famly Serv,Extended Services,Printing Station & Gen Off Exp,Books Stat & Equip(Ed) Pchse,JN01,05/01/2011,2999612,725.81,Revenue,JJB SPORTS PLC,111486
North East Lincolnshire Council,http://statistics.data.gov.uk/id/local-authority/00FC,Children & Family Services,Childrens Health & Famly Serv,Extended Services,Printing Station & Gen Off Exp,Books Stat & Equip(Ed) Pchse,JN01,27/01/2011,3010902,732.62,Revenue,JJB SPORTS PLC,111486
North East Lincolnshire Council,http://statistics.data.gov.uk/id/local-authority/00FC,Children & Family Services,Childrens Health & Famly Serv,Extended Services,Printing Station & Gen Off Exp,Books Stat & Equip(Ed) Pchse,JN01,11/01/2011,3002985,734.72,Revenue,JJB SPORTS PLC,111486
North East Lincolnshire Council,http://statistics.data.gov.uk/id/local-authority/00FC,Children & Family Services,Childrens Health & Famly Serv,Extended Services,Printing Station & Gen Off Exp,Books Stat & Equip(Ed) Pchse,JN01,05/01/2011,2999314,743.66,Revenue,JJB SPORTS PLC,111486
North East Lincolnshire Council,http://statistics.data.gov.uk/id/local-authority/00FC,Children & Family Services,Childrens Health & Famly Serv,Extended Services,Printing Station & Gen Off Exp,Books Stat & Equip(Ed) Pchse,JN01,05/01/2011,2999590,749.44,Revenue,JJB SPORTS PLC,111486
North East Lincolnshire Council,http://statistics.data.gov.uk/id/local-authority/00FC,Children & Family Services,Childrens Health & Famly Serv,Extended Services,Printing Station & Gen Off Exp,Books Stat & Equip(Ed) Pchse,JN01,27/01/2011,3011006,796.60,Revenue,JJB SPORTS PLC,111486
North East Lincolnshire Council,http://statistics.data.gov.uk/id/local-authority/00FC,Children & Family Services,Childrens Health & Famly Serv,Extended Services,Miscellaneous Expenses,Other Activities,MQ01,27/01/2011,3010922,799.30,Revenue,SLM COMMUNITY LEISURE LTD,134645
North East Lincolnshire Council,http://statistics.data.gov.uk/id/local-authority/00FC,Children & Family Services,Childrens Health & Famly Serv,Extended Services,Printing Station & Gen Off Exp,Books Stat & Equip(Ed) Pchse,JN01,24/01/2011,3008539,801.99,Revenue,JJB SPORTS PLC,111486
North East Lincolnshire Council,http://statistics.data.gov.uk/id/local-authority/00FC,Children & Family Services,Childrens Health & Famly Serv,Extended Services,Printing Station & Gen Off Exp,Books Stat & Equip(Ed) Pchse,JN01,05/01/2011,2999309,830.11,Revenue,JJB SPORTS PLC,111486
North East Lincolnshire Council,http://statistics.data.gov.uk/id/local-authority/00FC,Children & Family Services,Childrens Health & Famly Serv,Extended Services,Printing Station & Gen Off Exp,Books Stat & Equip(Ed) Pchse,JN01,24/01/2011,3008538,853.67,Revenue,JJB SPORTS PLC,111486
North East Lincolnshire Council,http://statistics.data.gov.uk/id/local-authority/00FC,Children & Family Services,Childrens Health & Famly Serv,Extended Services,Printing Station & Gen Off Exp,Books Stat & Equip(Ed) Pchse,JN01,27/01/2011,3011020,898.20,Revenue,JJB SPORTS PLC,111486
North East Lincolnshire Council,http://statistics.data.gov.uk/id/local-authority/00FC,Children & Family Services,Childrens Health & Famly Serv,Extended Services,Printing Station & Gen Off Exp,Books Stat & Equip(Ed) Pchse,JN01,24/01/2011,3008537,"1,020.70",Revenue,JJB SPORTS PLC,111486
North East Lincolnshire Council,http://statistics.data.gov.uk/id/local-authority/00FC,Children & Family Services,Childrens Health & Famly Serv,Extended Services,Miscellaneous Expenses,Other Activities,MQ01,05/01/2011,2999328,"1,329.00",Revenue,HEREFORD TECHNOLOGY SCHOOL,108739
North East Lincolnshire Council,http://statistics.data.gov.uk/id/local-authority/00FC,Children & Family Services,Childrens Health & Famly Serv,Extended Services,Miscellaneous Expenses,Other Activities,MQ01,27/01/2011,3010920,"1,437.00",Revenue,SLM COMMUNITY LEISURE LTD,134645
North East Lincolnshire Council,http://statistics.data.gov.uk/id/local-authority/00FC,Children & Family Services,Childrens Health & Famly Serv,Extended Services,Miscellaneous Expenses,Other Activities,MQ01,05/01/2011,2999504,"1,698.74",Revenue,SLM COMMUNITY LEISURE LTD,132782
North East Lincolnshire Council,http://statistics.data.gov.uk/id/local-authority/00FC,Children & Family Services,Childrens Health & Famly Serv,Childrens Centre Development,Printing Station & Gen Off Exp,Postages,LE01,06/01/2011,3000317,700.00,Revenue,NEOPOST LTD,70085
North East Lincolnshire Council,http://statistics.data.gov.uk/id/local-authority/00FC,Children & Family Services,Childrens Health & Famly Serv,Childrens Centre Development,Communication & Computing,Comp Equip Purchases,HK01,20/01/2011,3007302,734.94,Revenue,LYRECO UK LIMITED,117289
North East Lincolnshire Council,http://statistics.data.gov.uk/id/local-authority/00FC,Children & Family Services,Childrens Health & Famly Serv,Childrens Centre Development,Printing Station & Gen Off Exp,Print & Stat General,LA01,20/01/2011,3007302,857.34,Revenue,LYRECO UK LIMITED,117289
North East Lincolnshire Council,http://statistics.data.gov.uk/id/local-authority/00FC,Children & Family Services,Childrens Health & Famly Serv,Childrens Centre Development,Other Agencies,Child Care Payments,PM01,20/01/2011,3007347,"1,673.56",Revenue,SECOND AVENUE RESOURCE CENTRE LIMITED,35803
North East Lincolnshire Council,http://statistics.data.gov.uk/id/local-authority/00FC,Children & Family Services,Childrens Health & Famly Serv,Childrens Health Provision,Direct Employee Expenses,Pay Employment Agency Staff,AA53,28/01/2011,3011762,654.72,Revenue,ESP LTD,132218
North East Lincolnshire Council,http://statistics.data.gov.uk/id/local-authority/00FC,Children & Family Services,Childrens Health & Famly Serv,Childrens Health Provision,Direct Employee Expenses,Pay Employment Agency Staff,AA53,06/01/2011,3000626,663.00,Revenue,ESP LTD,132218
North East Lincolnshire Council,http://statistics.data.gov.uk/id/local-authority/00FC,Children & Family Services,Childrens Health & Famly Serv,Childrens Health Provision,Direct Employee Expenses,Pay Employment Agency Staff,AA53,12/01/2011,3003420,734.83,Revenue,ESP LTD,132218
North East Lincolnshire Council,http://statistics.data.gov.uk/id/local-authority/00FC,Children & Family Services,Childrens Health & Famly Serv,Childrens Health Provision,Direct Employee Expenses,Pay Employment Agency Staff,AA53,28/01/2011,3011758,809.42,Revenue,ESP LTD,132218
North East Lincolnshire Council,http://statistics.data.gov.uk/id/local-authority/00FC,Children & Family Services,Childrens Health & Famly Serv,Childrens Health Provision,Direct Employee Expenses,Pay Employment Agency Staff,AA53,28/01/2011,3011757,817.70,Revenue,ESP LTD,132218
North East Lincolnshire Council,http://statistics.data.gov.uk/id/local-authority/00FC,Children & Family Services,Childrens Health & Famly Serv,Childrens Health Provision,Equipment/Furniture/Materials,Equip Purchases,HC01,26/01/2011,3010164,"1,943.04",Revenue,HARLOW PRINTING LIMITED,143805
North East Lincolnshire Council,http://statistics.data.gov.uk/id/local-authority/00FC,Children & Family Services,Childrens Health & Famly Serv,Childrens Health Provision,Grants & Subscriptions,Subscriptions General,MH01,25/01/2011,3009189,"2,319.00",Revenue,COMMISSION FOR SOCIAL CARE INSPECTION,172923
North East Lincolnshire Council,http://statistics.data.gov.uk/id/local-authority/00FC,Children & Family Services,Childrens Health & Famly Serv,Childrens Health Provision,Consultants,Consult Work Consult+Special,PG01,13/01/2011,3004501,"2,437.50",Revenue,OUTCOMES UK LTD,153183
North East Lincolnshire Council,http://statistics.data.gov.uk/id/local-authority/00FC,Children & Family Services,Childrens Health & Famly Serv,Childrens Health Provision,Consultants,Consult Work Consult+Special,PG01,24/01/2011,3008789,"3,000.00",Revenue,OUTCOMES UK LTD,153183
North East Lincolnshire Council,http://statistics.data.gov.uk/id/local-authority/00FC,Children & Family Services,Childrens Health & Famly Serv,Childrens Health Provision,Private Contractors,Outside Contractors,QH01,13/01/2011,3004503,"4,173.25",Revenue,BARNARDO SERVICES LTD,43844
North East Lincolnshire Council,http://statistics.data.gov.uk/id/local-authority/00FC,Children & Family Services,Childrens Health & Famly Serv,Childrens Health Provision,Private Contractors,Outside Contractors,QH01,13/01/2011,3004503,"21,669.50",Revenue,BARNARDO SERVICES LTD,43844
North East Lincolnshire Council,http://statistics.data.gov.uk/id/local-authority/00FC,Children & Family Services,Childrens Health & Famly Serv,Integrated Youth Services,Indirect Employee Expenses,Train Accredit & Certific Fee,BX08,17/01/2011,3005647,500.00,Revenue,FORD PARTNERSHIP LTD T/A FPM,140808
North East Lincolnshire Council,http://statistics.data.gov.uk/id/local-authority/00FC,Children & Family Services,Childrens Health & Famly Serv,Integrated Youth Services,Rents,Rent Hire Of Premises,FJ02,25/01/2011,3009855,570.00,Revenue,HUMBERSTON MATHS & COMPUTING COLLEGE,180763
North East Lincolnshire Council,http://statistics.data.gov.uk/id/local-authority/00FC,Children & Family Services,Childrens Health & Famly Serv,Integrated Youth Services,Direct Transport Costs,Hired Transport Taxis,GA05,05/01/2011,2999801,REDACTED COMMERCIALLY SENSITIVE INFORMATION,Revenue,COXONS CARS LIMITED,5187
North East Lincolnshire Council,http://statistics.data.gov.uk/id/local-authority/00FC,Children & Family Services,Childrens Health & Famly Serv,Integrated Youth Services,Indirect Employee Expenses,Train Accredit & Certific Fee,BX08,17/01/2011,3005644,750.00,Revenue,FORD PARTNERSHIP LTD T/A FPM,140808
North East Lincolnshire Council,http://statistics.data.gov.uk/id/local-authority/00FC,Children & Family Services,Childrens Health & Famly Serv,Integrated Youth Services,Indirect Employee Expenses,Train Basic Skill - Course Fee,BX01,05/01/2011,2999249,"1,380.00",Revenue,UNIVERSITY OF HUDDERSFIELD HEC,141857
North East Lincolnshire Council,http://statistics.data.gov.uk/id/local-authority/00FC,Children & Family Services,Childrens Health & Famly Serv,Integrated Youth Services,Indirect Employee Expenses,Train Accredit & Certific Fee,BX08,17/01/2011,3005646,"1,500.00",Revenue,FORD PARTNERSHIP LTD T/A FPM,140808
North East Lincolnshire Council,http://statistics.data.gov.uk/id/local-authority/00FC,Children & Family Services,Childrens Health & Famly Serv,Integrated Youth Services,Expenses,Trav/Subs Off Other Offic Duty,MA05,05/01/2011,2999591,-11.99,Revenue,NYS CORPORATE,177749
North East Lincolnshire Council,http://statistics.data.gov.uk/id/local-authority/00FC,Children & Family Services,Childrens Health & Famly Serv,Integrated Youth Services,Expenses,Trav/Subs Off Other Offic Duty,MA05,05/01/2011,2999595,-11.99,Revenue,NYS CORPORATE,177749
North East Lincolnshire Council,http://statistics.data.gov.uk/id/local-authority/00FC,Children & Family Services,Childrens Health & Famly Serv,Integrated Youth Services,Expenses,Trav/Subs Off Other Offic Duty,MA05,25/01/2011,3009128,-11.99,Revenue,NYS CORPORATE,177749
North East Lincolnshire Council,http://statistics.data.gov.uk/id/local-authority/00FC,Children & Family Services,Childrens Health & Famly Serv,Integrated Youth Services,Equipment/Furniture/Materials,Off Equip Photocop Rent/Copies,HN71,20/01/2011,3007294,515.03,Revenue,UNITED CARLTON OFFICE SYSTEMS LTD,161525
North East Lincolnshire Council,http://statistics.data.gov.uk/id/local-authority/00FC,Children & Family Services,Childrens Health & Famly Serv,Integrated Youth Services,Equipment/Furniture/Materials,Equip Purchases,HC01,27/01/2011,3010872,790.80,Revenue,SETON LIMITED,10163
North East Lincolnshire Council,http://statistics.data.gov.uk/id/local-authority/00FC,Children & Family Services,Childrens Health & Famly Serv,Integrated Youth Services,Contributions To Provisions,Contributions To Funds,NV01,20/01/2011,3007282,900.00,Revenue,BJB LIFT TRUCKS LTD,125184
North East Lincolnshire Council,http://statistics.data.gov.uk/id/local-authority/00FC,Children & Family Services,Childrens Health & Famly Serv,Integrated Youth Services,Contributions To Provisions,Contributions To Funds,NV01,25/01/2011,3009105,900.00,Revenue,BJB LIFT TRUCKS LTD,125184
North East Lincolnshire Council,http://statistics.data.gov.uk/id/local-authority/00FC,Children & Family Services,Childrens Health & Famly Serv,Integrated Youth Services,Contributions To Provisions,Contributions To Funds,NV01,20/01/2011,3007283,900.00,Revenue,BJB LIFT TRUCKS LTD,125184
North East Lincolnshire Council,http://statistics.data.gov.uk/id/local-authority/00FC,Children & Family Services,Childrens Health & Famly Serv,Integrated Youth Services,Rents,Rent Hire Of Premises,FJ02,27/01/2011,3010873,"2,160.00",Revenue,ARTLANDISH LTD,130857
North East Lincolnshire Council,http://statistics.data.gov.uk/id/local-authority/00FC,Children & Family Services,Childrens Health & Famly Serv,Integrated Youth Services,Grants & Subscriptions,Subscriptions General,MH01,10/01/2011,3001727,"31,634.50",Revenue,KINGSTON UPON HULL CITY COUNCIL,1420
North East Lincolnshire Council,http://statistics.data.gov.uk/id/local-authority/00FC,Children & Family Services,Childrens Health & Famly Serv,Integrated Youth Services,Indirect Employee Expenses,Train Accredit & Certific Fee,BX08,24/01/2011,3008521,520.00,Revenue,ROCKCITY,78424
North East Lincolnshire Council,http://statistics.data.gov.uk/id/local-authority/00FC,Children & Family Services,Childrens Health & Famly Serv,Integrated Youth Services,Indirect Employee Expenses,Train Accredit & Certific Fee,BX08,24/01/2011,3008569,535.40,Revenue,ASDAN,77525
North East Lincolnshire Council,http://statistics.data.gov.uk/id/local-authority/00FC,Children & Family Services,Childrens Health & Famly Serv,Integrated Youth Services,Indirect Employee Expenses,Train Accredit & Certific Fee,BX08,24/01/2011,3008520,540.00,Revenue,ROCKCITY,78424
North East Lincolnshire Council,http://statistics.data.gov.uk/id/local-authority/00FC,Children & Family Services,Childrens Health & Famly Serv,Integrated Youth Services,Miscellaneous Expenses,Other Activities,MQ01,24/01/2011,3008799,580.69,Revenue,DSG RETAIL LTD,165311
North East Lincolnshire Council,http://statistics.data.gov.uk/id/local-authority/00FC,Children & Family Services,Childrens Health & Famly Serv,Integrated Youth Services,Indirect Employee Expenses,Train Accredit & Certific Fee,BX08,26/01/2011,3010147,600.00,Revenue,COTTAGERS PLOT EQUESTRIAN CENTRE,165678
North East Lincolnshire Council,http://statistics.data.gov.uk/id/local-authority/00FC,Children & Family Services,Childrens Health & Famly Serv,Integrated Youth Services,Miscellaneous Expenses,Other Activities,MQ01,10/01/2011,3001732,625.00,Revenue,WEST MARSH COMMUNITY CENTRE,145037
North East Lincolnshire Council,http://statistics.data.gov.uk/id/local-authority/00FC,Children & Family Services,Childrens Health & Famly Serv,Integrated Youth Services,Miscellaneous Expenses,Other Activities,MQ01,13/01/2011,3004505,649.97,Revenue,ARGOS BUSINESS SOLUTIONS,106806
North East Lincolnshire Council,http://statistics.data.gov.uk/id/local-authority/00FC,Children & Family Services,Childrens Health & Famly Serv,Integrated Youth Services,Miscellaneous Expenses,Other Activities,MQ01,17/01/2011,3005368,680.84,Revenue,DSG RETAIL LTD,165311
North East Lincolnshire Council,http://statistics.data.gov.uk/id/local-authority/00FC,Children & Family Services,Childrens Health & Famly Serv,Integrated Youth Services,Indirect Employee Expenses,Train Accredit & Certific Fee,BX08,31/01/2011,3012216,710.00,Revenue,GRIT TRACK & TRAIL,181533
North East Lincolnshire Council,http://statistics.data.gov.uk/id/local-authority/00FC,Children & Family Services,Childrens Health & Famly Serv,Integrated Youth Services,Miscellaneous Expenses,Other Activities,MQ01,25/01/2011,3009853,"1,205.08",Revenue,PRO-ACTIVE TEAMWEAR LTD,111290
North East Lincolnshire Council,http://statistics.data.gov.uk/id/local-authority/00FC,Children & Family Services,Childrens Health & Famly Serv,Integrated Youth Services,Indirect Employee Expenses,Train Accredit & Certific Fee,BX08,24/01/2011,3008568,"4,000.00",Revenue,GRIMSBY TOWN FOOTBALL IN THE COMMUNITY,89372
North East Lincolnshire Council,http://statistics.data.gov.uk/id/local-authority/00FC,Children & Family Services,Childrens Health & Famly Serv,Integrated Youth Services,Indirect Employee Expenses,Train Accredit & Certific Fee,BX08,24/01/2011,3008784,"8,220.00",Revenue,YOUNG ADVISORS COMPANY LIMITED,181510
North East Lincolnshire Council,http://statistics.data.gov.uk/id/local-authority/00FC,Children & Family Services,Childrens Health & Famly Serv,Extended Services,Equipment/Furniture/Materials,Off Equip Photocopying,HN05,05/01/2011,2999465,889.73,Revenue,UNITED CARLTON OFFICE SYSTEMS LTD,161525
North East Lincolnshire Council,http://statistics.data.gov.uk/id/local-authority/00FC,Children & Family Services,Childrens Health & Famly Serv,Extended Services,Miscellaneous Expenses,Other Activities,MQ01,05/01/2011,2999441,"1,425.00",Revenue,PTP CONSULTANCY,158758
North East Lincolnshire Council,http://statistics.data.gov.uk/id/local-authority/00FC,Children & Family Services,Childrens Health & Famly Serv,Extended Services,Printing Station & Gen Off Exp,Books Stat & Equip(Ed) Pchse,JN01,11/01/2011,3002943,"1,717.50",Revenue,PROMOTIONAL MERCHANDISE,178450
North East Lincolnshire Council,http://statistics.data.gov.uk/id/local-authority/00FC,Children & Family Services,Childrens Health & Famly Serv,Extended Services,Equipment/Furniture/Materials,Off Equip Photocopying,HN05,05/01/2011,2999466,"2,394.57",Revenue,UNITED CARLTON OFFICE SYSTEMS LTD,161525
North East Lincolnshire Council,http://statistics.data.gov.uk/id/local-authority/00FC,Children & Family Services,Childrens Health & Famly Serv,Integrated Youth Services,Equipment/Furniture/Materials,Equip Purchases,HC01,07/01/2011,3001014,598.32,Revenue,RAW OUTDOORS,181406
North East Lincolnshire Council,http://statistics.data.gov.uk/id/local-authority/00FC,Children & Family Services,Childrens Health & Famly Serv,Childrens Health Provision,Miscellaneous Expenses,Other Expenses General,NZ01,24/01/2011,3008427,"8,635.50",Revenue,LINCS PARTNERSHIP NHS FOUNDATION TRUST,181480
North East Lincolnshire Council,http://statistics.data.gov.uk/id/local-authority/00FC,Children & Family Services,Childrens Health & Famly Serv,Childrens Health Provision,Contributions To Provisions,Contributions To Funds,NV01,19/01/2011,3006717,600.00,Revenue,HAVELOCK ACADEMY,170096
North East Lincolnshire Council,http://statistics.data.gov.uk/id/local-authority/00FC,Children & Family Services,Childrens Health & Famly Serv,Childrens Health Provision,Contributions To Provisions,Contributions To Funds,NV01,19/01/2011,3006714,600.00,Revenue,HUMBERSTON C OF E PRIMARY SCHOOL,158889
North East Lincolnshire Council,http://statistics.data.gov.uk/id/local-authority/00FC,Children & Family Services,Childrens Health & Famly Serv,Childrens Health Provision,Contributions To Provisions,Contributions To Funds,NV01,19/01/2011,3006715,600.00,Revenue,HUMBERSTON COMPREHENSIVE,43447
North East Lincolnshire Council,http://statistics.data.gov.uk/id/local-authority/00FC,Children & Family Services,Childrens Health & Famly Serv,Childrens Health Provision,Contributions To Provisions,Contributions To Funds,NV01,19/01/2011,3006716,600.00,Revenue,WHITGIFT SCHOOL,75911
North East Lincolnshire Council,http://statistics.data.gov.uk/id/local-authority/00FC,Children & Family Services,Childrens Health & Famly Serv,Childrens Health Provision,Contributions To Provisions,Contributions To Funds,NV01,19/01/2011,3006713,"1,250.00",Revenue,GREAT COATES PRIMARY SCHOOL,115378
North East Lincolnshire Council,http://statistics.data.gov.uk/id/local-authority/00FC,Children & Family Services,Childrens Health & Famly Serv,Childrens Health Provision,Printing Station & Gen Off Exp,Print & Stat External,LA03,24/01/2011,3008458,"2,040.00",Revenue,KID PREMIERSHIP LTD,174128
North East Lincolnshire Council,http://statistics.data.gov.uk/id/local-authority/00FC,Children & Family Services,Childrens Health & Famly Serv,Childrens Health Provision,Contributions To Provisions,Contributions To Funds,NV01,25/01/2011,3009112,"2,500.00",Revenue,HEALING SCIENCE ACADEMY LTD,181493
North East Lincolnshire Council,http://statistics.data.gov.uk/id/local-authority/00FC,Children & Family Services,Childrens Health & Famly Serv,Childrens Health Provision,Private Contractors,Outside Contractors,QH01,21/01/2011,3008051,"-3,041.17",Revenue,NORTH EAST LINCOLNSHIRE PRIMARY CARE TRUST,155381
North East Lincolnshire Council,http://statistics.data.gov.uk/id/local-authority/00FC,Children & Family Services,Childrens Health & Famly Serv,Childrens Health Provision,Private Contractors,Outside Contractors,QH01,21/01/2011,3008051,"-1,948.49",Revenue,NORTH EAST LINCOLNSHIRE PRIMARY CARE TRUST,155381
North East Lincolnshire Council,http://statistics.data.gov.uk/id/local-authority/00FC,Children & Family Services,Childrens Health & Famly Serv,Childrens Health Provision,Private Contractors,Outside Contractors,QH01,21/01/2011,3008057,"1,356.51",Revenue,NORTH EAST LINCOLNSHIRE PRIMARY CARE TRUST,155381
North East Lincolnshire Council,http://statistics.data.gov.uk/id/local-authority/00FC,Children & Family Services,Childrens Health & Famly Serv,Childrens Health Provision,Private Contractors,Outside Contractors,QH01,21/01/2011,3008057,"1,368.98",Revenue,NORTH EAST LINCOLNSHIRE PRIMARY CARE TRUST,155381
North East Lincolnshire Council,http://statistics.data.gov.uk/id/local-authority/00FC,Children & Family Services,Childrens Health & Famly Serv,Childrens Health Provision,Private Contractors,Outside Contractors,QH01,21/01/2011,3008057,"1,865.35",Revenue,NORTH EAST LINCOLNSHIRE PRIMARY CARE TRUST,155381
North East Lincolnshire Council,http://statistics.data.gov.uk/id/local-authority/00FC,Children & Family Services,Childrens Health & Famly Serv,Childrens Health Provision,Private Contractors,Outside Contractors,QH01,21/01/2011,3008050,"7,625.00",Revenue,NORTHERN LINCOLNSHIRE & GOOLE HOSPITALS,132777
North East Lincolnshire Council,http://statistics.data.gov.uk/id/local-authority/00FC,Children & Family Services,Inclusion And Standards,Standards & Effectiveness,Miscellaneous Expenses,Other Expenses General,NZ01,14/01/2011,3005068,"1,000.00",Revenue,NIGEL LOWTHER ASSOCIATES LTD,164389
North East Lincolnshire Council,http://statistics.data.gov.uk/id/local-authority/00FC,Children & Family Services,Inclusion And Standards,Standards & Effectiveness,Consultants,Consult Work Consult+Special,PG01,11/01/2011,3002620,"1,375.00",Revenue,REDACTED PERSONAL DATA,REDACTED PERSONAL DATA
North East Lincolnshire Council,http://statistics.data.gov.uk/id/local-authority/00FC,Children & Family Services,Inclusion And Standards,Standards & Effectiveness,Miscellaneous Expenses,Other Expenses General,NZ01,11/01/2011,3002917,"1,580.00",Revenue,PEAK EDUCATION CONSULTANCY LTD,172011
North East Lincolnshire Council,http://statistics.data.gov.uk/id/local-authority/00FC,Children & Family Services,Inclusion And Standards,Standards & Effectiveness,Consultants,Consult Work Consult+Special,PG01,14/01/2011,3005069,"2,250.00",Revenue,STEVE COOK LTD,169580
North East Lincolnshire Council,http://statistics.data.gov.uk/id/local-authority/00FC,Children & Family Services,Inclusion And Standards,Standards & Effectiveness,Miscellaneous Expenses,Other Expenses General,NZ01,11/01/2011,3002904,"4,125.00",Revenue,ROCHE EDUCATIONAL CONSULTANCY,172822
North East Lincolnshire Council,http://statistics.data.gov.uk/id/local-authority/00FC,Children & Family Services,Inclusion And Standards,Standards & Effectiveness,Miscellaneous Expenses,Other Expenses General,NZ01,11/01/2011,3002408,"4,500.00",Revenue,WELBECK PRIMARY SCHOOL,181430
North East Lincolnshire Council,http://statistics.data.gov.uk/id/local-authority/00FC,Children & Family Services,Inclusion And Standards,Standards & Effectiveness,Miscellaneous Expenses,Other Expenses General,NZ01,11/01/2011,3002920,"4,812.50",Revenue,PEAK EDUCATION CONSULTANCY LTD,172011
North East Lincolnshire Council,http://statistics.data.gov.uk/id/local-authority/00FC,Children & Family Services,Inclusion And Standards,Standards & Effectiveness,Consultants,Consult Work Consult+Special,PG01,17/01/2011,3005364,"5,375.00",Revenue,REDACTED PERSONAL DATA,REDACTED PERSONAL DATA
North East Lincolnshire Council,http://statistics.data.gov.uk/id/local-authority/00FC,Children & Family Services,Inclusion And Standards,Standards & Effectiveness,Miscellaneous Expenses,Other Expenses General,NZ01,25/01/2011,3009176,"6,745.00",Revenue,GREEN PARK INTERIM & EXECUTIVE LTD,179091
North East Lincolnshire Council,http://statistics.data.gov.uk/id/local-authority/00FC,Children & Family Services,Inclusion And Standards,Standards & Effectiveness,Consultants,Consult Work Consult+Special,PG01,11/01/2011,3002418,"8,250.00",Revenue,REDACTED PERSONAL DATA,REDACTED PERSONAL DATA
North East Lincolnshire Council,http://statistics.data.gov.uk/id/local-authority/00FC,Children & Family Services,Inclusion And Standards,Standards & Effectiveness,Consultants,Consult Work Consult+Special,PG01,18/01/2011,3006487,"8,500.00",Revenue,LONG BENNINGTON C OF E PRIMARY SCHOOL,181466
North East Lincolnshire Council,http://statistics.data.gov.uk/id/local-authority/00FC,Children & Family Services,Inclusion And Standards,Standards & Effectiveness,Miscellaneous Expenses,Other Expenses General,NZ01,14/01/2011,3005070,"13,541.85",Revenue,GREEN PARK INTERIM & EXECUTIVE LTD,179091
North East Lincolnshire Council,http://statistics.data.gov.uk/id/local-authority/00FC,Children & Family Services,Inclusion And Standards,Standards & Effectiveness,Expenses,Trav/Subs Off Other Offic Duty,MA05,11/01/2011,3002834,-182.40,Revenue,NYS CORPORATE,177749
North East Lincolnshire Council,http://statistics.data.gov.uk/id/local-authority/00FC,Children & Family Services,Inclusion And Standards,Standards & Effectiveness,Miscellaneous Expenses,Other Expenses General,NZ01,18/01/2011,3006528,-25.90,Revenue,REDACTED PERSONAL DATA,REDACTED PERSONAL DATA
North East Lincolnshire Council,http://statistics.data.gov.uk/id/local-authority/00FC,Children & Family Services,Inclusion And Standards,Standards & Effectiveness,Expenses,Trav/Subs Off Conf-Trav & Subs,MA02,11/01/2011,3002836,-10.07,Revenue,NYS CORPORATE,177749
North East Lincolnshire Council,http://statistics.data.gov.uk/id/local-authority/00FC,Children & Family Services,Inclusion And Standards,Sen/Inclusion,Indirect Employee Expenses,Train Basic Skill - Course Fee,BX01,20/01/2011,3006980,640.00,Revenue,CELIA STONE LTD,161025
North East Lincolnshire Council,http://statistics.data.gov.uk/id/local-authority/00FC,Children & Family Services,Inclusion And Standards,Sen/Inclusion,Other Local Authorities,Oth Local Auth General,QG01,20/01/2011,3006982,"7,395.86",Revenue,LEEDS CITY COUNCIL,1469
North East Lincolnshire Council,http://statistics.data.gov.uk/id/local-authority/00FC,Children & Family Services,Inclusion And Standards,Standards & Effectiveness,Miscellaneous Expenses,Other Expenses General,NZ01,17/01/2011,3005365,"3,115.00",Revenue,NORTHERN EDUCATION,164259
North East Lincolnshire Council,http://statistics.data.gov.uk/id/local-authority/00FC,Children & Family Services,Inclusion And Standards,Standards & Effectiveness,Grants,Standards Fund Grant,UJ71,11/01/2011,3002918,"10,000.00",Revenue,HEALING ACADEMY,180877
North East Lincolnshire Council,http://statistics.data.gov.uk/id/local-authority/00FC,Children & Family Services,Inclusion And Standards,Standards & Effectiveness,Grants,Standards Fund Grant,UJ71,11/01/2011,3002921,"17,500.00",Revenue,HUMBERSTON MATHS & COMPUTING COLLEGE,180763
North East Lincolnshire Council,http://statistics.data.gov.uk/id/local-authority/00FC,Children & Family Services,Inclusion And Standards,Standards & Effectiveness,Grants,Standards Fund Grant,UJ71,11/01/2011,3002922,"28,000.00",Revenue,WHITGIFT SCHOOL,43841
North East Lincolnshire Council,http://statistics.data.gov.uk/id/local-authority/00FC,Children & Family Services,Inclusion And Standards,Standards & Effectiveness,Grants,Standards Fund Grant,UJ71,11/01/2011,3002924,"34,750.00",Revenue,ST ANDREWS COLLEGE,180489
North East Lincolnshire Council,http://statistics.data.gov.uk/id/local-authority/00FC,Children & Family Services,Inclusion And Standards,Standards & Effectiveness,Grants,Standards Fund Grant,UJ71,11/01/2011,3002937,"41,500.00",Revenue,TOLLBAR ACADEMY,181029
North East Lincolnshire Council,http://statistics.data.gov.uk/id/local-authority/00FC,Children & Family Services,Inclusion And Standards,Community Learning Services,Car Allowances,Yts/Train Excess Travel-Adult,GY02,26/01/2011,3010189,905.40,Revenue,REDACTED PERSONAL DATA,REDACTED PERSONAL DATA
North East Lincolnshire Council,http://statistics.data.gov.uk/id/local-authority/00FC,Children & Family Services,Inclusion And Standards,Community Learning Services,Miscellaneous Expenses,Examination Fees,MT01,24/01/2011,3008506,"1,000.00",Revenue,OCN YORKSHIRE & HUMBER REGION,163244
North East Lincolnshire Council,http://statistics.data.gov.uk/id/local-authority/00FC,Children & Family Services,Inclusion And Standards,Community Learning Services,Printing Station & Gen Off Exp,Books Stat & Equip(Ed) Pchse,JN01,12/01/2011,3003526,"1,050.00",Revenue,TICE SEMINARS LIMITED,106837
North East Lincolnshire Council,http://statistics.data.gov.uk/id/local-authority/00FC,Children & Family Services,Inclusion And Standards,Community Learning Services,Miscellaneous Expenses,Examination Fees,MT01,24/01/2011,3008801,588.00,Revenue,CITY & GUILDS,34986
North East Lincolnshire Council,http://statistics.data.gov.uk/id/local-authority/00FC,Children & Family Services,Inclusion And Standards,Community Learning Services,Miscellaneous Expenses,Examination Fees,MT01,24/01/2011,3008801,"1,086.00",Revenue,CITY & GUILDS,34986
North East Lincolnshire Council,http://statistics.data.gov.uk/id/local-authority/00FC,Children & Family Services,Inclusion And Standards,Community Learning Services,Miscellaneous Expenses,Examination Fees,MT01,05/01/2011,2999260,748.00,Revenue,OCN YORKSHIRE & HUMBER REGION,163244
North East Lincolnshire Council,http://statistics.data.gov.uk/id/local-authority/00FC,Children & Family Services,Inclusion And Standards,Community Learning Services,Miscellaneous Expenses,Examination Fees,MT01,13/01/2011,3004350,819.00,Revenue,COUNCIL FOR AWARDS IN CHILDREN CARE & EDUC,132728
North East Lincolnshire Council,http://statistics.data.gov.uk/id/local-authority/00FC,Children & Family Services,Inclusion And Standards,Community Learning Services,Miscellaneous Expenses,Examination Fees,MT01,13/01/2011,3004353,"1,762.80",Revenue,CITY & GUILDS,34986
North East Lincolnshire Council,http://statistics.data.gov.uk/id/local-authority/00FC,Children & Family Services,Inclusion And Standards,Community Learning Services,Printing Station & Gen Off Exp,Print & Stat General,LA01,21/01/2011,3008115,-14.34,Revenue,LYRECO UK LIMITED,117289
North East Lincolnshire Council,http://statistics.data.gov.uk/id/local-authority/00FC,Children & Family Services,Inclusion And Standards,Standards & Effectiveness,Catering,Provisions General,KG01,18/01/2011,3006018,-34.65,Revenue,ANGLIA WOODS,50110
North East Lincolnshire Council,http://statistics.data.gov.uk/id/local-authority/00FC,Children & Family Services,Inclusion And Standards,Standards & Effectiveness,Catering,Provisions General,KG01,14/01/2011,3005087,-12.85,Revenue,SYLVESTER-KEAL LTD,13580
North East Lincolnshire Council,http://statistics.data.gov.uk/id/local-authority/00FC,Children & Family Services,Inclusion And Standards,Standards & Effectiveness,Catering,Provisions General,KG01,18/01/2011,3006017,-3.47,Revenue,ANGLIA WOODS,50110
North East Lincolnshire Council,http://statistics.data.gov.uk/id/local-authority/00FC,Children & Family Services,Inclusion And Standards,Standards & Effectiveness,Contributions To Provisions,Contributions To Funds,NV01,24/01/2011,3008771,875.00,Revenue,FIRST MEDIA SOLUTIONS LTD,153350
North East Lincolnshire Council,http://statistics.data.gov.uk/id/local-authority/00FC,Children & Family Services,Inclusion And Standards,Standards & Effectiveness,Contributions To Provisions,Contributions To Funds,NV01,24/01/2011,3008766,"2,875.00",Revenue,FIRST MEDIA SOLUTIONS LTD,153350
North East Lincolnshire Council,http://statistics.data.gov.uk/id/local-authority/00FC,Children & Family Services,Inclusion And Standards,Standards & Effectiveness,Contributions To Provisions,Contributions To Funds,NV01,24/01/2011,3008770,"2,900.00",Revenue,FIRST MEDIA SOLUTIONS LTD,153350
North East Lincolnshire Council,http://statistics.data.gov.uk/id/local-authority/00FC,Children & Family Services,Inclusion And Standards,Standards & Effectiveness,Consultants,Consult Work Consult+Special,PG01,14/01/2011,3005067,"4,500.00",Revenue,REDACTED PERSONAL DATA,REDACTED PERSONAL DATA
North East Lincolnshire Council,http://statistics.data.gov.uk/id/local-authority/00FC,Children & Family Services,Inclusion And Standards,Standards & Effectiveness,Contributions To Provisions,Contributions To Funds,NV01,25/01/2011,3009175,"4,875.00",Revenue,FIRST SOFTWARE SOLUTIONS LTD,165732
North East Lincolnshire Council,http://statistics.data.gov.uk/id/local-authority/00FC,Children & Family Services,Inclusion And Standards,Standards & Effectiveness,Contributions To Provisions,Contributions To Funds,NV01,24/01/2011,3008767,"4,902.25",Revenue,FIRST MEDIA SOLUTIONS LTD,153350
North East Lincolnshire Council,http://statistics.data.gov.uk/id/local-authority/00FC,Children & Family Services,Inclusion And Standards,Standards & Effectiveness,Contributions To Provisions,Contributions To Funds,NV01,24/01/2011,3008595,"7,591.00",Revenue,FIRST MEDIA SOLUTIONS LTD,153350
North East Lincolnshire Council,http://statistics.data.gov.uk/id/local-authority/00FC,Children & Family Services,Inclusion And Standards,Standards & Effectiveness,Contributions To Provisions,Contributions To Funds,NV01,24/01/2011,3008769,"9,520.00",Revenue,FIRST MEDIA SOLUTIONS LTD,153350
North East Lincolnshire Council,http://statistics.data.gov.uk/id/local-authority/00FC,Children & Family Services,Inclusion And Standards,Standards & Effectiveness,Contributions To Provisions,Contributions To Funds,NV01,24/01/2011,3008596,"12,400.00",Revenue,FIRST MEDIA SOLUTIONS LTD,153350
North East Lincolnshire Council,http://statistics.data.gov.uk/id/local-authority/00FC,Children & Family Services,Inclusion And Standards,Standards & Effectiveness,Miscellaneous Expenses,Other Expenses General,NZ01,21/01/2011,3008047,"20,970.51",Revenue,EAST RIDING OF YORKSHIRE,90893
North East Lincolnshire Council,http://statistics.data.gov.uk/id/local-authority/00FC,Children & Family Services,Inclusion And Standards,Standards & Effectiveness,Consultants,Consult Work Consult+Special,PG01,11/01/2011,3002623,"1,000.00",Revenue,REDACTED PERSONAL DATA,REDACTED PERSONAL DATA
North East Lincolnshire Council,http://statistics.data.gov.uk/id/local-authority/00FC,Children & Family Services,Inclusion And Standards,Standards & Effectiveness,Miscellaneous Expenses,Other Expenses General,NZ01,21/01/2011,3008162,"1,400.00",Revenue,IN YOUR ELEMENT,178420
North East Lincolnshire Council,http://statistics.data.gov.uk/id/local-authority/00FC,Children & Family Services,Inclusion And Standards,Standards & Effectiveness,Consultants,Consult Work Consult+Special,PG01,11/01/2011,3002621,"2,450.00",Revenue,REDACTED PERSONAL DATA,REDACTED PERSONAL DATA
North East Lincolnshire Council,http://statistics.data.gov.uk/id/local-authority/00FC,Children & Family Services,Inclusion And Standards,Standards & Effectiveness,Miscellaneous Expenses,Other Expenses General,NZ01,11/01/2011,3002829,"2,892.00",Revenue,APPLES & SNAKES LTD,156223
North East Lincolnshire Council,http://statistics.data.gov.uk/id/local-authority/00FC,Children & Family Services,Inclusion And Standards,Standards & Effectiveness,Consultants,Consult Work Consult+Special,PG01,11/01/2011,3002410,"5,500.00",Revenue,SIMPLY GARDENING,181431
North East Lincolnshire Council,http://statistics.data.gov.uk/id/local-authority/00FC,Children & Family Services,Inclusion And Standards,Standards & Effectiveness,Miscellaneous Expenses,Other Expenses General,NZ01,25/01/2011,3009173,"13,092.75",Revenue,CHANNEL 7 TELEVISION,176719
North East Lincolnshire Council,http://statistics.data.gov.uk/id/local-authority/00FC,Children & Family Services,Inclusion And Standards,Standards & Effectiveness,Printing Station & Gen Off Exp,Print & Stat General,LA01,31/01/2011,3012238,598.00,Revenue,SIEMENS FINANCIAL SERVICES LTD,123339
North East Lincolnshire Council,http://statistics.data.gov.uk/id/local-authority/00FC,Children & Family Services,Inclusion And Standards,Standards & Effectiveness,Grants,Standards Fund Grant,UJ71,17/01/2011,3005672,800.00,Revenue,HUMBERSTON C OF E PRIMARY SCHOOL,158889
North East Lincolnshire Council,http://statistics.data.gov.uk/id/local-authority/00FC,Children & Family Services,Inclusion And Standards,Standards & Effectiveness,Consultants,Consult Work Consult+Special,PG01,21/01/2011,3008169,905.56,Revenue,NAVIGATE,165107
North East Lincolnshire Council,http://statistics.data.gov.uk/id/local-authority/00FC,Children & Family Services,Inclusion And Standards,Standards & Effectiveness,Consultants,Consult Work Consult+Special,PG01,17/01/2011,3005386,"1,050.00",Revenue,NEW WALTHAM PRIMARY SCHOOL,83989
North East Lincolnshire Council,http://statistics.data.gov.uk/id/local-authority/00FC,Children & Family Services,Inclusion And Standards,Standards & Effectiveness,Contributions To Provisions,Contributions To Funds,NV01,24/01/2011,3008768,"5,875.00",Revenue,FIRST MEDIA SOLUTIONS LTD,153350
North East Lincolnshire Council,http://statistics.data.gov.uk/id/local-authority/00FC,Children & Family Services,Inclusion And Standards,Standards & Effectiveness,Consultants,Consult Work Consult+Special,PG01,21/01/2011,3008169,"15,413.74",Revenue,NAVIGATE,165107
North East Lincolnshire Council,http://statistics.data.gov.uk/id/local-authority/00FC,Children & Family Services,Inclusion And Standards,Sen/Inclusion,Printing Station & Gen Off Exp,Books Stat & Equip(Ed) Pchse,JN01,14/01/2011,3004937,505.41,Revenue,UNITED CARLTON OFFICE SYSTEMS LTD,161525
North East Lincolnshire Council,http://statistics.data.gov.uk/id/local-authority/00FC,Children & Family Services,Inclusion And Standards,Sen/Inclusion,Direct Employee Expenses,Pay Teachers Aides,AA13,05/01/2011,2999780,-400.00,Revenue,RANDSTAD EDUCATION LTD,178168
North East Lincolnshire Council,http://statistics.data.gov.uk/id/local-authority/00FC,Children & Family Services,Inclusion And Standards,Sen/Inclusion,Repairs & Maintenance,R & M Build Gen (Schools),CA04,14/01/2011,3004961,-210.00,Revenue,ABM ROOFING CONTRACTORS,30
North East Lincolnshire Council,http://statistics.data.gov.uk/id/local-authority/00FC,Children & Family Services,Inclusion And Standards,Sen/Inclusion,Printing Station & Gen Off Exp,Books Stat & Equip(Ed) Pchse,JN01,14/01/2011,3004955,502.75,Revenue,BENTHAM LTD T/A IJT,128274
North East Lincolnshire Council,http://statistics.data.gov.uk/id/local-authority/00FC,Children & Family Services,Inclusion And Standards,Sen/Inclusion,Printing Station & Gen Off Exp,Books Stat & Equip(Ed) Pchse,JN01,14/01/2011,3004938,524.71,Revenue,UNITED CARLTON OFFICE SYSTEMS LTD,161525
North East Lincolnshire Council,http://statistics.data.gov.uk/id/local-authority/00FC,Children & Family Services,Inclusion And Standards,Sen/Inclusion,Repairs & Maintenance,R & M Build Gen (Schools),CA04,14/01/2011,3004946,533.00,Revenue,ARK JOINERY AND BUILDING MAINTENANCE LTD,117879
North East Lincolnshire Council,http://statistics.data.gov.uk/id/local-authority/00FC,Children & Family Services,Inclusion And Standards,Sen/Inclusion,Water Services,Water - Charges Rv,FH01,21/01/2011,3008194,539.32,Revenue,ANGLIAN WATER,109
North East Lincolnshire Council,http://statistics.data.gov.uk/id/local-authority/00FC,Children & Family Services,Inclusion And Standards,Sen/Inclusion,Miscellaneous Expenses,Examination Fees,MT01,06/01/2011,3000329,644.80,Revenue,WELSH JOINT EDUCATION,41125
North East Lincolnshire Council,http://statistics.data.gov.uk/id/local-authority/00FC,Children & Family Services,Inclusion And Standards,Sen/Inclusion,Public Transport,Bus Fares,GS01,21/01/2011,3008161,722.00,Revenue,DKM ASSESSMENT & VERIFICATION LTD,161171
North East Lincolnshire Council,http://statistics.data.gov.uk/id/local-authority/00FC,Children & Family Services,Inclusion And Standards,Standards & Effectiveness,Grants,Standards Fund Grant,UJ71,04/01/2011,2998764,"10,000.00",Revenue,HEALING ACADEMY,180877
North East Lincolnshire Council,http://statistics.data.gov.uk/id/local-authority/00FC,Children & Family Services,Inclusion And Standards,Standards & Effectiveness,Grants,Standards Fund Grant,UJ71,13/01/2011,3004468,"20,000.00",Revenue,TOLLBAR ACADEMY,181029
North East Lincolnshire Council,http://statistics.data.gov.uk/id/local-authority/00FC,Children & Family Services,Inclusion And Standards,Standards & Effectiveness,Grants,Standards Fund Grant,UJ71,13/01/2011,3004466,"32,200.00",Revenue,HUMBERSTON MATHS & COMPUTING COLLEGE,180763
North East Lincolnshire Council,http://statistics.data.gov.uk/id/local-authority/00FC,Children & Family Services,Inclusion And Standards,Music Services,Consultants,Consult Work Consult+Special,PG01,05/01/2011,2999362,"1,710.00",Revenue,RHUBARB THEATRE,151627
North East Lincolnshire Council,http://statistics.data.gov.uk/id/local-authority/00FC,Children & Family Services,Inclusion And Standards,Music Services,Consultants,Consult Work Consult+Special,PG01,17/01/2011,3005764,"8,000.00",Revenue,PRIMARY COLOURS,158778
North East Lincolnshire Council,http://statistics.data.gov.uk/id/local-authority/00FC,Children & Family Services,Inclusion And Standards,Music Services,Equipment/Furniture/Materials,Equip Purchases,HC01,11/01/2011,3002863,500.00,Revenue,JOHN SCHEERER & SONS,41871
North East Lincolnshire Council,http://statistics.data.gov.uk/id/local-authority/00FC,Children & Family Services,Inclusion And Standards,Standards & Effectiveness,Miscellaneous Expenses,Other Expenses General,NZ01,25/01/2011,3009927,"1,200.00",Revenue,SHEFFIELD HALLAM UNIVERSITY,143103
North East Lincolnshire Council,http://statistics.data.gov.uk/id/local-authority/00FC,Children & Family Services,Inclusion And Standards,Standards & Effectiveness,Miscellaneous Expenses,Other Expenses General,NZ01,25/01/2011,3009613,"5,076.00",Revenue,IMPACT UNIVERSAL LTD,156795
North East Lincolnshire Council,http://statistics.data.gov.uk/id/local-authority/00FC,Children & Family Services,Inclusion And Standards,Standards & Effectiveness,Rents,Rent Hire Of Premises,FJ02,04/01/2011,2998614,680.00,Revenue,HUMBER ROYAL HOTEL,118369
North East Lincolnshire Council,http://statistics.data.gov.uk/id/local-authority/00FC,Children & Family Services,Inclusion And Standards,Standards & Effectiveness,Rents,Rent Hire Of Premises,FJ02,04/01/2011,2998614,"1,123.25",Revenue,HUMBER ROYAL HOTEL,118369
North East Lincolnshire Council,http://statistics.data.gov.uk/id/local-authority/00FC,Children & Family Services,Inclusion And Standards,Music Services,Equipment/Furniture/Materials,Equip Purchases,HC01,13/01/2011,3004445,540.10,Revenue,LINCS ELECTRICAL SERVICES LTD,171623
North East Lincolnshire Council,http://statistics.data.gov.uk/id/local-authority/00FC,Children & Family Services,Inclusion And Standards,Music Services,Equipment/Furniture/Materials,Equip Purchases,HC01,13/01/2011,3004447,590.25,Revenue,SETON LIMITED,10163
North East Lincolnshire Council,http://statistics.data.gov.uk/id/local-authority/00FC,Children & Family Services,Inclusion And Standards,Music Services,Consultants,Consult Work Consult+Special,PG01,13/01/2011,3004421,"1,140.00",Revenue,REDACTED PERSONAL DATA,REDACTED PERSONAL DATA
North East Lincolnshire Council,http://statistics.data.gov.uk/id/local-authority/00FC,Children & Family Services,Inclusion And Standards,Music Services,Services,Misc  Contracts External,JT01,17/01/2011,3005767,"1,400.00",Revenue,MUSIC LINCS LTD,86155
North East Lincolnshire Council,http://statistics.data.gov.uk/id/local-authority/00FC,Children & Family Services,Inclusion And Standards,Music Services,Consultants,Consult Work Consult+Special,PG01,11/01/2011,3002842,"1,800.00",Revenue,REDACTED PERSONAL DATA,REDACTED PERSONAL DATA
North East Lincolnshire Council,http://statistics.data.gov.uk/id/local-authority/00FC,Children & Family Services,Inclusion And Standards,Music Services,Rents,Rent Hire Of Premises,FJ02,17/01/2011,3005760,"2,186.26",Revenue,WHITGIFT SCHOOL,75911
North East Lincolnshire Council,http://statistics.data.gov.uk/id/local-authority/00FC,Children & Family Services,Inclusion And Standards,Sen/Inclusion,Direct Employee Expenses,Pay Teachers Supply Cover,AA03,11/01/2011,3002079,-550.00,Revenue,RANDSTAD EDUCATION LTD,178168
North East Lincolnshire Council,http://statistics.data.gov.uk/id/local-authority/00FC,Children & Family Services,Inclusion And Standards,Sen/Inclusion,Other Agencies,Spec Agency Skill General,QS01,14/01/2011,3005076,-267.00,Revenue,GRIMSBY INSTITUTE OF FURTHER &,155403
North East Lincolnshire Council,http://statistics.data.gov.uk/id/local-authority/00FC,Children & Family Services,Inclusion And Standards,Sen/Inclusion,Direct Employee Expenses,Pay Teachers Supply Cover,AA03,11/01/2011,3002271,550.00,Revenue,RANDSTAD EDUCATION LTD,178168
North East Lincolnshire Council,http://statistics.data.gov.uk/id/local-authority/00FC,Children & Family Services,Inclusion And Standards,Sen/Inclusion,Direct Employee Expenses,Pay Teachers Supply Cover,AA03,14/01/2011,3005081,550.00,Revenue,RANDSTAD EDUCATION LTD,178168
North East Lincolnshire Council,http://statistics.data.gov.uk/id/local-authority/00FC,Children & Family Services,Inclusion And Standards,Sen/Inclusion,Other Agencies,Spec Agency Skill General,QS01,05/01/2011,2998656,"1,066.67",Revenue,GRIMSBY INSTITUTE OF FURTHER &,155403
North East Lincolnshire Council,http://statistics.data.gov.uk/id/local-authority/00FC,Children & Family Services,Inclusion And Standards,Sen/Inclusion,Private Contractors,Concessionary Fares,PK01,14/01/2011,3005083,REDACTED COMMERCIALLY SENSITIVE INFORMATION,Revenue,LINKS TAXIS,1524
North East Lincolnshire Council,http://statistics.data.gov.uk/id/local-authority/00FC,Children & Family Services,Inclusion And Standards,Sen/Inclusion,Consultants,Consult Work Serv For Curricul,PG25,14/01/2011,3005082,"1,630.46",Revenue,JOHN ATKINS CONSULTING LTD,164633
North East Lincolnshire Council,http://statistics.data.gov.uk/id/local-authority/00FC,Children & Family Services,Inclusion And Standards,Sen/Inclusion,Other Agencies,Spec Agency Skill General,QS01,05/01/2011,2998661,"1,644.17",Revenue,GRIMSBY INSTITUTE OF FURTHER &,155403
North East Lincolnshire Council,http://statistics.data.gov.uk/id/local-authority/00FC,Children & Family Services,Inclusion And Standards,Sen/Inclusion,Other Agencies,Spec Agency Skill General,QS01,05/01/2011,2998653,"1,644.17",Revenue,GRIMSBY INSTITUTE OF FURTHER &,155403
North East Lincolnshire Council,http://statistics.data.gov.uk/id/local-authority/00FC,Children & Family Services,Inclusion And Standards,Sen/Inclusion,Other Agencies,Spec Agency Skill General,QS01,05/01/2011,2998663,"2,746.67",Revenue,GRIMSBY INSTITUTE OF FURTHER &,155403
North East Lincolnshire Council,http://statistics.data.gov.uk/id/local-authority/00FC,Children & Family Services,Inclusion And Standards,Sen/Inclusion,Other Agencies,Spec Agency Skill General,QS01,11/01/2011,3002273,"8,056.00",Revenue,A4E CONSULT LTD,161680
North East Lincolnshire Council,http://statistics.data.gov.uk/id/local-authority/00FC,Children & Family Services,Inclusion And Standards,Standards & Effectiveness,Communication & Computing,Comp Equip Data Links Excl Als,HK04,31/01/2011,3012241,"3,273.94",Revenue,BRITISH TELECOMMUNICATIONS PLC,89130
North East Lincolnshire Council,http://statistics.data.gov.uk/id/local-authority/00FC,Children & Family Services,Inclusion And Standards,Community Learning Services,Other Agencies,Further Ed Emp & Training,PM36,10/01/2011,3001336,"19,558.50",Revenue,KINGSWAY CONSULTING LIMITED,163326
North East Lincolnshire Council,http://statistics.data.gov.uk/id/local-authority/00FC,Children & Family Services,Vulnerable Children,Through Care & Disability,Miscellaneous Expenses,Other Expenses General,NZ01,05/01/2011,2999434,661.30,Revenue,BOOK TRUST,72934
North East Lincolnshire Council,http://statistics.data.gov.uk/id/local-authority/00FC,Children & Family Services,Vulnerable Children,Safeguarding,Miscellaneous Expenses,Legal Fees General,LS01,13/01/2011,3004656,-570.00,Revenue,REDACTED PERSONAL DATA,REDACTED PERSONAL DATA
North East Lincolnshire Council,http://statistics.data.gov.uk/id/local-authority/00FC,Children & Family Services,Vulnerable Children,Safeguarding,Miscellaneous Expenses,Legal Fees General,LS01,24/01/2011,3008785,500.00,Revenue,REDACTED PERSONAL DATA,REDACTED PERSONAL DATA
North East Lincolnshire Council,http://statistics.data.gov.uk/id/local-authority/00FC,Children & Family Services,Vulnerable Children,Safeguarding,Miscellaneous Expenses,Legal Fees General,LS01,05/01/2011,2998831,562.50,Revenue,REDACTED PERSONAL DATA,REDACTED PERSONAL DATA
North East Lincolnshire Council,http://statistics.data.gov.uk/id/local-authority/00FC,Children & Family Services,Vulnerable Children,Safeguarding,Miscellaneous Expenses,Legal Fees General,LS01,07/01/2011,3000933,945.00,Revenue,REDACTED PERSONAL DATA,REDACTED PERSONAL DATA
North East Lincolnshire Council,http://statistics.data.gov.uk/id/local-authority/00FC,Children & Family Services,Vulnerable Children,Safeguarding,Miscellaneous Expenses,Legal Fees General,LS01,13/01/2011,3004530,"1,042.50",Revenue,REDACTED PERSONAL DATA,REDACTED PERSONAL DATA
North East Lincolnshire Council,http://statistics.data.gov.uk/id/local-authority/00FC,Children & Family Services,Vulnerable Children,Safeguarding,Miscellaneous Expenses,Legal Fees General,LS01,05/01/2011,2998779,"1,550.00",Revenue,REDACTED PERSONAL DATA,REDACTED PERSONAL DATA
North East Lincolnshire Council,http://statistics.data.gov.uk/id/local-authority/00FC,Children & Family Services,Vulnerable Children,Placement & Support,Other Agencies,Child Care Payments,PM01,04/01/2011,2998398,704.54,Revenue,REDACTED PERSONAL DATA,REDACTED PERSONAL DATA
North East Lincolnshire Council,http://statistics.data.gov.uk/id/local-authority/00FC,Children & Family Services,Vulnerable Children,Placement & Support,Other Agencies,Child Care Payments,PM01,11/01/2011,3002610,704.54,Revenue,REDACTED PERSONAL DATA,REDACTED PERSONAL DATA
North East Lincolnshire Council,http://statistics.data.gov.uk/id/local-authority/00FC,Children & Family Services,Vulnerable Children,Placement & Support,Other Agencies,Child Care Payments,PM01,18/01/2011,3006223,704.54,Revenue,REDACTED PERSONAL DATA,REDACTED PERSONAL DATA
North East Lincolnshire Council,http://statistics.data.gov.uk/id/local-authority/00FC,Children & Family Services,Vulnerable Children,Placement & Support,Other Agencies,Child Care Payments,PM01,25/01/2011,3009391,704.54,Revenue,REDACTED PERSONAL DATA,REDACTED PERSONAL DATA
North East Lincolnshire Council,http://statistics.data.gov.uk/id/local-authority/00FC,Children & Family Services,Vulnerable Children,Placement & Support,Repairs & Maintenance,R & M Build General,CA01,10/01/2011,3001698,513.50,Revenue,ELLIS DIRECT LIMITED,119886
North East Lincolnshire Council,http://statistics.data.gov.uk/id/local-authority/00FC,Children & Family Services,Vulnerable Children,Placement & Support,Other Agencies,Christmas,PM06,17/01/2011,3005253,527.34,Revenue,NEL-SOC SERV 17 WOOTTON ROAD,41459
North East Lincolnshire Council,http://statistics.data.gov.uk/id/local-authority/00FC,Children & Family Services,Vulnerable Children,Placement & Support,Equipment/Furniture/Materials,Equip Purchases,HC01,06/01/2011,3000681,585.24,Revenue,ARGOS BUSINESS SOLUTIONS,106806
North East Lincolnshire Council,http://statistics.data.gov.uk/id/local-authority/00FC,Children & Family Services,Vulnerable Children,Placement & Support,Catering,Provisions General,KG01,27/01/2011,3010975,656.20,Revenue,419 CROMWELL RD FOR PETTY CASH,41436
North East Lincolnshire Council,http://statistics.data.gov.uk/id/local-authority/00FC,Children & Family Services,Vulnerable Children,Placement & Support,Catering,Provisions General,KG01,07/01/2011,3001026,732.34,Revenue,419 CROMWELL RD FOR PETTY CASH,41436
North East Lincolnshire Council,http://statistics.data.gov.uk/id/local-authority/00FC,Children & Family Services,Vulnerable Children,Placement & Support,Energy Costs,Electricity General,FB01,06/01/2011,3000616,825.09,Revenue,SOUTHERN ELECTRIC PLC,116939
North East Lincolnshire Council,http://statistics.data.gov.uk/id/local-authority/00FC,Children & Family Services,Vulnerable Children,Placement & Support,Repairs & Maintenance,Fire Alarm/Emer Light - Annual,DP01,05/01/2011,2999535,"1,210.00",Revenue,N-FORCE SECURITY SOLUTIONS,156585
North East Lincolnshire Council,http://statistics.data.gov.uk/id/local-authority/00FC,Children & Family Services,Vulnerable Children,Placement & Support,Rents,Rent General,FJ01,24/01/2011,3008791,"3,300.00",Revenue,LINKAGE COMMUNITY TRUST,39525
North East Lincolnshire Council,http://statistics.data.gov.uk/id/local-authority/00FC,Children & Family Services,Vulnerable Children,Placement & Support,Rents,Rent General,FJ01,24/01/2011,3008792,"3,600.00",Revenue,LINKAGE COMMUNITY TRUST,39525
North East Lincolnshire Council,http://statistics.data.gov.uk/id/local-authority/00FC,Children & Family Services,Vulnerable Children,Placement & Support,Other Agencies,Contract Plus,PM49,18/01/2011,3006050,-224.56,Revenue,REDACTED PERSONAL DATA,REDACTED PERSONAL DATA
North East Lincolnshire Council,http://statistics.data.gov.uk/id/local-authority/00FC,Children & Family Services,Vulnerable Children,Placement & Support,Other Agencies,Child Care Payments,PM01,18/01/2011,3006050,-117.14,Revenue,REDACTED PERSONAL DATA,REDACTED PERSONAL DATA
North East Lincolnshire Council,http://statistics.data.gov.uk/id/local-authority/00FC,Children & Family Services,Vulnerable Children,Placement & Support,Other Agencies,Child Care Payments,PM01,11/01/2011,3002482,-87.14,Revenue,REDACTED PERSONAL DATA,REDACTED PERSONAL DATA
North East Lincolnshire Council,http://statistics.data.gov.uk/id/local-authority/00FC,Children & Family Services,Vulnerable Children,Placement & Support,Other Agencies,Child Care Payments,PM01,18/01/2011,3006126,-86.87,Revenue,REDACTED PERSONAL DATA,REDACTED PERSONAL DATA
North East Lincolnshire Council,http://statistics.data.gov.uk/id/local-authority/00FC,Children & Family Services,Vulnerable Children,Placement & Support,Other Agencies,Child Care Payments,PM01,04/01/2011,2998389,-50.00,Revenue,REDACTED PERSONAL DATA,REDACTED PERSONAL DATA
North East Lincolnshire Council,http://statistics.data.gov.uk/id/local-authority/00FC,Children & Family Services,Vulnerable Children,Placement & Support,Other Agencies,Child Care Payments,PM01,11/01/2011,3002600,-50.00,Revenue,REDACTED PERSONAL DATA,REDACTED PERSONAL DATA
North East Lincolnshire Council,http://statistics.data.gov.uk/id/local-authority/00FC,Children & Family Services,Vulnerable Children,Placement & Support,Other Agencies,Child Care Payments,PM01,18/01/2011,3006214,-50.00,Revenue,REDACTED PERSONAL DATA,REDACTED PERSONAL DATA
North East Lincolnshire Council,http://statistics.data.gov.uk/id/local-authority/00FC,Children & Family Services,Vulnerable Children,Placement & Support,Other Agencies,Child Care Payments,PM01,25/01/2011,3009383,-50.00,Revenue,REDACTED PERSONAL DATA,REDACTED PERSONAL DATA
North East Lincolnshire Council,http://statistics.data.gov.uk/id/local-authority/00FC,Children & Family Services,Vulnerable Children,Placement & Support,Other Agencies,Child Care Payments,PM01,04/01/2011,2998249,-40.00,Revenue,REDACTED PERSONAL DATA,REDACTED PERSONAL DATA
North East Lincolnshire Council,http://statistics.data.gov.uk/id/local-authority/00FC,Children & Family Services,Vulnerable Children,Placement & Support,Other Agencies,Child Care Payments,PM01,04/01/2011,2998321,-25.00,Revenue,REDACTED PERSONAL DATA,REDACTED PERSONAL DATA
North East Lincolnshire Council,http://statistics.data.gov.uk/id/local-authority/00FC,Children & Family Services,Vulnerable Children,Placement & Support,Other Agencies,Child Care Payments,PM01,11/01/2011,3002532,-25.00,Revenue,REDACTED PERSONAL DATA,REDACTED PERSONAL DATA
North East Lincolnshire Council,http://statistics.data.gov.uk/id/local-authority/00FC,Children & Family Services,Vulnerable Children,Placement & Support,Other Agencies,Child Care Payments,PM01,18/01/2011,3006144,-25.00,Revenue,REDACTED PERSONAL DATA,REDACTED PERSONAL DATA
North East Lincolnshire Council,http://statistics.data.gov.uk/id/local-authority/00FC,Children & Family Services,Vulnerable Children,Placement & Support,Other Agencies,Child Care Payments,PM01,25/01/2011,3009315,-25.00,Revenue,REDACTED PERSONAL DATA,REDACTED PERSONAL DATA
North East Lincolnshire Council,http://statistics.data.gov.uk/id/local-authority/00FC,Children & Family Services,Vulnerable Children,Placement & Support,Other Agencies,Child Care Payments,PM01,04/01/2011,2998305,-23.43,Revenue,REDACTED PERSONAL DATA,REDACTED PERSONAL DATA
North East Lincolnshire Council,http://statistics.data.gov.uk/id/local-authority/00FC,Children & Family Services,Vulnerable Children,Placement & Support,Other Agencies,Child Care Payments,PM01,18/01/2011,3006128,-23.43,Revenue,REDACTED PERSONAL DATA,REDACTED PERSONAL DATA
North East Lincolnshire Council,http://statistics.data.gov.uk/id/local-authority/00FC,Children & Family Services,Vulnerable Children,Placement & Support,Other Agencies,Child Care Payments,PM01,11/01/2011,3002608,-20.00,Revenue,REDACTED PERSONAL DATA,REDACTED PERSONAL DATA
North East Lincolnshire Council,http://statistics.data.gov.uk/id/local-authority/00FC,Children & Family Services,Vulnerable Children,Placement & Support,Other Agencies,Child Care Payments,PM01,04/01/2011,2998397,-20.00,Revenue,REDACTED PERSONAL DATA,REDACTED PERSONAL DATA
North East Lincolnshire Council,http://statistics.data.gov.uk/id/local-authority/00FC,Children & Family Services,Vulnerable Children,Placement & Support,Other Agencies,Child Care Payments,PM01,11/01/2011,3002609,-20.00,Revenue,REDACTED PERSONAL DATA,REDACTED PERSONAL DATA
North East Lincolnshire Council,http://statistics.data.gov.uk/id/local-authority/00FC,Children & Family Services,Vulnerable Children,Placement & Support,Other Agencies,Child Care Payments,PM01,18/01/2011,3006222,-20.00,Revenue,REDACTED PERSONAL DATA,REDACTED PERSONAL DATA
North East Lincolnshire Council,http://statistics.data.gov.uk/id/local-authority/00FC,Children & Family Services,Vulnerable Children,Placement & Support,Other Agencies,Child Care Payments,PM01,25/01/2011,3009390,-20.00,Revenue,REDACTED PERSONAL DATA,REDACTED PERSONAL DATA
North East Lincolnshire Council,http://statistics.data.gov.uk/id/local-authority/00FC,Children & Family Services,Vulnerable Children,Placement & Support,Other Agencies,Child Care Payments,PM01,11/01/2011,3002609,-15.86,Revenue,REDACTED PERSONAL DATA,REDACTED PERSONAL DATA
North East Lincolnshire Council,http://statistics.data.gov.uk/id/local-authority/00FC,Children & Family Services,Vulnerable Children,Placement & Support,Other Agencies,Child Care Payments,PM01,25/01/2011,3009314,-10.00,Revenue,REDACTED PERSONAL DATA,REDACTED PERSONAL DATA
North East Lincolnshire Council,http://statistics.data.gov.uk/id/local-authority/00FC,Children & Family Services,Vulnerable Children,Placement & Support,Other Agencies,Setting Up,PM08,24/01/2011,3008589,-3.98,Revenue,WOODLANDS PINE & FURNISHINGS LTD,139912
North East Lincolnshire Council,http://statistics.data.gov.uk/id/local-authority/00FC,Children & Family Services,Vulnerable Children,Placement & Support,Other Agencies,Special Carer Payments,PM33,04/01/2011,2998249,704.54,Revenue,REDACTED PERSONAL DATA,REDACTED PERSONAL DATA
North East Lincolnshire Council,http://statistics.data.gov.uk/id/local-authority/00FC,Children & Family Services,Vulnerable Children,Placement & Support,Other Agencies,Special Carer Payments,PM33,04/01/2011,2998269,704.54,Revenue,REDACTED PERSONAL DATA,REDACTED PERSONAL DATA
North East Lincolnshire Council,http://statistics.data.gov.uk/id/local-authority/00FC,Children & Family Services,Vulnerable Children,Placement & Support,Other Agencies,Special Carer Payments,PM33,04/01/2011,2998270,704.54,Revenue,REDACTED PERSONAL DATA,REDACTED PERSONAL DATA
North East Lincolnshire Council,http://statistics.data.gov.uk/id/local-authority/00FC,Children & Family Services,Vulnerable Children,Placement & Support,Other Agencies,Special Carer Payments,PM33,04/01/2011,2998273,704.54,Revenue,REDACTED PERSONAL DATA,REDACTED PERSONAL DATA
North East Lincolnshire Council,http://statistics.data.gov.uk/id/local-authority/00FC,Children & Family Services,Vulnerable Children,Placement & Support,Other Agencies,Special Carer Payments,PM33,11/01/2011,3002455,704.54,Revenue,REDACTED PERSONAL DATA,REDACTED PERSONAL DATA
North East Lincolnshire Council,http://statistics.data.gov.uk/id/local-authority/00FC,Children & Family Services,Vulnerable Children,Placement & Support,Other Agencies,Special Carer Payments,PM33,11/01/2011,3002476,704.54,Revenue,REDACTED PERSONAL DATA,REDACTED PERSONAL DATA
North East Lincolnshire Council,http://statistics.data.gov.uk/id/local-authority/00FC,Children & Family Services,Vulnerable Children,Placement & Support,Other Agencies,Special Carer Payments,PM33,11/01/2011,3002477,704.54,Revenue,REDACTED PERSONAL DATA,REDACTED PERSONAL DATA
North East Lincolnshire Council,http://statistics.data.gov.uk/id/local-authority/00FC,Children & Family Services,Vulnerable Children,Placement & Support,Other Agencies,Special Carer Payments,PM33,11/01/2011,3002482,704.54,Revenue,REDACTED PERSONAL DATA,REDACTED PERSONAL DATA
North East Lincolnshire Council,http://statistics.data.gov.uk/id/local-authority/00FC,Children & Family Services,Vulnerable Children,Placement & Support,Other Agencies,Special Carer Payments,PM33,18/01/2011,3006071,704.54,Revenue,REDACTED PERSONAL DATA,REDACTED PERSONAL DATA
North East Lincolnshire Council,http://statistics.data.gov.uk/id/local-authority/00FC,Children & Family Services,Vulnerable Children,Placement & Support,Other Agencies,Special Carer Payments,PM33,18/01/2011,3006091,704.54,Revenue,REDACTED PERSONAL DATA,REDACTED PERSONAL DATA
North East Lincolnshire Council,http://statistics.data.gov.uk/id/local-authority/00FC,Children & Family Services,Vulnerable Children,Placement & Support,Other Agencies,Special Carer Payments,PM33,18/01/2011,3006092,704.54,Revenue,REDACTED PERSONAL DATA,REDACTED PERSONAL DATA
North East Lincolnshire Council,http://statistics.data.gov.uk/id/local-authority/00FC,Children & Family Services,Vulnerable Children,Placement & Support,Other Agencies,Special Carer Payments,PM33,18/01/2011,3006096,704.54,Revenue,REDACTED PERSONAL DATA,REDACTED PERSONAL DATA
North East Lincolnshire Council,http://statistics.data.gov.uk/id/local-authority/00FC,Children & Family Services,Vulnerable Children,Placement & Support,Other Agencies,Special Carer Payments,PM33,25/01/2011,3009240,704.54,Revenue,REDACTED PERSONAL DATA,REDACTED PERSONAL DATA
North East Lincolnshire Council,http://statistics.data.gov.uk/id/local-authority/00FC,Children & Family Services,Vulnerable Children,Placement & Support,Other Agencies,Special Carer Payments,PM33,25/01/2011,3009260,704.54,Revenue,REDACTED PERSONAL DATA,REDACTED PERSONAL DATA
North East Lincolnshire Council,http://statistics.data.gov.uk/id/local-authority/00FC,Children & Family Services,Vulnerable Children,Placement & Support,Other Agencies,Special Carer Payments,PM33,25/01/2011,3009261,704.54,Revenue,REDACTED PERSONAL DATA,REDACTED PERSONAL DATA
